Body Name,Body,Organisational unit,Service division,Expenditure category,Date,Transacton number,Net amount,Supplier,Narrative
Tendring DC,http://statistics.data.gov.uk/id/local-authority-district/22UN,Benefits & Revenues,1580 - Benefits & Revenues,4462 - Legal Fees incl. Bailiffs re debt recovery,28/06/2011,2085625-1,51.49,2101674 - Anglia Courier Express,Courier for Court
Tendring DC,http://statistics.data.gov.uk/id/local-authority-district/22UN,Benefits & Revenues,1580 - Benefits & Revenues,4754 - IT Consultancy,21/06/2011,1044376-1,420,2100116 - Bottomline Technologies Europe Ltd,TRAVEL EXPS RECHARGE 16/5/11 TO 20/5/11
Tendring DC,http://statistics.data.gov.uk/id/local-authority-district/22UN,Benefits & Revenues,1580 - Benefits & Revenues,4754 - IT Consultancy,14/06/2011,2085024-1,5500,2100116 - Bottomline Technologies Europe Ltd,Transform Consultancy
Tendring DC,http://statistics.data.gov.uk/id/local-authority-district/22UN,Benefits & Revenues,1580 - Benefits & Revenues,3312 - Car Allowances - Car Hire,28/06/2011,1044454-1,15,2104746 - CC Hire,CAR HIRE FOR SA
Tendring DC,http://statistics.data.gov.uk/id/local-authority-district/22UN,Benefits & Revenues,1580 - Benefits & Revenues,3312 - Car Allowances - Car Hire,14/06/2011,2085030-1,22.5,2104746 - CC Hire,Car Hire
Tendring DC,http://statistics.data.gov.uk/id/local-authority-district/22UN,Benefits & Revenues,1580 - Benefits & Revenues,3312 - Car Allowances - Car Hire,14/06/2011,2085031-1,30,2104746 - CC Hire,Car Hire
Tendring DC,http://statistics.data.gov.uk/id/local-authority-district/22UN,Benefits & Revenues,1580 - Benefits & Revenues,3312 - Car Allowances - Car Hire,14/06/2011,2085032-1,30,2104746 - CC Hire,CC Hire
Tendring DC,http://statistics.data.gov.uk/id/local-authority-district/22UN,Benefits & Revenues,1580 - Benefits & Revenues,5189 - External Debt Recovery Commission,21/06/2011,1044375-1,268.07,2100381 - Collect Services Ltd,COMM MONIES RECOVERED AND PAID DIRECT
Tendring DC,http://statistics.data.gov.uk/id/local-authority-district/22UN,Benefits & Revenues,1580 - Benefits & Revenues,4462 - Legal Fees incl. Bailiffs re debt recovery,28/06/2011,1044525-1,1365.88,2100381 - Collect Services Ltd,COLLECT SERVICES CT
Tendring DC,http://statistics.data.gov.uk/id/local-authority-district/22UN,Benefits & Revenues,1580 - Benefits & Revenues,4462 - Legal Fees incl. Bailiffs re debt recovery,28/06/2011,1044525-2,-1365.88,2100381 - Collect Services Ltd,COLLECT SERVICES CT
Tendring DC,http://statistics.data.gov.uk/id/local-authority-district/22UN,Benefits & Revenues,1580 - Benefits & Revenues,4462 - Legal Fees incl. Bailiffs re debt recovery,28/06/2011,1044525-3,868.16,2100381 - Collect Services Ltd,COLLECT SERVICES CT
Tendring DC,http://statistics.data.gov.uk/id/local-authority-district/22UN,Benefits & Revenues,1580 - Benefits & Revenues,4462 - Legal Fees incl. Bailiffs re debt recovery,28/06/2011,1044525-4,-868.16,2100381 - Collect Services Ltd,COLLECT SERVICES CT
Tendring DC,http://statistics.data.gov.uk/id/local-authority-district/22UN,Benefits & Revenues,1580 - Benefits & Revenues,4462 - Legal Fees incl. Bailiffs re debt recovery,28/06/2011,1044525-5,295.7,2100381 - Collect Services Ltd,COLLECT SERVICES CT
Tendring DC,http://statistics.data.gov.uk/id/local-authority-district/22UN,Benefits & Revenues,1580 - Benefits & Revenues,4462 - Legal Fees incl. Bailiffs re debt recovery,28/06/2011,1044525-6,-295.7,2100381 - Collect Services Ltd,COLLECT SERVICES CT
Tendring DC,http://statistics.data.gov.uk/id/local-authority-district/22UN,Benefits & Revenues,1580 - Benefits & Revenues,4462 - Legal Fees incl. Bailiffs re debt recovery,07/06/2011,2084846-1,436.5,2100381 - Collect Services Ltd,VAT on Fees Collected
Tendring DC,http://statistics.data.gov.uk/id/local-authority-district/22UN,Benefits & Revenues,1580 - Benefits & Revenues,4462 - Legal Fees incl. Bailiffs re debt recovery,07/06/2011,2084846-2,-436.5,2100381 - Collect Services Ltd,VAT on Fees Collected
Tendring DC,http://statistics.data.gov.uk/id/local-authority-district/22UN,Benefits & Revenues,1580 - Benefits & Revenues,4462 - Legal Fees incl. Bailiffs re debt recovery,07/06/2011,2084846-3,512.65,2100381 - Collect Services Ltd,VAT on Fees Collected
Tendring DC,http://statistics.data.gov.uk/id/local-authority-district/22UN,Benefits & Revenues,1580 - Benefits & Revenues,4462 - Legal Fees incl. Bailiffs re debt recovery,07/06/2011,2084846-4,-512.65,2100381 - Collect Services Ltd,VAT on Fees Collected
Tendring DC,http://statistics.data.gov.uk/id/local-authority-district/22UN,Benefits & Revenues,1580 - Benefits & Revenues,4462 - Legal Fees incl. Bailiffs re debt recovery,07/06/2011,2084846-5,1246.83,2100381 - Collect Services Ltd,VAT on Fees Collected
Tendring DC,http://statistics.data.gov.uk/id/local-authority-district/22UN,Benefits & Revenues,1580 - Benefits & Revenues,4462 - Legal Fees incl. Bailiffs re debt recovery,07/06/2011,2084846-6,-1246.83,2100381 - Collect Services Ltd,VAT on Fees Collected
Tendring DC,http://statistics.data.gov.uk/id/local-authority-district/22UN,Benefits & Revenues,1580 - Benefits & Revenues,4462 - Legal Fees incl. Bailiffs re debt recovery,07/06/2011,2084847-1,50,2100381 - Collect Services Ltd,Vat on Collected
Tendring DC,http://statistics.data.gov.uk/id/local-authority-district/22UN,Benefits & Revenues,1580 - Benefits & Revenues,4462 - Legal Fees incl. Bailiffs re debt recovery,07/06/2011,2084847-2,-50,2100381 - Collect Services Ltd,Vat on Collected
Tendring DC,http://statistics.data.gov.uk/id/local-authority-district/22UN,Benefits & Revenues,1580 - Benefits & Revenues,4462 - Legal Fees incl. Bailiffs re debt recovery,07/06/2011,2084847-3,45,2100381 - Collect Services Ltd,Vat on Collected
Tendring DC,http://statistics.data.gov.uk/id/local-authority-district/22UN,Benefits & Revenues,1580 - Benefits & Revenues,4462 - Legal Fees incl. Bailiffs re debt recovery,07/06/2011,2084847-4,-45,2100381 - Collect Services Ltd,Vat on Collected
Tendring DC,http://statistics.data.gov.uk/id/local-authority-district/22UN,Benefits & Revenues,1580 - Benefits & Revenues,4462 - Legal Fees incl. Bailiffs re debt recovery,14/06/2011,2085130-1,606.34,2100381 - Collect Services Ltd,Collect Services CT
Tendring DC,http://statistics.data.gov.uk/id/local-authority-district/22UN,Benefits & Revenues,1580 - Benefits & Revenues,4462 - Legal Fees incl. Bailiffs re debt recovery,14/06/2011,2085130-2,-606.34,2100381 - Collect Services Ltd,Collect Services CT
Tendring DC,http://statistics.data.gov.uk/id/local-authority-district/22UN,Benefits & Revenues,1580 - Benefits & Revenues,4462 - Legal Fees incl. Bailiffs re debt recovery,14/06/2011,2085130-3,241.39,2100381 - Collect Services Ltd,Collect Services CT
Tendring DC,http://statistics.data.gov.uk/id/local-authority-district/22UN,Benefits & Revenues,1580 - Benefits & Revenues,4462 - Legal Fees incl. Bailiffs re debt recovery,14/06/2011,2085130-4,-241.39,2100381 - Collect Services Ltd,Collect Services CT
Tendring DC,http://statistics.data.gov.uk/id/local-authority-district/22UN,Benefits & Revenues,1580 - Benefits & Revenues,4462 - Legal Fees incl. Bailiffs re debt recovery,14/06/2011,2085130-5,116.81,2100381 - Collect Services Ltd,Collect Services CT
Tendring DC,http://statistics.data.gov.uk/id/local-authority-district/22UN,Benefits & Revenues,1580 - Benefits & Revenues,4462 - Legal Fees incl. Bailiffs re debt recovery,14/06/2011,2085130-6,-116.81,2100381 - Collect Services Ltd,Collect Services CT
Tendring DC,http://statistics.data.gov.uk/id/local-authority-district/22UN,Benefits & Revenues,1580 - Benefits & Revenues,4462 - Legal Fees incl. Bailiffs re debt recovery,14/06/2011,2085227-1,2.35,2100381 - Collect Services Ltd,Collect Services NNDR
Tendring DC,http://statistics.data.gov.uk/id/local-authority-district/22UN,Benefits & Revenues,1580 - Benefits & Revenues,4462 - Legal Fees incl. Bailiffs re debt recovery,14/06/2011,2085227-2,-2.35,2100381 - Collect Services Ltd,Collect Services NNDR
Tendring DC,http://statistics.data.gov.uk/id/local-authority-district/22UN,Benefits & Revenues,1580 - Benefits & Revenues,4462 - Legal Fees incl. Bailiffs re debt recovery,14/06/2011,2085228-1,1175.73,2100381 - Collect Services Ltd,Collect Svs Ct
Tendring DC,http://statistics.data.gov.uk/id/local-authority-district/22UN,Benefits & Revenues,1580 - Benefits & Revenues,4462 - Legal Fees incl. Bailiffs re debt recovery,14/06/2011,2085228-2,-1175.73,2100381 - Collect Services Ltd,Collect Svs Ct
Tendring DC,http://statistics.data.gov.uk/id/local-authority-district/22UN,Benefits & Revenues,1580 - Benefits & Revenues,4462 - Legal Fees incl. Bailiffs re debt recovery,14/06/2011,2085228-3,670.41,2100381 - Collect Services Ltd,Collect Svs Ct
Tendring DC,http://statistics.data.gov.uk/id/local-authority-district/22UN,Benefits & Revenues,1580 - Benefits & Revenues,4462 - Legal Fees incl. Bailiffs re debt recovery,14/06/2011,2085228-4,-670.41,2100381 - Collect Services Ltd,Collect Svs Ct
Tendring DC,http://statistics.data.gov.uk/id/local-authority-district/22UN,Benefits & Revenues,1580 - Benefits & Revenues,4462 - Legal Fees incl. Bailiffs re debt recovery,14/06/2011,2085228-5,158.4,2100381 - Collect Services Ltd,Collect Svs Ct
Tendring DC,http://statistics.data.gov.uk/id/local-authority-district/22UN,Benefits & Revenues,1580 - Benefits & Revenues,4462 - Legal Fees incl. Bailiffs re debt recovery,14/06/2011,2085228-6,-158.4,2100381 - Collect Services Ltd,Collect Svs Ct
Tendring DC,http://statistics.data.gov.uk/id/local-authority-district/22UN,Benefits & Revenues,1580 - Benefits & Revenues,4462 - Legal Fees incl. Bailiffs re debt recovery,16/06/2011,2085364-1,7,2105795 - Companies House,Companies Hse
Tendring DC,http://statistics.data.gov.uk/id/local-authority-district/22UN,Benefits & Revenues,1580 - Benefits & Revenues,4462 - Legal Fees incl. Bailiffs re debt recovery,01/06/2011,2085044-1,4508,2100304 - CO-OP Bank,Court Fees
Tendring DC,http://statistics.data.gov.uk/id/local-authority-district/22UN,Benefits & Revenues,1580 - Benefits & Revenues,4462 - Legal Fees incl. Bailiffs re debt recovery,01/06/2011,2085044-2,12.22,2100304 - CO-OP Bank,Care Pack
Tendring DC,http://statistics.data.gov.uk/id/local-authority-district/22UN,Benefits & Revenues,1580 - Benefits & Revenues,4753 - Computer - Application Software,01/06/2011,2085044-3,440,2100304 - CO-OP Bank,Refreshments for Essex Recovery Meeting
Tendring DC,http://statistics.data.gov.uk/id/local-authority-district/22UN,Benefits & Revenues,7820 - Concessionary Bus Passes,4570 - Bus Passes - Operators Reimbursment,14/06/2011,1044307-1,2446.16,2100498 - Essex County Council,CONC FARES MAR 11 TEN FAREDEAL
Tendring DC,http://statistics.data.gov.uk/id/local-authority-district/22UN,Benefits & Revenues,7820 - Concessionary Bus Passes,4604 - Hired Services - Purchase of Passes,14/06/2011,1044308-1,840.42,2100498 - Essex County Council,CONC FARES 10 SMARTCARD MAR 11
Tendring DC,http://statistics.data.gov.uk/id/local-authority-district/22UN,Benefits & Revenues,1580 - Benefits & Revenues,4300 - Printing & Stationery,28/06/2011,2085627-1,6000,2104631 - Financial Data Management Ltd,Annual Billing 11/12 Part Payment
Tendring DC,http://statistics.data.gov.uk/id/local-authority-district/22UN,Benefits & Revenues,1580 - Benefits & Revenues,4635 - Cash Collection Contract,21/06/2011,1044401-1,1024.65,2101233 - G4S Cash Services (UK) Limited,G4S JULY 2011
Tendring DC,http://statistics.data.gov.uk/id/local-authority-district/22UN,Benefits & Revenues,8520 - Frinton & Walton Swimming Pool,4635 - Cash Collection Contract,21/06/2011,1044401-10,139.13,2101233 - G4S Cash Services (UK) Limited,G4S JULY 2011
Tendring DC,http://statistics.data.gov.uk/id/local-authority-district/22UN,Benefits & Revenues,5860 - Manningtree Sports Centre,4635 - Cash Collection Contract,21/06/2011,1044401-11,69.57,2101233 - G4S Cash Services (UK) Limited,G4S JULY 2011
Tendring DC,http://statistics.data.gov.uk/id/local-authority-district/22UN,Benefits & Revenues,5820 - Harwich Sports Centre,4635 - Cash Collection Contract,21/06/2011,1044401-12,69.57,2101233 - G4S Cash Services (UK) Limited,G4S JULY 2011
Tendring DC,http://statistics.data.gov.uk/id/local-authority-district/22UN,Benefits & Revenues,5260 - Rent Collection And Accounting,4635 - Cash Collection Contract,21/06/2011,1044401-2,260.26,2101233 - G4S Cash Services (UK) Limited,G4S JULY 2011
Tendring DC,http://statistics.data.gov.uk/id/local-authority-district/22UN,Benefits & Revenues,5260 - Rent Collection And Accounting,4635 - Cash Collection Contract,21/06/2011,1044401-3,42.26,2101233 - G4S Cash Services (UK) Limited,G4S JULY 2011
Tendring DC,http://statistics.data.gov.uk/id/local-authority-district/22UN,Benefits & Revenues,1560 - Cashiers,4635 - Cash Collection Contract,21/06/2011,1044401-4,63.02,2101233 - G4S Cash Services (UK) Limited,G4S JULY 2011
Tendring DC,http://statistics.data.gov.uk/id/local-authority-district/22UN,Benefits & Revenues,8025 - Car Parks - Off St,4635 - Cash Collection Contract,21/06/2011,1044401-5,147.99,2101233 - G4S Cash Services (UK) Limited,G4S JULY 2011
Tendring DC,http://statistics.data.gov.uk/id/local-authority-district/22UN,Benefits & Revenues,8530 - Brightlingsea Swimming Pool,4635 - Cash Collection Contract,21/06/2011,1044401-6,69.57,2101233 - G4S Cash Services (UK) Limited,G4S JULY 2011
Tendring DC,http://statistics.data.gov.uk/id/local-authority-district/22UN,Benefits & Revenues,5340 - Communal Central Heating,4635 - Cash Collection Contract,21/06/2011,1044401-7,208.7,2101233 - G4S Cash Services (UK) Limited,G4S JULY 2011
Tendring DC,http://statistics.data.gov.uk/id/local-authority-district/22UN,Benefits & Revenues,8510 - Dovercourt Swimming Pool & A.W.F.,4635 - Cash Collection Contract,21/06/2011,1044401-8,139.13,2101233 - G4S Cash Services (UK) Limited,G4S JULY 2011
Tendring DC,http://statistics.data.gov.uk/id/local-authority-district/22UN,Benefits & Revenues,5800 - Brightlingsea Sports Centre,4635 - Cash Collection Contract,21/06/2011,1044401-9,69.57,2101233 - G4S Cash Services (UK) Limited,G4S JULY 2011
Tendring DC,http://statistics.data.gov.uk/id/local-authority-district/22UN,Benefits & Revenues,1580 - Benefits & Revenues,4462 - Legal Fees incl. Bailiffs re debt recovery,14/06/2011,2085193-1,5,2107058 - HMCS,Probate Search
Tendring DC,http://statistics.data.gov.uk/id/local-authority-district/22UN,Benefits & Revenues,1580 - Benefits & Revenues,4300 - Printing & Stationery,07/06/2011,2084780-1,205,2110569 - Hound Envelopes Ltd,1st Class Envelopes
Tendring DC,http://statistics.data.gov.uk/id/local-authority-district/22UN,Benefits & Revenues,1580 - Benefits & Revenues,4300 - Printing & Stationery,28/06/2011,2085626-1,786.5,2110569 - Hound Envelopes Ltd,2nd Class Envelopes 50000
Tendring DC,http://statistics.data.gov.uk/id/local-authority-district/22UN,Benefits & Revenues,1560 - Cashiers,4300 - Printing & Stationery,07/06/2011,1044152-1,3.46,2110099 - Lyreco UK Ltd,BATTERIES CASHIERS
Tendring DC,http://statistics.data.gov.uk/id/local-authority-district/22UN,Benefits & Revenues,1580 - Benefits & Revenues,4300 - Printing & Stationery,28/06/2011,1044510-1,-11.62,2110099 - Lyreco UK Ltd,REFUND FOR UNWANTED ENVELOPES
Tendring DC,http://statistics.data.gov.uk/id/local-authority-district/22UN,Benefits & Revenues,1580 - Benefits & Revenues,4300 - Printing & Stationery,28/06/2011,1044516-1,2.38,2110099 - Lyreco UK Ltd,ENVELOPES
Tendring DC,http://statistics.data.gov.uk/id/local-authority-district/22UN,Benefits & Revenues,1560 - Cashiers,4300 - Printing & Stationery,28/06/2011,1044517-1,9.52,2110099 - Lyreco UK Ltd,ENVELOPES
Tendring DC,http://statistics.data.gov.uk/id/local-authority-district/22UN,Benefits & Revenues,1580 - Benefits & Revenues,4300 - Printing & Stationery,28/06/2011,1044518-1,12.34,2110099 - Lyreco UK Ltd,ENVELOPES AND PENS
Tendring DC,http://statistics.data.gov.uk/id/local-authority-district/22UN,Benefits & Revenues,1580 - Benefits & Revenues,4300 - Printing & Stationery,14/06/2011,2085129-1,8.28,2110099 - Lyreco UK Ltd,Stationery
Tendring DC,http://statistics.data.gov.uk/id/local-authority-district/22UN,Benefits & Revenues,1580 - Benefits & Revenues,4753 - Computer - Application Software,07/06/2011,2084848-1,117.34,2101204 - Northgate Information Solutions UK Ltd,Expenses
Tendring DC,http://statistics.data.gov.uk/id/local-authority-district/22UN,Benefits & Revenues,1580 - Benefits & Revenues,4753 - Computer - Application Software,07/06/2011,2084849-1,101.99,2101204 - Northgate Information Solutions UK Ltd,Expenses
Tendring DC,http://statistics.data.gov.uk/id/local-authority-district/22UN,Benefits & Revenues,1580 - Benefits & Revenues,4094 - Other Equipment Hire/Leasing,28/06/2011,2085597-1,56.4,2101111 - Pressure Coolers Limited,Pressure Cooler Quarterly Rental
Tendring DC,http://statistics.data.gov.uk/id/local-authority-district/22UN,Benefits & Revenues,1580 - Benefits & Revenues,4700 - Postage,07/06/2011,2084834-1,1673.97,2101139 - Royal Mail,Outgoing Post May 11
Tendring DC,http://statistics.data.gov.uk/id/local-authority-district/22UN,Benefits & Revenues,1580 - Benefits & Revenues,4700 - Postage,14/06/2011,2085131-1,53.88,2101139 - Royal Mail,Response Plus April/May 11
Tendring DC,http://statistics.data.gov.uk/id/local-authority-district/22UN,Benefits & Revenues,1580 - Benefits & Revenues,4700 - Postage,14/06/2011,2085189-1,1225.32,2101139 - Royal Mail,Royal Mail May 2011
Tendring DC,http://statistics.data.gov.uk/id/local-authority-district/22UN,Benefits & Revenues,1580 - Benefits & Revenues,4300 - Printing & Stationery,28/06/2011,2085596-1,1901.69,2101139 - Royal Mail,Royal Mail Jun 2011
Tendring DC,http://statistics.data.gov.uk/id/local-authority-district/22UN,Benefits & Revenues,1580 - Benefits & Revenues,4355 - Books & Periodicals,28/06/2011,2085595-1,52,2101471 - The Institute of Revenues Rating & Valuation,Bens Overpayment Guide 2011
Tendring DC,http://statistics.data.gov.uk/id/local-authority-district/22UN,Benefits & Revenues,1580 - Benefits & Revenues,4300 - Printing & Stationery,28/06/2011,1044451-1,199.74,2107546 - XMA Limited,HP BLK CARTRIDGE
Tendring DC,http://statistics.data.gov.uk/id/local-authority-district/22UN,Benefits & Revenues,1580 - Benefits & Revenues,4300 - Printing & Stationery,07/06/2011,2084783-1,132.24,2107546 - XMA Limited,HP Laser Jet Cartridge
Tendring DC,http://statistics.data.gov.uk/id/local-authority-district/22UN,Benefits & Revenues,1580 - Benefits & Revenues,4300 - Printing & Stationery,14/06/2011,2085125-1,43.58,2107546 - XMA Limited,HP Black Toner
Tendring DC,http://statistics.data.gov.uk/id/local-authority-district/22UN,Benefits & Revenues,1580 - Benefits & Revenues,4300 - Printing & Stationery,21/06/2011,2085256-1,521.18,2107546 - XMA Limited,Laserjet Cartridges
Tendring DC,http://statistics.data.gov.uk/id/local-authority-district/22UN,Benefits & Revenues,1580 - Benefits & Revenues,1700 - Training - Courses,07/06/2011,2084843-1,380,2102239 - Zebra Business Services,Housing Benefit Workshop
Tendring DC,http://statistics.data.gov.uk/id/local-authority-district/22UN,Community Services,6920 - Youth Initiatives,3300 - Public Transport - Officers,07/06/2011,2084803-1,142,2100768 - A2B Taxis,A2B Taxis
Tendring DC,http://statistics.data.gov.uk/id/local-authority-district/22UN,Community Services,7020 - SSCF - Crime Reduction,4900 - Grants,14/06/2011,2085091-1,5400,2111119 - Amelix Ltd,Fee for School Tours
Tendring DC,http://statistics.data.gov.uk/id/local-authority-district/22UN,Community Services,5360 - Sheltered Units,4000 - Furniture,14/06/2011,2084947-1,17.74,2100048 - Argos Business Solutions,Duvets for Guest Room - Honeycroft
Tendring DC,http://statistics.data.gov.uk/id/local-authority-district/22UN,Community Services,6740 - Careline,3060 - Running Costs - Diesel,14/06/2011,2085122-1,589.02,2101825 - ARVAL PHH,Fuel Cards - April - May
Tendring DC,http://statistics.data.gov.uk/id/local-authority-district/22UN,Community Services,5360 - Sheltered Units,4601 - Hired services - Cleaning,28/06/2011,2085678-1,60,2107707 - ASP Cleaning Ltd,Cleaning at Kate Daniels hse
Tendring DC,http://statistics.data.gov.uk/id/local-authority-district/22UN,Community Services,1000 - Community Services,4300 - Printing & Stationery,28/06/2011,1044448-1,140.25,2100111 - Banner Business Supplies Ltd,PAPER & ENVELOPES
Tendring DC,http://statistics.data.gov.uk/id/local-authority-district/22UN,Community Services,1000 - Community Services,4300 - Printing & Stationery,07/06/2011,2084813-1,80.3,2100111 - Banner Business Supplies Ltd,Paper & Envelopes
Tendring DC,http://statistics.data.gov.uk/id/local-authority-district/22UN,Community Services,7100 - Community Health/Safety,4300 - Printing & Stationery,07/06/2011,2084813-2,10.68,2100111 - Banner Business Supplies Ltd,Paper & Envelopes
Tendring DC,http://statistics.data.gov.uk/id/local-authority-district/22UN,Community Services,6740 - Careline,2304 - Energy Costs - Electricity,14/06/2011,2085123-1,66.54,2100197 - British Gas Trading Ltd,British Gas Electricity
Tendring DC,http://statistics.data.gov.uk/id/local-authority-district/22UN,Community Services,6740 - Careline,2304 - Energy Costs - Electricity,21/06/2011,2085248-1,66.12,2100197 - British Gas Trading Ltd,B Gas Electricity
Tendring DC,http://statistics.data.gov.uk/id/local-authority-district/22UN,Community Services,6740 - Careline,2304 - Energy Costs - Electricity,21/06/2011,2085249-1,94.39,2100197 - British Gas Trading Ltd,B Gas Elec April
Tendring DC,http://statistics.data.gov.uk/id/local-authority-district/22UN,Community Services,6740 - Careline,2304 - Energy Costs - Electricity,21/06/2011,2085249-2,-12.87,2100197 - British Gas Trading Ltd,B Gas Elec April
Tendring DC,http://statistics.data.gov.uk/id/local-authority-district/22UN,Community Services,5360 - Sheltered Units,2700 - Cleaning Materials,07/06/2011,1044191-1,103.23,2101624 - Bunzl,BUNZL CLEANING CROOKED ELMS
Tendring DC,http://statistics.data.gov.uk/id/local-authority-district/22UN,Community Services,5360 - Sheltered Units,2700 - Cleaning Materials,21/06/2011,1044314-1,93.6,2101624 - Bunzl,BUNZL-VYNTONER
Tendring DC,http://statistics.data.gov.uk/id/local-authority-district/22UN,Community Services,5360 - Sheltered Units,2700 - Cleaning Materials,21/06/2011,1044328-1,-9.29,2101624 - Bunzl,BUNZL-SPENDELLS CR
Tendring DC,http://statistics.data.gov.uk/id/local-authority-district/22UN,Community Services,5360 - Sheltered Units,2700 - Cleaning Materials,07/06/2011,2084882-1,11.68,2101624 - Bunzl,Furniture Polish
Tendring DC,http://statistics.data.gov.uk/id/local-authority-district/22UN,Community Services,5360 - Sheltered Units,2700 - Cleaning Materials,07/06/2011,2084883-1,8.55,2101624 - Bunzl,Bunzl - Belmans
Tendring DC,http://statistics.data.gov.uk/id/local-authority-district/22UN,Community Services,5360 - Sheltered Units,2700 - Cleaning Materials,07/06/2011,2084884-1,137.95,2101624 - Bunzl,Bunzl - belmans
Tendring DC,http://statistics.data.gov.uk/id/local-authority-district/22UN,Community Services,5360 - Sheltered Units,2700 - Cleaning Materials,14/06/2011,2085051-1,107.03,2101624 - Bunzl,Bunzl Groom May 2011
Tendring DC,http://statistics.data.gov.uk/id/local-authority-district/22UN,Community Services,5360 - Sheltered Units,2700 - Cleaning Materials,14/06/2011,2085052-1,164.01,2101624 - Bunzl,Bunzl - Honeycroft May 2011
Tendring DC,http://statistics.data.gov.uk/id/local-authority-district/22UN,Community Services,5360 - Sheltered Units,2700 - Cleaning Materials,28/06/2011,2085674-1,178.87,2101624 - Bunzl,
Tendring DC,http://statistics.data.gov.uk/id/local-authority-district/22UN,Community Services,5360 - Sheltered Units,2700 - Cleaning Materials,28/06/2011,2085675-1,17.8,2101624 - Bunzl,Bunzl Spendells
Tendring DC,http://statistics.data.gov.uk/id/local-authority-district/22UN,Community Services,7020 - SSCF - Crime Reduction,4900 - Grants,14/06/2011,2085225-1,279,2109376 - Childrens Safety Education Foundation,20 Play Safe Books
Tendring DC,http://statistics.data.gov.uk/id/local-authority-district/22UN,Community Services,6800 - Tendring Cab,4912 - Tendring CAB Grant,07/06/2011,2084901-1,27500,2100247 - Citizens Advice Bureau Tendring,CAB Grant
Tendring DC,http://statistics.data.gov.uk/id/local-authority-district/22UN,Community Services,6740 - Careline,1700 - Training - Courses,07/06/2011,1044190-1,800,2111142 - CL Training & Consultancy,LONE WORKING TRAINING
Tendring DC,http://statistics.data.gov.uk/id/local-authority-district/22UN,Community Services,6740 - Careline,1700 - Training - Courses,28/06/2011,2085672-1,800,2111142 - CL Training & Consultancy,Being a Good Professional Training - June
Tendring DC,http://statistics.data.gov.uk/id/local-authority-district/22UN,Community Services,6740 - Careline,5160 - Advertising,14/06/2011,2085053-1,690,2100300 - Codair Ltd,Advert - Official Info Mapping
Tendring DC,http://statistics.data.gov.uk/id/local-authority-district/22UN,Community Services,7020 - SSCF - Crime Reduction,4900 - Grants,14/06/2011,2085054-1,600,2107286 - Community Sport Ltd,Advert - Com Sport
Tendring DC,http://statistics.data.gov.uk/id/local-authority-district/22UN,Community Services,5360 - Sheltered Units,4710 - Telephones - Charges,28/06/2011,2085676-1,65.97,2106704 - Daisy Communications Ltd,Daisy Bill - May 2011
Tendring DC,http://statistics.data.gov.uk/id/local-authority-district/22UN,Community Services,6740 - Careline,1700 - Training - Courses,28/06/2011,2085677-1,50,2100443 - East Of England Local Government Association,Equalities Training
Tendring DC,http://statistics.data.gov.uk/id/local-authority-district/22UN,Community Services,4900 - Street Sweeping,4618 - Hired Services - Environmental Clean ups,07/06/2011,1044188-1,270,2100546 - GCS Alarms,HARD DRIVES & DOCKING STATION
Tendring DC,http://statistics.data.gov.uk/id/local-authority-district/22UN,Community Services,5240 - Managing Tenancies,5249 - Housing ASB Expenses,07/06/2011,2084881-1,250,2100546 - GCS Alarms,Remove & Fit Cameras
Tendring DC,http://statistics.data.gov.uk/id/local-authority-district/22UN,Community Services,7020 - SSCF - Crime Reduction,4900 - Grants,14/06/2011,2085055-1,2105,2100546 - GCS Alarms,New Fibre & removal of cameras
Tendring DC,http://statistics.data.gov.uk/id/local-authority-district/22UN,Community Services,7020 - SSCF - Crime Reduction,4900 - Grants,14/06/2011,2085056-1,95,2100546 - GCS Alarms,Install Fast Response Unit
Tendring DC,http://statistics.data.gov.uk/id/local-authority-district/22UN,Community Services,1880 - Office Accommodation Expenses,2100 - Building Repairs,14/06/2011,2085224-1,90,2100546 - GCS Alarms,Move of Dummy camera
Tendring DC,http://statistics.data.gov.uk/id/local-authority-district/22UN,Community Services,5360 - Sheltered Units,4601 - Hired services - Cleaning,28/06/2011,2085556-1,588.88,REDACTED COMMERCIAL CONFIDENTIALITY,REDACTED COMMERCIAL CONFIDENTIALITY
Tendring DC,http://statistics.data.gov.uk/id/local-authority-district/22UN,Community Services,5360 - Sheltered Units,4601 - Hired services - Cleaning,28/06/2011,2085557-1,314.5,REDACTED COMMERCIAL CONFIDENTIALITY,REDACTED COMMERCIAL CONFIDENTIALITY
Tendring DC,http://statistics.data.gov.uk/id/local-authority-district/22UN,Community Services,5360 - Sheltered Units,4601 - Hired services - Cleaning,28/06/2011,2085679-1,51,REDACTED COMMERCIAL CONFIDENTIALITY,REDACTED COMMERCIAL CONFIDENTIALITY
Tendring DC,http://statistics.data.gov.uk/id/local-authority-district/22UN,Community Services,1000 - Community Services,4300 - Printing & Stationery,07/06/2011,1044189-1,2.46,2110099 - Lyreco UK Ltd,LYRECO CLIP FOLDERS
Tendring DC,http://statistics.data.gov.uk/id/local-authority-district/22UN,Community Services,5360 - Sheltered Units,4000 - Furniture,07/06/2011,2084885-1,1.1,2110099 - Lyreco UK Ltd,Lyreco - May 2011
Tendring DC,http://statistics.data.gov.uk/id/local-authority-district/22UN,Community Services,5360 - Sheltered Units,4000 - Furniture,07/06/2011,2084885-2,0.5,2110099 - Lyreco UK Ltd,Lyreco - May 2011
Tendring DC,http://statistics.data.gov.uk/id/local-authority-district/22UN,Community Services,1000 - Community Services,4300 - Printing & Stationery,07/06/2011,2084885-3,4.34,2110099 - Lyreco UK Ltd,Lyreco - May 2011
Tendring DC,http://statistics.data.gov.uk/id/local-authority-district/22UN,Community Services,5360 - Sheltered Units,4000 - Furniture,07/06/2011,2084885-4,5.31,2110099 - Lyreco UK Ltd,Lyreco - May 2011
Tendring DC,http://statistics.data.gov.uk/id/local-authority-district/22UN,Community Services,1000 - Community Services,4300 - Printing & Stationery,28/06/2011,2085671-1,7.73,2110099 - Lyreco UK Ltd,Stationery for Careline & Scheme
Tendring DC,http://statistics.data.gov.uk/id/local-authority-district/22UN,Community Services,5360 - Sheltered Units,4300 - Printing & Stationery,28/06/2011,2085671-2,0.52,2110099 - Lyreco UK Ltd,Stationery for Careline & Scheme
Tendring DC,http://statistics.data.gov.uk/id/local-authority-district/22UN,Community Services,5360 - Sheltered Units,5500 - Miscellaneous Expenses,21/06/2011,1044326-1,8.64,REDACTED PERSONAL DATA,WINDOW CLEANING REFUND
Tendring DC,http://statistics.data.gov.uk/id/local-authority-district/22UN,Community Services,5360 - Sheltered Units,5500 - Miscellaneous Expenses,21/06/2011,1044325-1,8.64,REDACTED PERSONAL DATA,WINDOW CLEANING REFUND
Tendring DC,http://statistics.data.gov.uk/id/local-authority-district/22UN,Community Services,5360 - Sheltered Units,5500 - Miscellaneous Expenses,21/06/2011,1044324-1,8.64,REDACTED PERSONAL DATA,WINDOW CLEANING REFUND
Tendring DC,http://statistics.data.gov.uk/id/local-authority-district/22UN,Community Services,5360 - Sheltered Units,5500 - Miscellaneous Expenses,21/06/2011,1044323-1,8.64,REDACTED PERSONAL DATA,WINDOW CLEANING REFUND
Tendring DC,http://statistics.data.gov.uk/id/local-authority-district/22UN,Community Services,5360 - Sheltered Units,5500 - Miscellaneous Expenses,21/06/2011,1044321-1,8.64,REDACTED PERSONAL DATA,WINDOW CLEANING REFUND
Tendring DC,http://statistics.data.gov.uk/id/local-authority-district/22UN,Community Services,5360 - Sheltered Units,5500 - Miscellaneous Expenses,21/06/2011,1044322-1,8.64,REDACTED PERSONAL DATA,WINDOW CLEANING REFUND
Tendring DC,http://statistics.data.gov.uk/id/local-authority-district/22UN,Community Services,6740 - Careline,4700 - Postage,28/06/2011,2085681-1,17.5,REDACTED COMMERCIAL CONFIDENTIALITY,REDACTED COMMERCIAL CONFIDENTIALITY
Tendring DC,http://statistics.data.gov.uk/id/local-authority-district/22UN,Community Services,6740 - Careline,4710 - Telephones - Charges,28/06/2011,2085673-1,746.4,2108907 - Southern Communications Ltd,Southern Communications May
Tendring DC,http://statistics.data.gov.uk/id/local-authority-district/22UN,Community Services,5360 - Sheltered Units,4710 - Telephones - Charges,28/06/2011,2085673-10,42.08,2108907 - Southern Communications Ltd,Southern Communications May
Tendring DC,http://statistics.data.gov.uk/id/local-authority-district/22UN,Community Services,5360 - Sheltered Units,4710 - Telephones - Charges,28/06/2011,2085673-11,26.48,2108907 - Southern Communications Ltd,Southern Communications May
Tendring DC,http://statistics.data.gov.uk/id/local-authority-district/22UN,Community Services,5360 - Sheltered Units,4710 - Telephones - Charges,28/06/2011,2085673-2,42.09,2108907 - Southern Communications Ltd,Southern Communications May
Tendring DC,http://statistics.data.gov.uk/id/local-authority-district/22UN,Community Services,5360 - Sheltered Units,4710 - Telephones - Charges,28/06/2011,2085673-3,46.41,2108907 - Southern Communications Ltd,Southern Communications May
Tendring DC,http://statistics.data.gov.uk/id/local-authority-district/22UN,Community Services,5360 - Sheltered Units,4710 - Telephones - Charges,28/06/2011,2085673-4,43.94,2108907 - Southern Communications Ltd,Southern Communications May
Tendring DC,http://statistics.data.gov.uk/id/local-authority-district/22UN,Community Services,5360 - Sheltered Units,4710 - Telephones - Charges,28/06/2011,2085673-5,40.99,2108907 - Southern Communications Ltd,Southern Communications May
Tendring DC,http://statistics.data.gov.uk/id/local-authority-district/22UN,Community Services,5360 - Sheltered Units,4710 - Telephones - Charges,28/06/2011,2085673-6,52.78,2108907 - Southern Communications Ltd,Southern Communications May
Tendring DC,http://statistics.data.gov.uk/id/local-authority-district/22UN,Community Services,5360 - Sheltered Units,4710 - Telephones - Charges,28/06/2011,2085673-7,24.76,2108907 - Southern Communications Ltd,Southern Communications May
Tendring DC,http://statistics.data.gov.uk/id/local-authority-district/22UN,Community Services,5360 - Sheltered Units,4710 - Telephones - Charges,28/06/2011,2085673-8,45.58,2108907 - Southern Communications Ltd,Southern Communications May
Tendring DC,http://statistics.data.gov.uk/id/local-authority-district/22UN,Community Services,5360 - Sheltered Units,4710 - Telephones - Charges,28/06/2011,2085673-9,49.68,2108907 - Southern Communications Ltd,Southern Communications May
Tendring DC,http://statistics.data.gov.uk/id/local-authority-district/22UN,Community Services,9900 - General Fund Balance Sheet,B382 - Rechargeable Works - Other,14/06/2011,1044226-1,7.5,2101314 - T V Licensing,TV LICENCE-VYNTONER
Tendring DC,http://statistics.data.gov.uk/id/local-authority-district/22UN,Community Services,7020 - SSCF - Crime Reduction,4900 - Grants,28/06/2011,2085680-1,300,REDACTED COMMERCIAL CONFIDENTIALITY,REDACTED COMMERCIAL CONFIDENTIALITY
Tendring DC,http://statistics.data.gov.uk/id/local-authority-district/22UN,Community Services,5360 - Sheltered Units,4000 - Furniture,07/06/2011,1044126-1,38,2101474 - Thompson Cooper Ltd,HOOVER BAGS & SHOWER MATS
Tendring DC,http://statistics.data.gov.uk/id/local-authority-district/22UN,Community Services,5360 - Sheltered Units,4000 - Furniture,07/06/2011,1044126-2,35.7,2101474 - Thompson Cooper Ltd,HOOVER BAGS & SHOWER MATS
Tendring DC,http://statistics.data.gov.uk/id/local-authority-district/22UN,Community Services,5360 - Sheltered Units,4000 - Furniture,07/06/2011,1044128-1,5.99,2101474 - Thompson Cooper Ltd,HOOVER BAGS & SHOWER MATS
Tendring DC,http://statistics.data.gov.uk/id/local-authority-district/22UN,Community Services,5360 - Sheltered Units,4000 - Furniture,07/06/2011,1044128-2,9.5,2101474 - Thompson Cooper Ltd,HOOVER BAGS & SHOWER MATS
Tendring DC,http://statistics.data.gov.uk/id/local-authority-district/22UN,Community Services,5360 - Sheltered Units,4000 - Furniture,14/06/2011,2085121-1,38.24,2107546 - XMA Limited,Ink for Shelter housing
Tendring DC,http://statistics.data.gov.uk/id/local-authority-district/22UN,Community Services,5360 - Sheltered Units,4000 - Furniture,21/06/2011,2085255-1,19.12,2107546 - XMA Limited,XMA Ink for Schemes
Tendring DC,http://statistics.data.gov.uk/id/local-authority-district/22UN,Corporate Performance,1580 - Benefits & Revenues,4718 - Fixed Communication Lines,14/06/2011,2085048-1,9.27,2106860 - Avanquest UK Ltd,Text Messaging
Tendring DC,http://statistics.data.gov.uk/id/local-authority-district/22UN,Corporate Performance,1100 - Corporate Performance,4300 - Printing & Stationery,28/06/2011,1044447-1,117.2,2100111 - Banner Business Supplies Ltd,BANNER
Tendring DC,http://statistics.data.gov.uk/id/local-authority-district/22UN,Corporate Performance,1760 - IT Direct Service Costs,4715 - Data Communication Charge,28/06/2011,1044531-1,46.96,2100168 - British Telecommunications plc,3518 8878 QTR
Tendring DC,http://statistics.data.gov.uk/id/local-authority-district/22UN,Corporate Performance,1760 - IT Direct Service Costs,4715 - Data Communication Charge,28/06/2011,1044532-1,46.96,2100168 - British Telecommunications plc,3527 3347 QTR 1
Tendring DC,http://statistics.data.gov.uk/id/local-authority-district/22UN,Corporate Performance,1760 - IT Direct Service Costs,4715 - Data Communication Charge,28/06/2011,1044533-1,46.96,2100168 - British Telecommunications plc,3440 1625 QTR 1
Tendring DC,http://statistics.data.gov.uk/id/local-authority-district/22UN,Corporate Performance,1760 - IT Direct Service Costs,4715 - Data Communication Charge,28/06/2011,1044534-1,146.88,2100168 - British Telecommunications plc,223734 QTR 1
Tendring DC,http://statistics.data.gov.uk/id/local-authority-district/22UN,Corporate Performance,1760 - IT Direct Service Costs,4715 - Data Communication Charge,21/06/2011,2085300-1,46.96,2100168 - British Telecommunications plc,3972 8270 1st Qtr
Tendring DC,http://statistics.data.gov.uk/id/local-authority-district/22UN,Corporate Performance,1760 - IT Direct Service Costs,4715 - Data Communication Charge,21/06/2011,2085301-1,46.96,2100168 - British Telecommunications plc,
Tendring DC,http://statistics.data.gov.uk/id/local-authority-district/22UN,Corporate Performance,1760 - IT Direct Service Costs,4715 - Data Communication Charge,21/06/2011,2085302-1,46.96,2100168 - British Telecommunications plc,
Tendring DC,http://statistics.data.gov.uk/id/local-authority-district/22UN,Corporate Performance,1760 - IT Direct Service Costs,4715 - Data Communication Charge,21/06/2011,2085303-1,104.97,2100168 - British Telecommunications plc,
Tendring DC,http://statistics.data.gov.uk/id/local-authority-district/22UN,Corporate Performance,1760 - IT Direct Service Costs,4715 - Data Communication Charge,21/06/2011,2085304-1,188.62,2100168 - British Telecommunications plc,Qtr 1
Tendring DC,http://statistics.data.gov.uk/id/local-authority-district/22UN,Corporate Performance,1760 - IT Direct Service Costs,4751 - Hardware & Service Maintenance,28/06/2011,1044530-1,300,2105003 - Hewlett Packard Ltd,THIN CLIENT
Tendring DC,http://statistics.data.gov.uk/id/local-authority-district/22UN,Corporate Performance,1480 - Building Control,4753 - Computer - Application Software,07/06/2011,1044158-1,6620,2106643 - Idox Software Ltd,UNIFORM MAINT
Tendring DC,http://statistics.data.gov.uk/id/local-authority-district/22UN,Corporate Performance,1500 - Development Control & Enforcement,4753 - Computer - Application Software,07/06/2011,1044158-2,11010,2106643 - Idox Software Ltd,UNIFORM MAINT
Tendring DC,http://statistics.data.gov.uk/id/local-authority-district/22UN,Corporate Performance,4360 - Development Control - Chargeable Account,4753 - Computer - Application Software,07/06/2011,1044158-3,2024,2106643 - Idox Software Ltd,UNIFORM MAINT
Tendring DC,http://statistics.data.gov.uk/id/local-authority-district/22UN,Corporate Performance,1520 - Planning Management & Administration,4400 - Maintenance Under Service Agreements,07/06/2011,1044158-4,5000.57,2106643 - Idox Software Ltd,UNIFORM MAINT
Tendring DC,http://statistics.data.gov.uk/id/local-authority-district/22UN,Corporate Performance,1060 - Environmental Services,6320 - IT Services Agreements Payment,07/06/2011,1044158-5,10919.19,2106643 - Idox Software Ltd,UNIFORM MAINT
Tendring DC,http://statistics.data.gov.uk/id/local-authority-district/22UN,Corporate Performance,7300 - Licences - General,4400 - Maintenance Under Service Agreements,07/06/2011,1044158-6,3696.08,2106643 - Idox Software Ltd,UNIFORM MAINT
Tendring DC,http://statistics.data.gov.uk/id/local-authority-district/22UN,Corporate Performance,1930 - Asset Management,4753 - Computer - Application Software,07/06/2011,1044158-7,1496.08,2106643 - Idox Software Ltd,UNIFORM MAINT
Tendring DC,http://statistics.data.gov.uk/id/local-authority-district/22UN,Corporate Performance,1600 - Technical and Procurement - Technical Services,4753 - Computer - Application Software,07/06/2011,1044158-8,2413.08,2106643 - Idox Software Ltd,UNIFORM MAINT
Tendring DC,http://statistics.data.gov.uk/id/local-authority-district/22UN,Corporate Performance,4520 - Land Charges,4753 - Computer - Application Software,07/06/2011,1044158-9,3115,2106643 - Idox Software Ltd,UNIFORM MAINT
Tendring DC,http://statistics.data.gov.uk/id/local-authority-district/22UN,Corporate Performance,H855 - IT Upgrade & Replacement,C200 - Main Contractor,14/06/2011,2085046-1,4350,2106643 - Idox Software Ltd,ASB Module
Tendring DC,http://statistics.data.gov.uk/id/local-authority-district/22UN,Corporate Performance,C387 - Server Upgrade and Maintenance,C275 - Hardware,28/06/2011,1044529-1,4008.32,2102228 - Incoms Systems PLC,DELL MEMORY
Tendring DC,http://statistics.data.gov.uk/id/local-authority-district/22UN,Corporate Performance,1760 - IT Direct Service Costs,4753 - Computer - Application Software,14/06/2011,2085049-1,314.85,2100782 - Insight Direct (uk) Limited,Blackberry Support
Tendring DC,http://statistics.data.gov.uk/id/local-authority-district/22UN,Corporate Performance,1760 - IT Direct Service Costs,4753 - Computer - Application Software,14/06/2011,2085050-1,947.99,2100782 - Insight Direct (uk) Limited,BES
Tendring DC,http://statistics.data.gov.uk/id/local-authority-district/22UN,Corporate Performance,1760 - IT Direct Service Costs,4751 - Hardware & Service Maintenance,21/06/2011,2085298-1,306.98,2100782 - Insight Direct (uk) Limited,Routers
Tendring DC,http://statistics.data.gov.uk/id/local-authority-district/22UN,Corporate Performance,1760 - IT Direct Service Costs,6325 - Additional ICT Services,28/06/2011,1044551-1,688.4,2108077 - Liberata Financial Services Ltd,PORT MOVE-TIC
Tendring DC,http://statistics.data.gov.uk/id/local-authority-district/22UN,Corporate Performance,1760 - IT Direct Service Costs,6320 - IT Services Agreements Payment,07/06/2011,2084892-1,49069.44,2108077 - Liberata Financial Services Ltd,ICT Contract - April 11
Tendring DC,http://statistics.data.gov.uk/id/local-authority-district/22UN,Corporate Performance,1760 - IT Direct Service Costs,6320 - IT Services Agreements Payment,07/06/2011,2084893-1,152.69,2108077 - Liberata Financial Services Ltd,ICT Contract - April 11
Tendring DC,http://statistics.data.gov.uk/id/local-authority-district/22UN,Corporate Performance,1760 - IT Direct Service Costs,6320 - IT Services Agreements Payment,07/06/2011,2084894-1,49069.44,2108077 - Liberata Financial Services Ltd,ICT Contract May 11
Tendring DC,http://statistics.data.gov.uk/id/local-authority-district/22UN,Corporate Performance,1760 - IT Direct Service Costs,6320 - IT Services Agreements Payment,07/06/2011,2084895-1,152.69,2108077 - Liberata Financial Services Ltd,ICT Contract May 11
Tendring DC,http://statistics.data.gov.uk/id/local-authority-district/22UN,Corporate Performance,1760 - IT Direct Service Costs,6320 - IT Services Agreements Payment,14/06/2011,2085203-1,49222.13,2108077 - Liberata Financial Services Ltd,ICT Contract - June 11
Tendring DC,http://statistics.data.gov.uk/id/local-authority-district/22UN,Corporate Performance,1760 - IT Direct Service Costs,6325 - Additional ICT Services,14/06/2011,2085204-1,230,2108077 - Liberata Financial Services Ltd,Ports/E-Learn/Rm Hire
Tendring DC,http://statistics.data.gov.uk/id/local-authority-district/22UN,Corporate Performance,1760 - IT Direct Service Costs,6325 - Additional ICT Services,14/06/2011,2085204-2,776.7,2108077 - Liberata Financial Services Ltd,Ports/E-Learn/Rm Hire
Tendring DC,http://statistics.data.gov.uk/id/local-authority-district/22UN,Corporate Performance,1805 - New Programme Development,1700 - Training - Courses,14/06/2011,2085204-3,3589.6,2108077 - Liberata Financial Services Ltd,Ports/E-Learn/Rm Hire
Tendring DC,http://statistics.data.gov.uk/id/local-authority-district/22UN,Corporate Performance,1060 - Environmental Services,1700 - Training - Courses,14/06/2011,2085204-4,30,2108077 - Liberata Financial Services Ltd,Ports/E-Learn/Rm Hire
Tendring DC,http://statistics.data.gov.uk/id/local-authority-district/22UN,Corporate Performance,1100 - Corporate Performance,4300 - Printing & Stationery,28/06/2011,1044515-1,37.2,2110099 - Lyreco UK Ltd,LYRECO
Tendring DC,http://statistics.data.gov.uk/id/local-authority-district/22UN,Corporate Performance,1760 - IT Direct Service Costs,4751 - Hardware & Service Maintenance,07/06/2011,2084844-1,44,2100902 - Micro Direct,Soundcubes
Tendring DC,http://statistics.data.gov.uk/id/local-authority-district/22UN,Corporate Performance,C387 - Server Upgrade and Maintenance,C275 - Hardware,14/06/2011,2085047-1,4859,2110623 - Midland Computer Services Ltd,Servers
Tendring DC,http://statistics.data.gov.uk/id/local-authority-district/22UN,Corporate Performance,1930 - Asset Management,4460 - Legal & Professional Expenses,14/06/2011,2085208-1,1666,2104823 - NPS Property Consultants  Ltd,
Tendring DC,http://statistics.data.gov.uk/id/local-authority-district/22UN,Corporate Performance,1760 - IT Direct Service Costs,4753 - Computer - Application Software,21/06/2011,2085305-1,4990,2103677 - SecureData Europe Ltd,Security Bundle
Tendring DC,http://statistics.data.gov.uk/id/local-authority-district/22UN,Corporate Performance,1760 - IT Direct Service Costs,4753 - Computer - Application Software,21/06/2011,2085306-1,9828.91,2103677 - SecureData Europe Ltd,Security Software
Tendring DC,http://statistics.data.gov.uk/id/local-authority-district/22UN,Corporate Performance,1760 - IT Direct Service Costs,4751 - Hardware & Service Maintenance,21/06/2011,2085299-1,56.2,2101521 - Videk Limited,USB to PS2 Adaptor
Tendring DC,http://statistics.data.gov.uk/id/local-authority-district/22UN,Corporate Performance,1100 - Corporate Performance,4300 - Printing & Stationery,28/06/2011,1044450-1,18.25,2107546 - XMA Limited,XMA
Tendring DC,http://statistics.data.gov.uk/id/local-authority-district/22UN,Environmental Services,4820 - Public Conveniences,2100 - Building Repairs,21/06/2011,1044411-1,1197.24,2100051 - A L Wicken Carpenter & Building Contractor,WEEK 3
Tendring DC,http://statistics.data.gov.uk/id/local-authority-district/22UN,Environmental Services,4820 - Public Conveniences,2100 - Building Repairs,21/06/2011,1044411-2,499.93,2100051 - A L Wicken Carpenter & Building Contractor,WEEK 3
Tendring DC,http://statistics.data.gov.uk/id/local-authority-district/22UN,Environmental Services,4820 - Public Conveniences,2100 - Building Repairs,28/06/2011,1044550-1,591.71,2100051 - A L Wicken Carpenter & Building Contractor,WEEK C
Tendring DC,http://statistics.data.gov.uk/id/local-authority-district/22UN,Environmental Services,4820 - Public Conveniences,2100 - Building Repairs,28/06/2011,1044550-2,624.94,2100051 - A L Wicken Carpenter & Building Contractor,WEEK C
Tendring DC,http://statistics.data.gov.uk/id/local-authority-district/22UN,Environmental Services,4820 - Public Conveniences,2100 - Building Repairs,07/06/2011,2084899-1,458.38,2100051 - A L Wicken Carpenter & Building Contractor,Week C
Tendring DC,http://statistics.data.gov.uk/id/local-authority-district/22UN,Environmental Services,4820 - Public Conveniences,2100 - Building Repairs,07/06/2011,2084899-2,542.69,2100051 - A L Wicken Carpenter & Building Contractor,Week C
Tendring DC,http://statistics.data.gov.uk/id/local-authority-district/22UN,Environmental Services,4820 - Public Conveniences,2100 - Building Repairs,07/06/2011,2084900-1,251.02,2100051 - A L Wicken Carpenter & Building Contractor,Week D
Tendring DC,http://statistics.data.gov.uk/id/local-authority-district/22UN,Environmental Services,4820 - Public Conveniences,2100 - Building Repairs,07/06/2011,2084900-2,732.39,2100051 - A L Wicken Carpenter & Building Contractor,Week D
Tendring DC,http://statistics.data.gov.uk/id/local-authority-district/22UN,Environmental Services,4820 - Public Conveniences,2100 - Building Repairs,14/06/2011,2085199-1,275.72,2100051 - A L Wicken Carpenter & Building Contractor,Week A
Tendring DC,http://statistics.data.gov.uk/id/local-authority-district/22UN,Environmental Services,4820 - Public Conveniences,2100 - Building Repairs,14/06/2011,2085199-2,613.35,2100051 - A L Wicken Carpenter & Building Contractor,Week A
Tendring DC,http://statistics.data.gov.uk/id/local-authority-district/22UN,Environmental Services,4820 - Public Conveniences,2100 - Building Repairs,14/06/2011,2085200-1,679.68,2100051 - A L Wicken Carpenter & Building Contractor,Roof Repair
Tendring DC,http://statistics.data.gov.uk/id/local-authority-district/22UN,Environmental Services,4840 - Recycling,5467 - Material Collection Payments,21/06/2011,1044381-1,146.2,2107694 - A1 Walton Salvage,A1 WALTON
Tendring DC,http://statistics.data.gov.uk/id/local-authority-district/22UN,Environmental Services,4720 - Dog Warden,6300 - Contract Payment,07/06/2011,2084887-1,4763.82,2100027 - Animal Wardens Ltd,Confee May 11
Tendring DC,http://statistics.data.gov.uk/id/local-authority-district/22UN,Environmental Services,4720 - Dog Warden,6300 - Contract Payment,07/06/2011,2084888-1,235.47,2100027 - Animal Wardens Ltd,Annual Uplifter April 11
Tendring DC,http://statistics.data.gov.uk/id/local-authority-district/22UN,Environmental Services,1060 - Environmental Services,4300 - Printing & Stationery,14/06/2011,1044309-1,606,2100111 - Banner Business Supplies Ltd,BANNER-PAPER
Tendring DC,http://statistics.data.gov.uk/id/local-authority-district/22UN,Environmental Services,4900 - Street Sweeping,4618 - Hired Services - Environmental Clean ups,07/06/2011,2084811-1,48.5,2100111 - Banner Business Supplies Ltd,Banner - Voice Recorder
Tendring DC,http://statistics.data.gov.uk/id/local-authority-district/22UN,Environmental Services,H920 - DFGs,C400 - Grant payments,07/06/2011,2084908-1,50,2107495 - Blue Spark Electrical Ltd,REDACTED PERSONAL DATA
Tendring DC,http://statistics.data.gov.uk/id/local-authority-district/22UN,Environmental Services,H920 - DFGs,C400 - Grant payments,21/06/2011,2085452-1,50,2107495 - Blue Spark Electrical Ltd,REDACTED PERSONAL DATA
Tendring DC,http://statistics.data.gov.uk/id/local-authority-district/22UN,Environmental Services,H920 - DFGs,C400 - Grant payments,21/06/2011,2085453-1,50,2107495 - Blue Spark Electrical Ltd,REDACTED PERSONAL DATA
Tendring DC,http://statistics.data.gov.uk/id/local-authority-district/22UN,Environmental Services,H920 - DFGs,C400 - Grant payments,21/06/2011,2085454-1,50,2107495 - Blue Spark Electrical Ltd,REDACTED PERSONAL DATA
Tendring DC,http://statistics.data.gov.uk/id/local-authority-district/22UN,Environmental Services,H920 - DFGs,C400 - Grant payments,21/06/2011,2085455-1,50,2107495 - Blue Spark Electrical Ltd,REDACTED PERSONAL DATA
Tendring DC,http://statistics.data.gov.uk/id/local-authority-district/22UN,Environmental Services,H920 - DFGs,C400 - Grant payments,21/06/2011,2085459-1,50,2107495 - Blue Spark Electrical Ltd,REDACTED PERSONAL DATA
Tendring DC,http://statistics.data.gov.uk/id/local-authority-district/22UN,Environmental Services,H920 - DFGs,C400 - Grant payments,21/06/2011,2085460-1,50,2107495 - Blue Spark Electrical Ltd,REDACTED PERSONAL DATA
Tendring DC,http://statistics.data.gov.uk/id/local-authority-district/22UN,Environmental Services,H920 - DFGs,C400 - Grant payments,28/06/2011,2085618-1,50,REDACTED PERSONAL DATA,REDACTED PERSONAL DATA
Tendring DC,http://statistics.data.gov.uk/id/local-authority-district/22UN,Environmental Services,4820 - Public Conveniences,2304 - Energy Costs - Electricity,14/06/2011,2084943-1,3076.48,2100197 - British Gas Trading Ltd,Multigas April 11
Tendring DC,http://statistics.data.gov.uk/id/local-authority-district/22UN,Environmental Services,8025 - Car Parks - Off St,2304 - Energy Costs - Electricity,14/06/2011,2084943-2,204.18,2100197 - British Gas Trading Ltd,Multigas April 11
Tendring DC,http://statistics.data.gov.uk/id/local-authority-district/22UN,Environmental Services,4820 - Public Conveniences,2304 - Energy Costs - Electricity,14/06/2011,2084943-3,860.79,2100197 - British Gas Trading Ltd,Multigas April 11
Tendring DC,http://statistics.data.gov.uk/id/local-authority-district/22UN,Environmental Services,4820 - Public Conveniences,2304 - Energy Costs - Electricity,14/06/2011,2084943-4,-2721.8,2100197 - British Gas Trading Ltd,Multigas April 11
Tendring DC,http://statistics.data.gov.uk/id/local-authority-district/22UN,Environmental Services,4820 - Public Conveniences,2304 - Energy Costs - Electricity,14/06/2011,2084943-5,114.37,2100197 - British Gas Trading Ltd,Multigas April 11
Tendring DC,http://statistics.data.gov.uk/id/local-authority-district/22UN,Environmental Services,8025 - Car Parks - Off St,2304 - Energy Costs - Electricity,21/06/2011,2085252-1,185.62,REDACTED COMMERCIAL CONFIDENTIALITY,REDACTED COMMERCIAL CONFIDENTIALITY
Tendring DC,http://statistics.data.gov.uk/id/local-authority-district/22UN,Environmental Services,5960 - Recreation Grounds,2304 - Energy Costs - Electricity,21/06/2011,2085252-2,31.53,REDACTED COMMERCIAL CONFIDENTIALITY,REDACTED COMMERCIAL CONFIDENTIALITY
Tendring DC,http://statistics.data.gov.uk/id/local-authority-district/22UN,Environmental Services,4820 - Public Conveniences,2304 - Energy Costs - Electricity,21/06/2011,2085252-3,4424.03,REDACTED COMMERCIAL CONFIDENTIALITY,REDACTED COMMERCIAL CONFIDENTIALITY
Tendring DC,http://statistics.data.gov.uk/id/local-authority-district/22UN,Environmental Services,4820 - Public Conveniences,2304 - Energy Costs - Electricity,21/06/2011,2085252-4,977.72,REDACTED COMMERCIAL CONFIDENTIALITY,REDACTED COMMERCIAL CONFIDENTIALITY
Tendring DC,http://statistics.data.gov.uk/id/local-authority-district/22UN,Environmental Services,4820 - Public Conveniences,4080 - Materials & Consumables,07/06/2011,2084878-1,22.89,2101624 - Bunzl,Cleaner
Tendring DC,http://statistics.data.gov.uk/id/local-authority-district/22UN,Environmental Services,H920 - DFGs,C400 - Grant payments,07/06/2011,2084907-1,12800,2111311 - Butler Bros Ltd,REDACTED PERSONAL DATA
Tendring DC,http://statistics.data.gov.uk/id/local-authority-district/22UN,Environmental Services,4700 - Defective Drains,2102 - Investigation Costs,07/06/2011,2084874-1,97.5,2108384 - DC Drains & Plumbing Services,D C Drains CB Jaywick Meadow Way
Tendring DC,http://statistics.data.gov.uk/id/local-authority-district/22UN,Environmental Services,4820 - Public Conveniences,2100 - Building Repairs,07/06/2011,2084879-1,58.5,2108384 - DC Drains & Plumbing Services,Taps
Tendring DC,http://statistics.data.gov.uk/id/local-authority-district/22UN,Environmental Services,4820 - Public Conveniences,2100 - Building Repairs,07/06/2011,2084880-1,58.5,2108384 - DC Drains & Plumbing Services,Drains
Tendring DC,http://statistics.data.gov.uk/id/local-authority-district/22UN,Environmental Services,4820 - Public Conveniences,2100 - Building Repairs,21/06/2011,2085267-1,156,2108384 - DC Drains & Plumbing Services,Windows
Tendring DC,http://statistics.data.gov.uk/id/local-authority-district/22UN,Environmental Services,9900 - General Fund Balance Sheet,B382 - Rechargeable Works - Other,28/06/2011,2085622-1,58.5,2108384 - DC Drains & Plumbing Services,D C Drains
Tendring DC,http://statistics.data.gov.uk/id/local-authority-district/22UN,Environmental Services,4700 - Defective Drains,2102 - Investigation Costs,28/06/2011,2085623-1,97.5,2108384 - DC Drains & Plumbing Services,REDACTED PERSONAL DATA
Tendring DC,http://statistics.data.gov.uk/id/local-authority-district/22UN,Environmental Services,4700 - Defective Drains,2102 - Investigation Costs,28/06/2011,2085624-1,97.5,2108384 - DC Drains & Plumbing Services,REDACTED PERSONAL DATA
Tendring DC,http://statistics.data.gov.uk/id/local-authority-district/22UN,Environmental Services,4900 - Street Sweeping,4618 - Hired Services - Environmental Clean ups,28/06/2011,2085639-1,58.5,2108384 - DC Drains & Plumbing Services,DC Drains - P K Food
Tendring DC,http://statistics.data.gov.uk/id/local-authority-district/22UN,Environmental Services,4660 - Public Health,4355 - Books & Periodicals,14/06/2011,2085194-1,550,2104450 - EHRB,
Tendring DC,http://statistics.data.gov.uk/id/local-authority-district/22UN,Environmental Services,4820 - Public Conveniences,2304 - Energy Costs - Electricity,14/06/2011,2085100-1,104.41,2107644 - Eon,Pump A 582 Frinton
Tendring DC,http://statistics.data.gov.uk/id/local-authority-district/22UN,Environmental Services,4820 - Public Conveniences,6300 - Contract Payment,21/06/2011,1044410-1,2201.6,2108969 - Fountains,CONFEE APR-MAY INCREASE
Tendring DC,http://statistics.data.gov.uk/id/local-authority-district/22UN,Environmental Services,4820 - Public Conveniences,6300 - Contract Payment,14/06/2011,2085201-1,21169.26,2108969 - Fountains,Confee May 11
Tendring DC,http://statistics.data.gov.uk/id/local-authority-district/22UN,Environmental Services,1060 - Environmental Services,4000 - Furniture,14/06/2011,1044304-1,486,2108293 - GB Office Group Ltd,GB-FURNITURE
Tendring DC,http://statistics.data.gov.uk/id/local-authority-district/22UN,Environmental Services,4740 - Environmental Protection,4614 - Hired Services - Emission Control,14/06/2011,2085218-1,116.25,2100518 - Gradko International Ltd,Gradko
Tendring DC,http://statistics.data.gov.uk/id/local-authority-district/22UN,Environmental Services,4740 - Environmental Protection,4614 - Hired Services - Emission Control,14/06/2011,2085219-1,24.3,2100518 - Gradko International Ltd,Gradko
Tendring DC,http://statistics.data.gov.uk/id/local-authority-district/22UN,Environmental Services,4840 - Recycling,5467 - Material Collection Payments,28/06/2011,2085638-1,863.45,2101959 - Harwich Reclaim,May-11
Tendring DC,http://statistics.data.gov.uk/id/local-authority-district/22UN,Environmental Services,4760 - Public Health & Complaints,"4619 - Hired Services - Sampling, Testing & Investigation",07/06/2011,2084845-1,44.4,2103448 - Health Protection Agency,PWS Samples Testing
Tendring DC,http://statistics.data.gov.uk/id/local-authority-district/22UN,Environmental Services,H920 - DFGs,C400 - Grant payments,21/06/2011,2085448-1,1953.93,2101848 - Homecraft Contracts Ltd,REDACTED PERSONAL DATA
Tendring DC,http://statistics.data.gov.uk/id/local-authority-district/22UN,Environmental Services,H920 - DFGs,C400 - Grant payments,28/06/2011,2085617-1,7457.75,REDACTED PERSONAL DATA,REDACTED PERSONAL DATA
Tendring DC,http://statistics.data.gov.uk/id/local-authority-district/22UN,Environmental Services,1060 - Environmental Services,1700 - Training - Courses,28/06/2011,2085578-1,600,2106643 - Idox Software Ltd,Idox Supervisor Course
Tendring DC,http://statistics.data.gov.uk/id/local-authority-district/22UN,Environmental Services,1060 - Environmental Services,1700 - Training - Courses,14/06/2011,1044303-1,98,2111312 - IWM Business Services Ltd,CIWM-CONFERENCE
Tendring DC,http://statistics.data.gov.uk/id/local-authority-district/22UN,Environmental Services,H920 - DFGs,C400 - Grant payments,21/06/2011,2085450-1,2287.55,2110327 - JPS Plumbing & General Building,REDACTED PERSONAL DATA
Tendring DC,http://statistics.data.gov.uk/id/local-authority-district/22UN,Environmental Services,4820 - Public Conveniences,2100 - Building Repairs,21/06/2011,2085266-1,200,2109884 - Lotus Pure Water Window Cleaners,Window Clean
Tendring DC,http://statistics.data.gov.uk/id/local-authority-district/22UN,Environmental Services,1060 - Environmental Services,4300 - Printing & Stationery,21/06/2011,1044378-1,24.78,2110099 - Lyreco UK Ltd,LYRECO
Tendring DC,http://statistics.data.gov.uk/id/local-authority-district/22UN,Environmental Services,1060 - Environmental Services,4300 - Printing & Stationery,28/06/2011,1044514-1,26.33,2110099 - Lyreco UK Ltd,LYRECO
Tendring DC,http://statistics.data.gov.uk/id/local-authority-district/22UN,Environmental Services,1060 - Environmental Services,4300 - Printing & Stationery,07/06/2011,2084873-1,18.34,2110099 - Lyreco UK Ltd,Lyreco - Stationery
Tendring DC,http://statistics.data.gov.uk/id/local-authority-district/22UN,Environmental Services,H920 - DFGs,C400 - Grant payments,21/06/2011,2085458-1,28.75,REDACTED PERSONAL DATA,REDACTED PERSONAL DATA
Tendring DC,http://statistics.data.gov.uk/id/local-authority-district/22UN,Environmental Services,4820 - Public Conveniences,2100 - Building Repairs,28/06/2011,2085620-1,3200,REDACTED PERSONAL DATA,REDACTED PERSONAL DATA
Tendring DC,http://statistics.data.gov.uk/id/local-authority-district/22UN,Environmental Services,H920 - DFGs,C400 - Grant payments,21/06/2011,2085446-1,4832.28,2109199 - One Call Property Maintenance,REDACTED PERSONAL DATA
Tendring DC,http://statistics.data.gov.uk/id/local-authority-district/22UN,Environmental Services,H920 - DFGs,C400 - Grant payments,21/06/2011,2085456-1,11930,2111325 - Pollock Lift,REDACTED PERSONAL DATA
Tendring DC,http://statistics.data.gov.uk/id/local-authority-district/22UN,Environmental Services,9900 - General Fund Balance Sheet,B382 - Rechargeable Works - Other,21/06/2011,1044377-1,6679.5,REDACTED COMMERCIAL CONFIDENTIALITY,REDACTED COMMERCIAL CONFIDENTIALITY
Tendring DC,http://statistics.data.gov.uk/id/local-authority-district/22UN,Environmental Services,4660 - Public Health,4040 - Equipment & Tools,07/06/2011,2084876-1,14.15,2102646 - Screwfix Direct,Screw Fix
Tendring DC,http://statistics.data.gov.uk/id/local-authority-district/22UN,Environmental Services,4820 - Public Conveniences,4080 - Materials & Consumables,07/06/2011,2084877-1,144.83,2102646 - Screwfix Direct,Plungers
Tendring DC,http://statistics.data.gov.uk/id/local-authority-district/22UN,Environmental Services,4840 - Recycling,6299 - Contractors Reuse,21/06/2011,1044379-1,1072.4,2102267 - Tendring Reuse & Employment Enterprise,TREE-MAY 2011
Tendring DC,http://statistics.data.gov.uk/id/local-authority-district/22UN,Environmental Services,H920 - DFGs,C400 - Grant payments,28/06/2011,1044490-1,284.24,REDACTED PERSONAL DATA,REDACTED PERSONAL DATA
Tendring DC,http://statistics.data.gov.uk/id/local-authority-district/22UN,Environmental Services,H920 - DFGs,C400 - Grant payments,28/06/2011,1044491-1,321.02,REDACTED PERSONAL DATA,REDACTED PERSONAL DATA
Tendring DC,http://statistics.data.gov.uk/id/local-authority-district/22UN,Environmental Services,H920 - DFGs,C400 - Grant payments,28/06/2011,1044492-1,343.29,REDACTED PERSONAL DATA,REDACTED PERSONAL DATA
Tendring DC,http://statistics.data.gov.uk/id/local-authority-district/22UN,Environmental Services,H920 - DFGs,C400 - Grant payments,28/06/2011,1044493-1,361.22,REDACTED PERSONAL DATA,REDACTED PERSONAL DATA
Tendring DC,http://statistics.data.gov.uk/id/local-authority-district/22UN,Environmental Services,H920 - DFGs,C400 - Grant payments,28/06/2011,1044494-1,549.02,REDACTED PERSONAL DATA,REDACTED PERSONAL DATA
Tendring DC,http://statistics.data.gov.uk/id/local-authority-district/22UN,Environmental Services,H920 - DFGs,C400 - Grant payments,28/06/2011,1044495-1,399.41,REDACTED PERSONAL DATA,REDACTED PERSONAL DATA
Tendring DC,http://statistics.data.gov.uk/id/local-authority-district/22UN,Environmental Services,H920 - DFGs,C400 - Grant payments,28/06/2011,1044496-1,475.19,REDACTED PERSONAL DATA,REDACTED PERSONAL DATA
Tendring DC,http://statistics.data.gov.uk/id/local-authority-district/22UN,Environmental Services,H920 - DFGs,C400 - Grant payments,28/06/2011,1044497-1,538.77,REDACTED PERSONAL DATA,REDACTED PERSONAL DATA
Tendring DC,http://statistics.data.gov.uk/id/local-authority-district/22UN,Environmental Services,H920 - DFGs,C400 - Grant payments,28/06/2011,1044498-1,339.34,REDACTED PERSONAL DATA,REDACTED PERSONAL DATA
Tendring DC,http://statistics.data.gov.uk/id/local-authority-district/22UN,Environmental Services,H920 - DFGs,C400 - Grant payments,28/06/2011,1044499-1,398.75,REDACTED PERSONAL DATA,REDACTED PERSONAL DATA
Tendring DC,http://statistics.data.gov.uk/id/local-authority-district/22UN,Environmental Services,H920 - DFGs,C400 - Grant payments,28/06/2011,1044500-1,279.83,REDACTED PERSONAL DATA,REDACTED PERSONAL DATA
Tendring DC,http://statistics.data.gov.uk/id/local-authority-district/22UN,Environmental Services,H920 - DFGs,C400 - Grant payments,28/06/2011,1044501-1,431.25,REDACTED PERSONAL DATA,REDACTED PERSONAL DATA
Tendring DC,http://statistics.data.gov.uk/id/local-authority-district/22UN,Environmental Services,H920 - DFGs,C400 - Grant payments,28/06/2011,1044502-1,495.96,REDACTED PERSONAL DATA,REDACTED PERSONAL DATA
Tendring DC,http://statistics.data.gov.uk/id/local-authority-district/22UN,Environmental Services,H920 - DFGs,C400 - Grant payments,28/06/2011,1044503-1,468.3,REDACTED PERSONAL DATA,REDACTED PERSONAL DATA
Tendring DC,http://statistics.data.gov.uk/id/local-authority-district/22UN,Environmental Services,H920 - DFGs,C400 - Grant payments,28/06/2011,1044504-1,463.27,REDACTED PERSONAL DATA,REDACTED PERSONAL DATA
Tendring DC,http://statistics.data.gov.uk/id/local-authority-district/22UN,Environmental Services,H920 - DFGs,C400 - Grant payments,28/06/2011,1044505-1,528.89,REDACTED PERSONAL DATA,REDACTED PERSONAL DATA
Tendring DC,http://statistics.data.gov.uk/id/local-authority-district/22UN,Environmental Services,H920 - DFGs,C400 - Grant payments,28/06/2011,1044506-1,258.5,REDACTED PERSONAL DATA,REDACTED PERSONAL DATA
Tendring DC,http://statistics.data.gov.uk/id/local-authority-district/22UN,Environmental Services,H920 - DFGs,C400 - Grant payments,28/06/2011,1044507-1,159.03,REDACTED PERSONAL DATA,REDACTED PERSONAL DATA
Tendring DC,http://statistics.data.gov.uk/id/local-authority-district/22UN,Environmental Services,H920 - DFGs,C400 - Grant payments,28/06/2011,1044508-1,96.93,REDACTED PERSONAL DATA,REDACTED PERSONAL DATA
Tendring DC,http://statistics.data.gov.uk/id/local-authority-district/22UN,Environmental Services,H920 - DFGs,C400 - Grant payments,28/06/2011,1044509-1,92.13,REDACTED PERSONAL DATA,REDACTED PERSONAL DATA
Tendring DC,http://statistics.data.gov.uk/id/local-authority-district/22UN,Environmental Services,4900 - Street Sweeping,5000 - Other Insurance-Computer equipment &  Loss Of Data,07/06/2011,2084875-1,7730,2101401 - The Guinness Trust,THIA Core Service Provision
Tendring DC,http://statistics.data.gov.uk/id/local-authority-district/22UN,Environmental Services,H920 - DFGs,C400 - Grant payments,21/06/2011,2085447-1,728.84,2101401 - The Guinness Trust,REDACTED PERSONAL DATA
Tendring DC,http://statistics.data.gov.uk/id/local-authority-district/22UN,Environmental Services,H920 - DFGs,C400 - Grant payments,21/06/2011,2085449-1,75.86,2101401 - The Guinness Trust,REDACTED PERSONAL DATA
Tendring DC,http://statistics.data.gov.uk/id/local-authority-district/22UN,Environmental Services,H920 - DFGs,C400 - Grant payments,21/06/2011,2085451-1,245.67,2101401 - The Guinness Trust,REDACTED PERSONAL DATA
Tendring DC,http://statistics.data.gov.uk/id/local-authority-district/22UN,Environmental Services,H920 - DFGs,C400 - Grant payments,21/06/2011,2085457-1,615,2101401 - The Guinness Trust,REDACTED PERSONAL DATA
Tendring DC,http://statistics.data.gov.uk/id/local-authority-district/22UN,Environmental Services,H920 - DFGs,C400 - Grant payments,28/06/2011,2085613-1,656.21,REDACTED PERSONAL DATA,REDACTED PERSONAL DATA
Tendring DC,http://statistics.data.gov.uk/id/local-authority-district/22UN,Environmental Services,H920 - DFGs,C400 - Grant payments,28/06/2011,2085614-1,523.05,REDACTED PERSONAL DATA,REDACTED PERSONAL DATA
Tendring DC,http://statistics.data.gov.uk/id/local-authority-district/22UN,Environmental Services,H920 - DFGs,C400 - Grant payments,28/06/2011,2085615-1,610.98,REDACTED PERSONAL DATA,REDACTED PERSONAL DATA
Tendring DC,http://statistics.data.gov.uk/id/local-authority-district/22UN,Environmental Services,H920 - DFGs,C400 - Grant payments,28/06/2011,2085616-1,476.62,REDACTED PERSONAL DATA,REDACTED PERSONAL DATA
Tendring DC,http://statistics.data.gov.uk/id/local-authority-district/22UN,Environmental Services,H920 - DFGs,C400 - Grant payments,22/06/2011,2085759-1,2297.31,REDACTED PERSONAL DATA,REDACTED PERSONAL DATA
Tendring DC,http://statistics.data.gov.uk/id/local-authority-district/22UN,Environmental Services,4640 - Port Health,4355 - Books & Periodicals,28/06/2011,1044453-1,35.75,2101473 - The Stationery Office Ltd,TSO-SHIP SAN GUIDE
Tendring DC,http://statistics.data.gov.uk/id/local-authority-district/22UN,Environmental Services,4840 - Recycling,6299 - Contractors Reuse,21/06/2011,1044380-1,653.7,2101336 - The Tendring Furniture Scheme,FURN SCHEME MAY 11
Tendring DC,http://statistics.data.gov.uk/id/local-authority-district/22UN,Environmental Services,H920 - DFGs,C400 - Grant payments,07/06/2011,2084906-1,4732.22,2104393 - Trinity Construction Services,REDACTED PERSONAL DATA
Tendring DC,http://statistics.data.gov.uk/id/local-authority-district/22UN,Environmental Services,H920 - DFGs,C400 - Grant payments,28/06/2011,2085619-1,2626.52,REDACTED PERSONAL DATA,REDACTED PERSONAL DATA
Tendring DC,http://statistics.data.gov.uk/id/local-authority-district/22UN,Environmental Services,4590 - HMO Projects,4500 - Consultancy Fees,21/06/2011,2085270-1,3235.56,2110639 - University of Essex,Uni of Essex
Tendring DC,http://statistics.data.gov.uk/id/local-authority-district/22UN,Environmental Services,4590 - HMO Projects,4500 - Consultancy Fees,21/06/2011,2085270-2,2994.38,2110639 - University of Essex,Uni of Essex
Tendring DC,http://statistics.data.gov.uk/id/local-authority-district/22UN,Environmental Services,4840 - Recycling,5495 - Sweepings,21/06/2011,1044402-1,5139.79,2101092 - Veolia ES (UK) Limited,CONFEE ST DISP APRIL 11
Tendring DC,http://statistics.data.gov.uk/id/local-authority-district/22UN,Environmental Services,4840 - Recycling,5495 - Sweepings,21/06/2011,1044403-1,9446.32,2101092 - Veolia ES (UK) Limited,CONFEE ST DISP MAR 11
Tendring DC,http://statistics.data.gov.uk/id/local-authority-district/22UN,Environmental Services,4840 - Recycling,5495 - Sweepings,21/06/2011,1044404-1,5894.53,2101092 - Veolia ES (UK) Limited,CONFEE ST DISP FEB 11
Tendring DC,http://statistics.data.gov.uk/id/local-authority-district/22UN,Environmental Services,4880 - Refuse Collection,6300 - Contract Payment,21/06/2011,1044405-1,137354.51,2101092 - Veolia ES (UK) Limited,CONFEE WASTE MAR 11
Tendring DC,http://statistics.data.gov.uk/id/local-authority-district/22UN,Environmental Services,4880 - Refuse Collection,6300 - Contract Payment,21/06/2011,1044406-1,137354.51,2101092 - Veolia ES (UK) Limited,CONFEE WASTE FEB 11
Tendring DC,http://statistics.data.gov.uk/id/local-authority-district/22UN,Environmental Services,4840 - Recycling,6300 - Contract Payment,21/06/2011,1044407-1,90475.81,2101092 - Veolia ES (UK) Limited,CONFEE RECYCLE APR 11
Tendring DC,http://statistics.data.gov.uk/id/local-authority-district/22UN,Environmental Services,4840 - Recycling,6300 - Contract Payment,21/06/2011,1044408-1,91841.17,2101092 - Veolia ES (UK) Limited,CONFEE RECYCLE MAR 11
Tendring DC,http://statistics.data.gov.uk/id/local-authority-district/22UN,Environmental Services,4840 - Recycling,6300 - Contract Payment,21/06/2011,1044409-1,87690.1,2101092 - Veolia ES (UK) Limited,CONFEE RECYCLING FEB 11
Tendring DC,http://statistics.data.gov.uk/id/local-authority-district/22UN,Environmental Services,4880 - Refuse Collection,6300 - Contract Payment,28/06/2011,1044552-1,140104.51,2101092 - Veolia ES (UK) Limited,Confee waste April 11
Tendring DC,http://statistics.data.gov.uk/id/local-authority-district/22UN,Environmental Services,4900 - Street Sweeping,6300 - Contract Payment,28/06/2011,1044553-1,100868.61,2101092 - Veolia ES (UK) Limited,CONFEE FEB 11 STREET
Tendring DC,http://statistics.data.gov.uk/id/local-authority-district/22UN,Environmental Services,5240 - Managing Tenancies,5248 - Estate Management Expenses,28/06/2011,1044553-2,6756.27,2101092 - Veolia ES (UK) Limited,CONFEE FEB 11 STREET
Tendring DC,http://statistics.data.gov.uk/id/local-authority-district/22UN,Environmental Services,5920 - Open Spaces,2106 - Grounds Maintenance Horticultural Svs Programmed,28/06/2011,1044553-3,69.05,2101092 - Veolia ES (UK) Limited,CONFEE FEB 11 STREET
Tendring DC,http://statistics.data.gov.uk/id/local-authority-district/22UN,Environmental Services,4900 - Street Sweeping,6300 - Contract Payment,28/06/2011,1044554-1,105857.54,2101092 - Veolia ES (UK) Limited,CONFEE STREET MARCH 11
Tendring DC,http://statistics.data.gov.uk/id/local-authority-district/22UN,Environmental Services,5920 - Open Spaces,2106 - Grounds Maintenance Horticultural Svs Programmed,28/06/2011,1044554-2,69.06,2101092 - Veolia ES (UK) Limited,CONFEE STREET MARCH 11
Tendring DC,http://statistics.data.gov.uk/id/local-authority-district/22UN,Environmental Services,8025 - Car Parks - Off St,4597 - Hired Services - Payments to Contractors,28/06/2011,1044554-3,40.11,2101092 - Veolia ES (UK) Limited,CONFEE STREET MARCH 11
Tendring DC,http://statistics.data.gov.uk/id/local-authority-district/22UN,Environmental Services,5240 - Managing Tenancies,5248 - Estate Management Expenses,28/06/2011,1044554-4,1644.42,2101092 - Veolia ES (UK) Limited,CONFEE STREET MARCH 11
Tendring DC,http://statistics.data.gov.uk/id/local-authority-district/22UN,Environmental Services,5920 - Open Spaces,2106 - Grounds Maintenance Horticultural Svs Programmed,28/06/2011,1044555-1,69.03,2101092 - Veolia ES (UK) Limited,CONFEE STREET APR 11
Tendring DC,http://statistics.data.gov.uk/id/local-authority-district/22UN,Environmental Services,5240 - Managing Tenancies,5248 - Estate Management Expenses,28/06/2011,1044555-2,280.77,2101092 - Veolia ES (UK) Limited,CONFEE STREET APR 11
Tendring DC,http://statistics.data.gov.uk/id/local-authority-district/22UN,Environmental Services,4900 - Street Sweeping,6300 - Contract Payment,28/06/2011,1044555-3,105221.09,2101092 - Veolia ES (UK) Limited,CONFEE STREET APR 11
Tendring DC,http://statistics.data.gov.uk/id/local-authority-district/22UN,Environmental Services,4820 - Public Conveniences,2500 - Water Services - Metered,14/06/2011,2085209-1,271.25,2101318 - Veolia Water East Ltd,Veolia Cambridge Road
Tendring DC,http://statistics.data.gov.uk/id/local-authority-district/22UN,Environmental Services,4820 - Public Conveniences,2520 - Sewerage & Environmental Charges,14/06/2011,2085209-2,272.17,2101318 - Veolia Water East Ltd,Veolia Cambridge Road
Tendring DC,http://statistics.data.gov.uk/id/local-authority-district/22UN,Environmental Services,4820 - Public Conveniences,2500 - Water Services - Metered,14/06/2011,2085210-1,707.91,2101318 - Veolia Water East Ltd,Veolia Connaught Ave
Tendring DC,http://statistics.data.gov.uk/id/local-authority-district/22UN,Environmental Services,4820 - Public Conveniences,2520 - Sewerage & Environmental Charges,14/06/2011,2085210-2,600.6,2101318 - Veolia Water East Ltd,Veolia Connaught Ave
Tendring DC,http://statistics.data.gov.uk/id/local-authority-district/22UN,Environmental Services,4820 - Public Conveniences,2500 - Water Services - Metered,14/06/2011,2085211-1,103.44,2101318 - Veolia Water East Ltd,Veolia Kiosk
Tendring DC,http://statistics.data.gov.uk/id/local-authority-district/22UN,Environmental Services,4820 - Public Conveniences,2520 - Sewerage & Environmental Charges,14/06/2011,2085211-2,136.72,2101318 - Veolia Water East Ltd,Veolia Kiosk
Tendring DC,http://statistics.data.gov.uk/id/local-authority-district/22UN,Environmental Services,4820 - Public Conveniences,2500 - Water Services - Metered,14/06/2011,2085212-1,142.54,2101318 - Veolia Water East Ltd,Veolia Water B/House
Tendring DC,http://statistics.data.gov.uk/id/local-authority-district/22UN,Environmental Services,4820 - Public Conveniences,2520 - Sewerage & Environmental Charges,14/06/2011,2085212-2,165,2101318 - Veolia Water East Ltd,Veolia Water B/House
Tendring DC,http://statistics.data.gov.uk/id/local-authority-district/22UN,Environmental Services,4820 - Public Conveniences,2500 - Water Services - Metered,14/06/2011,2085213-1,203.19,2101318 - Veolia Water East Ltd,Veolia Water Cliff Pde
Tendring DC,http://statistics.data.gov.uk/id/local-authority-district/22UN,Environmental Services,4820 - Public Conveniences,2520 - Sewerage & Environmental Charges,14/06/2011,2085213-2,200.59,2101318 - Veolia Water East Ltd,Veolia Water Cliff Pde
Tendring DC,http://statistics.data.gov.uk/id/local-authority-district/22UN,Environmental Services,4820 - Public Conveniences,2500 - Water Services - Metered,14/06/2011,2085214-1,603.86,2101318 - Veolia Water East Ltd,Veoia Water Central
Tendring DC,http://statistics.data.gov.uk/id/local-authority-district/22UN,Environmental Services,4820 - Public Conveniences,2520 - Sewerage & Environmental Charges,14/06/2011,2085214-2,516.53,2101318 - Veolia Water East Ltd,Veoia Water Central
Tendring DC,http://statistics.data.gov.uk/id/local-authority-district/22UN,Environmental Services,4820 - Public Conveniences,2500 - Water Services - Metered,14/06/2011,2085215-1,340.68,2101318 - Veolia Water East Ltd,Veolia Water Southcliff
Tendring DC,http://statistics.data.gov.uk/id/local-authority-district/22UN,Environmental Services,4820 - Public Conveniences,2520 - Sewerage & Environmental Charges,14/06/2011,2085215-2,324.88,2101318 - Veolia Water East Ltd,Veolia Water Southcliff
Tendring DC,http://statistics.data.gov.uk/id/local-authority-district/22UN,Environmental Services,4820 - Public Conveniences,2500 - Water Services - Metered,14/06/2011,2085216-1,176.46,2101318 - Veolia Water East Ltd,Veolia Water Naze
Tendring DC,http://statistics.data.gov.uk/id/local-authority-district/22UN,Environmental Services,4820 - Public Conveniences,2520 - Sewerage & Environmental Charges,14/06/2011,2085216-2,192.39,2101318 - Veolia Water East Ltd,Veolia Water Naze
Tendring DC,http://statistics.data.gov.uk/id/local-authority-district/22UN,Environmental Services,4820 - Public Conveniences,2500 - Water Services - Metered,14/06/2011,2085217-1,373.2,2101318 - Veolia Water East Ltd,Veolia Water Pier
Tendring DC,http://statistics.data.gov.uk/id/local-authority-district/22UN,Environmental Services,4820 - Public Conveniences,2520 - Sewerage & Environmental Charges,14/06/2011,2085217-2,354.35,2101318 - Veolia Water East Ltd,Veolia Water Pier
Tendring DC,http://statistics.data.gov.uk/id/local-authority-district/22UN,Environmental Services,4820 - Public Conveniences,2500 - Water Services - Metered,21/06/2011,2085268-1,16.74,2101318 - Veolia Water East Ltd,Veolia Water Old Way
Tendring DC,http://statistics.data.gov.uk/id/local-authority-district/22UN,Environmental Services,4820 - Public Conveniences,2520 - Sewerage & Environmental Charges,21/06/2011,2085268-2,63.5,2101318 - Veolia Water East Ltd,Veolia Water Old Way
Tendring DC,http://statistics.data.gov.uk/id/local-authority-district/22UN,Environmental Services,4820 - Public Conveniences,2500 - Water Services - Metered,21/06/2011,2085269-1,329.74,2101318 - Veolia Water East Ltd,Veolia Water Old Way
Tendring DC,http://statistics.data.gov.uk/id/local-authority-district/22UN,Environmental Services,4820 - Public Conveniences,2520 - Sewerage & Environmental Charges,21/06/2011,2085269-2,266.18,2101318 - Veolia Water East Ltd,Veolia Water Old Way
Tendring DC,http://statistics.data.gov.uk/id/local-authority-district/22UN,Environmental Services,1060 - Environmental Services,4300 - Printing & Stationery,28/06/2011,1044513-1,7.64,2107546 - XMA Limited,XMA LTD
Tendring DC,http://statistics.data.gov.uk/id/local-authority-district/22UN,Environmental Services,1060 - Environmental Services,4300 - Printing & Stationery,14/06/2011,2085231-1,109.59,2107546 - XMA Limited,XMA - Ink
Tendring DC,http://statistics.data.gov.uk/id/local-authority-district/22UN,Financial Services,6620 - Corporate Management - General,5180 - External Audit Fees,07/06/2011,1044166-1,11312,2102829 - Audit Commission,INSTALMENT 1
Tendring DC,http://statistics.data.gov.uk/id/local-authority-district/22UN,Financial Services,6620 - Corporate Management - General,5180 - External Audit Fees,28/06/2011,1044436-1,11313,2102829 - Audit Commission,INSTALMENT 12
Tendring DC,http://statistics.data.gov.uk/id/local-authority-district/22UN,Financial Services,1220 - Financial Management & Administration,4300 - Printing & Stationery,07/06/2011,2084809-1,36.36,2100111 - Banner Business Supplies Ltd,Paper Envelopes
Tendring DC,http://statistics.data.gov.uk/id/local-authority-district/22UN,Financial Services,1200 - Exchequer,4300 - Printing & Stationery,07/06/2011,2084809-2,6.27,2100111 - Banner Business Supplies Ltd,Paper Envelopes
Tendring DC,http://statistics.data.gov.uk/id/local-authority-district/22UN,Financial Services,9900 - General Fund Balance Sheet,B879 - Charges made by Merchant Acquirer,16/06/2011,2085367-1,296.1,2100202 - Capita Business Services Ltd,Capita May 11
Tendring DC,http://statistics.data.gov.uk/id/local-authority-district/22UN,Financial Services,9900 - General Fund Balance Sheet,B879 - Charges made by Merchant Acquirer,16/06/2011,2085367-2,322.84,2100202 - Capita Business Services Ltd,Capita May 11
Tendring DC,http://statistics.data.gov.uk/id/local-authority-district/22UN,Financial Services,9900 - General Fund Balance Sheet,B879 - Charges made by Merchant Acquirer,16/06/2011,2085367-3,275.04,2100202 - Capita Business Services Ltd,Capita May 11
Tendring DC,http://statistics.data.gov.uk/id/local-authority-district/22UN,Financial Services,9900 - General Fund Balance Sheet,B879 - Charges made by Merchant Acquirer,16/06/2011,2085367-4,442.52,2100202 - Capita Business Services Ltd,Capita May 11
Tendring DC,http://statistics.data.gov.uk/id/local-authority-district/22UN,Financial Services,9900 - General Fund Balance Sheet,B879 - Charges made by Merchant Acquirer,16/06/2011,2085367-5,213.84,2100202 - Capita Business Services Ltd,Capita May 11
Tendring DC,http://statistics.data.gov.uk/id/local-authority-district/22UN,Financial Services,9900 - General Fund Balance Sheet,B879 - Charges made by Merchant Acquirer,16/06/2011,2085367-6,67.81,2100202 - Capita Business Services Ltd,Capita May 11
Tendring DC,http://statistics.data.gov.uk/id/local-authority-district/22UN,Financial Services,9900 - General Fund Balance Sheet,B879 - Charges made by Merchant Acquirer,16/06/2011,2085367-7,208.44,2100202 - Capita Business Services Ltd,Capita May 11
Tendring DC,http://statistics.data.gov.uk/id/local-authority-district/22UN,Financial Services,9900 - General Fund Balance Sheet,B879 - Charges made by Merchant Acquirer,16/06/2011,2085367-8,314.44,2100202 - Capita Business Services Ltd,Capita May 11
Tendring DC,http://statistics.data.gov.uk/id/local-authority-district/22UN,Financial Services,1180 - Benefit Fraud Investigation,4597 - Hired Services - Payments to Contractors,21/06/2011,1044361-1,124.8,2109766 - Cintra Ltd,INTERPRETER
Tendring DC,http://statistics.data.gov.uk/id/local-authority-district/22UN,Financial Services,7460 - Economic Promotion,5415 - Event Running Costs,01/06/2011,2085045-1,223.77,2100304 - CO-OP Bank,KLN Visa May 2011
Tendring DC,http://statistics.data.gov.uk/id/local-authority-district/22UN,Financial Services,1220 - Financial Management & Administration,5500 - Miscellaneous Expenses,01/06/2011,2085045-2,195.39,2100304 - CO-OP Bank,KLN Visa May 2011
Tendring DC,http://statistics.data.gov.uk/id/local-authority-district/22UN,Financial Services,6620 - Corporate Management - General,5190 - Bank Commission Charges,01/06/2011,2085045-3,2,2100304 - CO-OP Bank,KLN Visa May 2011
Tendring DC,http://statistics.data.gov.uk/id/local-authority-district/22UN,Financial Services,9900 - General Fund Balance Sheet,B460 - Criminal Records Bureau,09/06/2011,2085042-1,1000,2100395 - Criminal Records Bureau,Criminal Records Check
Tendring DC,http://statistics.data.gov.uk/id/local-authority-district/22UN,Financial Services,9940 - Collection Fund Balance Sheet,B244 - CLG - NNDR Balance,08/06/2011,2084933-1,1104323,2100432 - DCLG,NNDR and RSG
Tendring DC,http://statistics.data.gov.uk/id/local-authority-district/22UN,Financial Services,8985 - Redistributed National Non-Domestic Rate Income,9893 - Redistributed National Non-Domestic Rate Income,08/06/2011,2084933-2,-396989,2100432 - DCLG,NNDR and RSG
Tendring DC,http://statistics.data.gov.uk/id/local-authority-district/22UN,Financial Services,9900 - General Fund Balance Sheet,B382 - Rechargeable Works - Other,28/06/2011,1044524-1,2508.76,2110000 - DWF LLP,WELLS V TDC VAT PL07-02
Tendring DC,http://statistics.data.gov.uk/id/local-authority-district/22UN,Financial Services,9900 - General Fund Balance Sheet,B382 - Rechargeable Works - Other,28/06/2011,1044524-2,1743.54,2110000 - DWF LLP,WELLS V TDC VAT PL07-02
Tendring DC,http://statistics.data.gov.uk/id/local-authority-district/22UN,Financial Services,9900 - General Fund Balance Sheet,B382 - Rechargeable Works - Other,28/06/2011,1044524-3,-4252.3,2110000 - DWF LLP,WELLS V TDC VAT PL07-02
Tendring DC,http://statistics.data.gov.uk/id/local-authority-district/22UN,Financial Services,8660 - Fit for Purpose,5500 - Miscellaneous Expenses,07/06/2011,2084902-1,47773.71,REDACTED PERSONAL DATA,REDACTED PERSONAL DATA
Tendring DC,http://statistics.data.gov.uk/id/local-authority-district/22UN,Financial Services,8971 - MIRS - Contributions Payable to the Pension Scheme,1822 - Superannuation - Port Health Pensions etc.,07/06/2011,2084915-1,722.95,2100419 - Essex County Council,Port Health Authority
Tendring DC,http://statistics.data.gov.uk/id/local-authority-district/22UN,Financial Services,8971 - MIRS - Contributions Payable to the Pension Scheme,1816 - Superannuation Deficiency Contribution,07/06/2011,2084924-4,137750,2100419 - Essex County Council,Pension 00013
Tendring DC,http://statistics.data.gov.uk/id/local-authority-district/22UN,Financial Services,8971 - MIRS - Contributions Payable to the Pension Scheme,1810 - Superannuation  -  Financial Strain/Added Years,07/06/2011,2084924-5,16791.84,2100419 - Essex County Council,Pension 00013
Tendring DC,http://statistics.data.gov.uk/id/local-authority-district/22UN,Financial Services,6620 - Corporate Management - General,4355 - Books & Periodicals,07/06/2011,2084872-1,102,2105862 - F L Memo Ltd,VAT Book and Online
Tendring DC,http://statistics.data.gov.uk/id/local-authority-district/22UN,Financial Services,6620 - Corporate Management - General,4355 - Books & Periodicals,07/06/2011,2084872-2,9,2105862 - F L Memo Ltd,VAT Book and Online
Tendring DC,http://statistics.data.gov.uk/id/local-authority-district/22UN,Financial Services,1660 - Other Apportionable Overheads,4609 - Child Care Vouchers Management Fee,07/06/2011,1044195-2,87.92,2104459 - Fideliti Ltd,JUNE 11 VOUCHERS
Tendring DC,http://statistics.data.gov.uk/id/local-authority-district/22UN,Financial Services,1180 - Benefit Fraud Investigation,4460 - Legal & Professional Expenses,21/06/2011,1044362-1,1517.7,2100672 - Harris Cuffaro & Nichols Solicitors,SOLICITOR COSTS
Tendring DC,http://statistics.data.gov.uk/id/local-authority-district/22UN,Financial Services,1180 - Benefit Fraud Investigation,4460 - Legal & Professional Expenses,28/06/2011,1044526-1,539.7,2100672 - Harris Cuffaro & Nichols Solicitors,SOLICITOR COSTS
Tendring DC,http://statistics.data.gov.uk/id/local-authority-district/22UN,Financial Services,1180 - Benefit Fraud Investigation,4460 - Legal & Professional Expenses,28/06/2011,1044527-1,423.6,2100672 - Harris Cuffaro & Nichols Solicitors,SOLICITOR COSTS
Tendring DC,http://statistics.data.gov.uk/id/local-authority-district/22UN,Financial Services,1180 - Benefit Fraud Investigation,4460 - Legal & Professional Expenses,28/06/2011,1044528-1,740.7,2100672 - Harris Cuffaro & Nichols Solicitors,SOLICITOR COSTS
Tendring DC,http://statistics.data.gov.uk/id/local-authority-district/22UN,Financial Services,1180 - Benefit Fraud Investigation,4460 - Legal & Professional Expenses,21/06/2011,2085272-1,529.5,2100672 - Harris Cuffaro & Nichols Solicitors,Solicitor Costs
Tendring DC,http://statistics.data.gov.uk/id/local-authority-district/22UN,Financial Services,1300 - Solicitors Service Unit,4466 - Legal & Professional Expenses - Land Registry,09/06/2011,2085043-1,71,2100636 - HM Land Registry,Land Reg Enquiries
Tendring DC,http://statistics.data.gov.uk/id/local-authority-district/22UN,Financial Services,5140 - Homelessness,4680 - Bed & Breakfast Accommodation,09/06/2011,2085043-10,40,2100636 - HM Land Registry,Land Reg Enquiries
Tendring DC,http://statistics.data.gov.uk/id/local-authority-district/22UN,Financial Services,4660 - Public Health,5500 - Miscellaneous Expenses,09/06/2011,2085043-2,34,2100636 - HM Land Registry,Land Reg Enquiries
Tendring DC,http://statistics.data.gov.uk/id/local-authority-district/22UN,Financial Services,1580 - Benefits & Revenues,4462 - Legal Fees incl. Bailiffs re debt recovery,09/06/2011,2085043-3,176,2100636 - HM Land Registry,Land Reg Enquiries
Tendring DC,http://statistics.data.gov.uk/id/local-authority-district/22UN,Financial Services,1580 - Benefits & Revenues,4462 - Legal Fees incl. Bailiffs re debt recovery,09/06/2011,2085043-4,12,2100636 - HM Land Registry,Land Reg Enquiries
Tendring DC,http://statistics.data.gov.uk/id/local-authority-district/22UN,Financial Services,4300 - Dangerous Structures,4615 - Hired Services - Building Services,09/06/2011,2085043-5,8,2100636 - HM Land Registry,Land Reg Enquiries
Tendring DC,http://statistics.data.gov.uk/id/local-authority-district/22UN,Financial Services,1520 - Planning Management & Administration,4624 - Hired Services - Land Registry,09/06/2011,2085043-6,98,2100636 - HM Land Registry,Land Reg Enquiries
Tendring DC,http://statistics.data.gov.uk/id/local-authority-district/22UN,Financial Services,1520 - Planning Management & Administration,4624 - Hired Services - Land Registry,09/06/2011,2085043-7,42,2100636 - HM Land Registry,Land Reg Enquiries
Tendring DC,http://statistics.data.gov.uk/id/local-authority-district/22UN,Financial Services,H910 - Renovation Grants,C400 - Grant payments,09/06/2011,2085043-8,28,2100636 - HM Land Registry,Land Reg Enquiries
Tendring DC,http://statistics.data.gov.uk/id/local-authority-district/22UN,Financial Services,4750 - Housing Disrepair,4080 - Materials & Consumables,09/06/2011,2085043-9,72,2100636 - HM Land Registry,Land Reg Enquiries
Tendring DC,http://statistics.data.gov.uk/id/local-authority-district/22UN,Financial Services,6640 - Treasury Management,5192 - Brokerage,15/06/2011,1044462-2,510.86,2107040 - King & Shaxson Limited,FEES RE TREASURY MANAGEMENT
Tendring DC,http://statistics.data.gov.uk/id/local-authority-district/22UN,Financial Services,8915 - Interest & Investment Income,9600 - External Investment Interest Receivable,15/06/2011,1044462-3,-6258.09,2107040 - King & Shaxson Limited,FEES RE TREASURY MANAGEMENT
Tendring DC,http://statistics.data.gov.uk/id/local-authority-district/22UN,Financial Services,1220 - Financial Management & Administration,4300 - Printing & Stationery,07/06/2011,1044168-1,0.3,2110099 - Lyreco UK Ltd,STATIONERY
Tendring DC,http://statistics.data.gov.uk/id/local-authority-district/22UN,Financial Services,1200 - Exchequer,4300 - Printing & Stationery,07/06/2011,1044168-2,25.32,2110099 - Lyreco UK Ltd,STATIONERY
Tendring DC,http://statistics.data.gov.uk/id/local-authority-district/22UN,Financial Services,1120 - Accountancy,4300 - Printing & Stationery,07/06/2011,1044168-3,13.35,2110099 - Lyreco UK Ltd,STATIONERY
Tendring DC,http://statistics.data.gov.uk/id/local-authority-district/22UN,Financial Services,1180 - Benefit Fraud Investigation,4300 - Printing & Stationery,21/06/2011,2085271-1,21.27,2110099 - Lyreco UK Ltd,Stationery
Tendring DC,http://statistics.data.gov.uk/id/local-authority-district/22UN,Financial Services,6540 - Members Allowance,5160 - Advertising,14/06/2011,2085226-1,2034.86,2100989 - Newsquest (London) Ltd,Advert in newspaper
Tendring DC,http://statistics.data.gov.uk/id/local-authority-district/22UN,Financial Services,9900 - General Fund Balance Sheet,B869 - Cashiers Suspense Account,21/06/2011,2085470-1,1240.51,2111395 - Places for People,Paid in Error Places for People
Tendring DC,http://statistics.data.gov.uk/id/local-authority-district/22UN,Financial Services,1220 - Financial Management & Administration,4300 - Printing & Stationery,07/06/2011,1044167-1,177.23,2101090 - Ricoh UK Ltd,PHOTOCOPIER CHARGES TO 30.04.11
Tendring DC,http://statistics.data.gov.uk/id/local-authority-district/22UN,Financial Services,1220 - Financial Management & Administration,4300 - Printing & Stationery,07/06/2011,1044167-2,37.52,2101090 - Ricoh UK Ltd,PHOTOCOPIER CHARGES TO 30.04.11
Tendring DC,http://statistics.data.gov.uk/id/local-authority-district/22UN,Financial Services,C272 - Harwich Masterplan,C200 - Main Contractor,28/06/2011,2085520-1,7172.5,2111201 - Tendring Regeneration Ltd,HGP - LV 18
Tendring DC,http://statistics.data.gov.uk/id/local-authority-district/22UN,Financial Services,1200 - Exchequer,4753 - Computer - Application Software,28/06/2011,2085579-1,96,2108181 - Twofold Ltd,Printer Rollers
Tendring DC,http://statistics.data.gov.uk/id/local-authority-district/22UN,Housing Services,5240 - Managing Tenancies,5249 - Housing ASB Expenses,14/06/2011,2084966-1,123,2100027 - Animal Wardens Ltd,Assist & Remove 7 Dogs - Animal Warden
Tendring DC,http://statistics.data.gov.uk/id/local-authority-district/22UN,Housing Services,5240 - Managing Tenancies,5242 - Tenant Relations,28/06/2011,2085546-1,10,2104547 - Antony Williams,ASB Sub Group Meeting on 7 June 2011
Tendring DC,http://statistics.data.gov.uk/id/local-authority-district/22UN,Housing Services,5240 - Managing Tenancies,6625 - Tenants Compensation Scheme,28/06/2011,2085540-1,32,2100057 - Applebys (Removals) Ltd,Removal Costs
Tendring DC,http://statistics.data.gov.uk/id/local-authority-district/22UN,Housing Services,5480 - Repair & Maintenance,4044 - Building & Safety Equipment,14/06/2011,2084946-1,115.97,2100048 - Argos Business Solutions,Argos Delivery
Tendring DC,http://statistics.data.gov.uk/id/local-authority-district/22UN,Housing Services,5480 - Repair & Maintenance,2012 - Responsive Maintenance - Clearance And Cleaning,14/06/2011,2084963-1,90,2107707 - ASP Cleaning Ltd,Spendells Hse
Tendring DC,http://statistics.data.gov.uk/id/local-authority-district/22UN,Housing Services,1240 - Housing Services,4300 - Printing & Stationery,07/06/2011,2084812-1,21.56,2100111 - Banner Business Supplies Ltd,Orange Paper A4
Tendring DC,http://statistics.data.gov.uk/id/local-authority-district/22UN,Housing Services,1240 - Housing Services,4300 - Printing & Stationery,21/06/2011,2085253-1,75.72,2100111 - Banner Business Supplies Ltd,Banner 7/6/11
Tendring DC,http://statistics.data.gov.uk/id/local-authority-district/22UN,Housing Services,5140 - Homelessness,4683 - Other Homelessness Expenses,21/06/2011,2085409-1,457.73,REDACTED PERSONAL DATA,REDACTED PERSONAL DATA
Tendring DC,http://statistics.data.gov.uk/id/local-authority-district/22UN,Housing Services,5480 - Repair & Maintenance,2008 - Responsive Maintenance - Floor Wall And Ceiling Fi,21/06/2011,2085496-1,482,2100117 - Brian Birt Carpets Ltd,Mead House
Tendring DC,http://statistics.data.gov.uk/id/local-authority-district/22UN,Housing Services,5440 - Communal Electricity,2304 - Energy Costs - Electricity,21/06/2011,2085477-1,34.2,2104953 - British Gas Trading Ltd,LL125-131 Clarkes
Tendring DC,http://statistics.data.gov.uk/id/local-authority-district/22UN,Housing Services,5240 - Managing Tenancies,5249 - Housing ASB Expenses,28/06/2011,2085531-1,95.02,2100168 - British Telecommunications plc,DVLA 1/6/11 - 31/8/11
Tendring DC,http://statistics.data.gov.uk/id/local-authority-district/22UN,Housing Services,5220 - Policy & Management,4355 - Books & Periodicals,07/06/2011,2084825-1,129,2104154 - Building,Building Subscription for 2011/12
Tendring DC,http://statistics.data.gov.uk/id/local-authority-district/22UN,Housing Services,5480 - Repair & Maintenance,4044 - Building & Safety Equipment,14/06/2011,2084964-1,174,2107321 - Campbell Associates,Campbell Assoc
Tendring DC,http://statistics.data.gov.uk/id/local-authority-district/22UN,Housing Services,5480 - Repair & Maintenance,4044 - Building & Safety Equipment,28/06/2011,2085534-1,108,2107321 - Campbell Associates,
Tendring DC,http://statistics.data.gov.uk/id/local-authority-district/22UN,Housing Services,5365 - Colne Housing Soc Shel Units,4404 - Service Agreement - Foundry Court,21/06/2011,2085478-1,1465.36,2100342 - Colne Housing Society Ltd,Ironside 4/11 - 6/11
Tendring DC,http://statistics.data.gov.uk/id/local-authority-district/22UN,Housing Services,5140 - Homelessness,4683 - Other Homelessness Expenses,28/06/2011,2085611-1,495,REDACTED PERSONAL DATA,REDACTED PERSONAL DATA
Tendring DC,http://statistics.data.gov.uk/id/local-authority-district/22UN,Housing Services,5260 - Rent Collection And Accounting,4460 - Legal & Professional Expenses,08/06/2011,2084928-1,320,2100304 - CO-OP Bank,Possessions May 11
Tendring DC,http://statistics.data.gov.uk/id/local-authority-district/22UN,Housing Services,6620 - Corporate Management - General,5190 - Bank Commission Charges,08/06/2011,2084928-2,2,2100304 - CO-OP Bank,Possessions May 11
Tendring DC,http://statistics.data.gov.uk/id/local-authority-district/22UN,Housing Services,5480 - Repair & Maintenance,2077 - Gas Service Contract  Servicing/Testing (Large Sca,21/06/2011,1044414-1,1505.77,2100314 - Cooper & Brome (Plumbing & Heating) Ltd,LARGE SCALE BOILERS CONTRACT 09/12
Tendring DC,http://statistics.data.gov.uk/id/local-authority-district/22UN,Housing Services,5480 - Repair & Maintenance,2078 - Gas Service Contract Other Refurbishment/Repairs (,21/06/2011,1044414-2,1243.76,2100314 - Cooper & Brome (Plumbing & Heating) Ltd,LARGE SCALE BOILERS CONTRACT 09/12
Tendring DC,http://statistics.data.gov.uk/id/local-authority-district/22UN,Housing Services,5360 - Sheltered Units,2308 - Energy Costs - Gas (Including LPG),21/06/2011,2085487-1,36.21,2104620 - Corona Energy Retail 4 Limited,Greenfields W May
Tendring DC,http://statistics.data.gov.uk/id/local-authority-district/22UN,Housing Services,5340 - Communal Central Heating,2308 - Energy Costs - Gas (Including LPG),21/06/2011,2085488-1,572,2104620 - Corona Energy Retail 4 Limited,S H May
Tendring DC,http://statistics.data.gov.uk/id/local-authority-district/22UN,Housing Services,5340 - Communal Central Heating,2308 - Energy Costs - Gas (Including LPG),21/06/2011,2085489-1,583.66,2104620 - Corona Energy Retail 4 Limited,GH - May
Tendring DC,http://statistics.data.gov.uk/id/local-authority-district/22UN,Housing Services,5340 - Communal Central Heating,2308 - Energy Costs - Gas (Including LPG),21/06/2011,2085490-1,582.17,2104620 - Corona Energy Retail 4 Limited,GF - May
Tendring DC,http://statistics.data.gov.uk/id/local-authority-district/22UN,Housing Services,5340 - Communal Central Heating,2308 - Energy Costs - Gas (Including LPG),21/06/2011,2085491-1,448.1,2104620 - Corona Energy Retail 4 Limited,MH - May
Tendring DC,http://statistics.data.gov.uk/id/local-authority-district/22UN,Housing Services,5340 - Communal Central Heating,2308 - Energy Costs - Gas (Including LPG),21/06/2011,2085492-1,455.05,2104620 - Corona Energy Retail 4 Limited,VH - May
Tendring DC,http://statistics.data.gov.uk/id/local-authority-district/22UN,Housing Services,5340 - Communal Central Heating,2308 - Energy Costs - Gas (Including LPG),21/06/2011,2085493-1,292.8,2104620 - Corona Energy Retail 4 Limited,KD - May
Tendring DC,http://statistics.data.gov.uk/id/local-authority-district/22UN,Housing Services,5340 - Communal Central Heating,2308 - Energy Costs - Gas (Including LPG),21/06/2011,2085494-1,633.15,2104620 - Corona Energy Retail 4 Limited,HC May
Tendring DC,http://statistics.data.gov.uk/id/local-authority-district/22UN,Housing Services,5340 - Communal Central Heating,2308 - Energy Costs - Gas (Including LPG),21/06/2011,2085495-1,473.45,2104620 - Corona Energy Retail 4 Limited,CE -May
Tendring DC,http://statistics.data.gov.uk/id/local-authority-district/22UN,Housing Services,5140 - Homelessness,4683 - Other Homelessness Expenses,21/06/2011,2085415-1,625,REDACTED PERSONAL DATA,REDACTED PERSONAL DATA
Tendring DC,http://statistics.data.gov.uk/id/local-authority-district/22UN,Housing Services,5480 - Repair & Maintenance,2014 - Decoration Allowances,21/06/2011,2085486-1,572.33,2108167 - Crown Paints Ltd,Various
Tendring DC,http://statistics.data.gov.uk/id/local-authority-district/22UN,Housing Services,1240 - Housing Services,1700 - Training - Courses,21/06/2011,2085482-1,225,2103062 - Dods Parliamentary Communications Ltd,Mortgage Support Train
Tendring DC,http://statistics.data.gov.uk/id/local-authority-district/22UN,Housing Services,5480 - Repair & Maintenance,2017 - Mechanical Equipment /Extract Fans,21/06/2011,2085339-1,506.42,REDACTED COMMERCIAL CONFIDENTIALITY,REDACTED COMMERCIAL CONFIDENTIALITY
Tendring DC,http://statistics.data.gov.uk/id/local-authority-district/22UN,Housing Services,5480 - Repair & Maintenance,2017 - Mechanical Equipment /Extract Fans,21/06/2011,2085340-1,71.2,REDACTED COMMERCIAL CONFIDENTIALITY,REDACTED COMMERCIAL CONFIDENTIALITY
Tendring DC,http://statistics.data.gov.uk/id/local-authority-district/22UN,Housing Services,5480 - Repair & Maintenance,2017 - Mechanical Equipment /Extract Fans,28/06/2011,2085567-1,842.73,REDACTED COMMERCIAL CONFIDENTIALITY,REDACTED COMMERCIAL CONFIDENTIALITY
Tendring DC,http://statistics.data.gov.uk/id/local-authority-district/22UN,Housing Services,5480 - Repair & Maintenance,2017 - Mechanical Equipment /Extract Fans,28/06/2011,2085568-1,730,REDACTED COMMERCIAL CONFIDENTIALITY,REDACTED COMMERCIAL CONFIDENTIALITY
Tendring DC,http://statistics.data.gov.uk/id/local-authority-district/22UN,Housing Services,5480 - Repair & Maintenance,2017 - Mechanical Equipment /Extract Fans,28/06/2011,2085569-1,673.37,2100572 - Envirovent Ltd,Kings Quay Street
Tendring DC,http://statistics.data.gov.uk/id/local-authority-district/22UN,Housing Services,5480 - Repair & Maintenance,2017 - Mechanical Equipment /Extract Fans,28/06/2011,2085570-1,562.52,2100572 - Envirovent Ltd,Fordyce House
Tendring DC,http://statistics.data.gov.uk/id/local-authority-district/22UN,Housing Services,5480 - Repair & Maintenance,2017 - Mechanical Equipment /Extract Fans,28/06/2011,2085571-1,159,2100572 - Envirovent Ltd,Flatford Drive
Tendring DC,http://statistics.data.gov.uk/id/local-authority-district/22UN,Housing Services,5480 - Repair & Maintenance,2017 - Mechanical Equipment /Extract Fans,28/06/2011,2085572-1,673.37,2100572 - Envirovent Ltd,Supply & Fit Smoke Alarm
Tendring DC,http://statistics.data.gov.uk/id/local-authority-district/22UN,Housing Services,5440 - Communal Electricity,2304 - Energy Costs - Electricity,28/06/2011,2085536-1,25.56,REDACTED COMMERCIAL CONFIDENTIALITY,REDACTED COMMERCIAL CONFIDENTIALITY
Tendring DC,http://statistics.data.gov.uk/id/local-authority-district/22UN,Housing Services,5480 - Repair & Maintenance,2060 - Fire Fighting Equipment Repairs,14/06/2011,2084967-1,21.2,2100531 - Euro-Fire Ltd,Site Check
Tendring DC,http://statistics.data.gov.uk/id/local-authority-district/22UN,Housing Services,5480 - Repair & Maintenance,2058 - Fire Alarms Repairs,14/06/2011,2084969-1,125,2108583 - Firesite,Belman Court
Tendring DC,http://statistics.data.gov.uk/id/local-authority-district/22UN,Housing Services,5480 - Repair & Maintenance,2058 - Fire Alarms Repairs,14/06/2011,2084970-1,50,2108583 - Firesite,Vyntoner House
Tendring DC,http://statistics.data.gov.uk/id/local-authority-district/22UN,Housing Services,5480 - Repair & Maintenance,2058 - Fire Alarms Repairs,28/06/2011,2085532-1,100,2108583 - Firesite,Greenfields
Tendring DC,http://statistics.data.gov.uk/id/local-authority-district/22UN,Housing Services,5480 - Repair & Maintenance,2058 - Fire Alarms Repairs,28/06/2011,2085533-1,140,2108583 - Firesite,Smoke Alarm Fault
Tendring DC,http://statistics.data.gov.uk/id/local-authority-district/22UN,Housing Services,5480 - Repair & Maintenance,2018 - Other  Responsive Repairs,07/06/2011,1044170-1,80,2108238 - GEM Doors,STOURVIEW AVE
Tendring DC,http://statistics.data.gov.uk/id/local-authority-district/22UN,Housing Services,5480 - Repair & Maintenance,2018 - Other  Responsive Repairs,07/06/2011,1044171-1,80,2108238 - GEM Doors,BURSTALL CLOSE
Tendring DC,http://statistics.data.gov.uk/id/local-authority-district/22UN,Housing Services,H815 - Re-roofing,C200 - Main Contractor,28/06/2011,1044549-1,8160.71,2101539 - GHB Roofing Ltd,SAYERS HOUSE ROOFING WORKS
Tendring DC,http://statistics.data.gov.uk/id/local-authority-district/22UN,Housing Services,5480 - Repair & Maintenance,2017 - Mechanical Equipment /Extract Fans,14/06/2011,2084962-1,75,2106272 - Greenleaf Pest Control Services,Mead House
Tendring DC,http://statistics.data.gov.uk/id/local-authority-district/22UN,Housing Services,5140 - Homelessness,4682 - Rent Deposit Guarantees,21/06/2011,2085414-1,450,REDACTED PERSONAL DATA,REDACTED PERSONAL DATA
Tendring DC,http://statistics.data.gov.uk/id/local-authority-district/22UN,Housing Services,5240 - Managing Tenancies,5242 - Tenant Relations,28/06/2011,2085549-1,332,REDACTED COMMERCIAL CONFIDENTIALITY,REDACTED COMMERCIAL CONFIDENTIALITY
Tendring DC,http://statistics.data.gov.uk/id/local-authority-district/22UN,Housing Services,5260 - Rent Collection And Accounting,4460 - Legal & Professional Expenses,21/06/2011,2085465-1,110,2100661 - HMCTS,Court Costs
Tendring DC,http://statistics.data.gov.uk/id/local-authority-district/22UN,Housing Services,5260 - Rent Collection And Accounting,4460 - Legal & Professional Expenses,21/06/2011,2085466-1,110,2100661 - HMCTS,Court Costs
Tendring DC,http://statistics.data.gov.uk/id/local-authority-district/22UN,Housing Services,5260 - Rent Collection And Accounting,4460 - Legal & Professional Expenses,21/06/2011,2085467-1,110,2100661 - HMCTS,Court Costs
Tendring DC,http://statistics.data.gov.uk/id/local-authority-district/22UN,Housing Services,H805 - Major Refurbishment of Heating,C200 - Main Contractor,07/06/2011,1044116-1,25,2100667 - Homebase Ltd,25 DE VERE ESTATE
Tendring DC,http://statistics.data.gov.uk/id/local-authority-district/22UN,Housing Services,H805 - Major Refurbishment of Heating,C200 - Main Contractor,28/06/2011,2085538-1,25,REDACTED COMMERCIAL CONFIDENTIALITY,REDACTED COMMERCIAL CONFIDENTIALITY
Tendring DC,http://statistics.data.gov.uk/id/local-authority-district/22UN,Housing Services,5240 - Managing Tenancies,5242 - Tenant Relations,28/06/2011,2085550-1,180,REDACTED COMMERCIAL CONFIDENTIALITY,REDACTED COMMERCIAL CONFIDENTIALITY
Tendring DC,http://statistics.data.gov.uk/id/local-authority-district/22UN,Housing Services,5240 - Managing Tenancies,5242 - Tenant Relations,14/06/2011,2084973-1,1336.6,REDACTED COMMERCIAL CONFIDENTIALITY,REDACTED COMMERCIAL CONFIDENTIALITY
Tendring DC,http://statistics.data.gov.uk/id/local-authority-district/22UN,Housing Services,5220 - Policy & Management,5930 - Business Planning Expenses,28/06/2011,2085539-1,820,2102449 - HQN Ltd,HQN - Sen/0534
Tendring DC,http://statistics.data.gov.uk/id/local-authority-district/22UN,Housing Services,5480 - Repair & Maintenance,2064 - Domestic Appliance Repairs,14/06/2011,2084936-1,45,2100700 - Ian Barker Domestic Appliances,Spendells House
Tendring DC,http://statistics.data.gov.uk/id/local-authority-district/22UN,Housing Services,5480 - Repair & Maintenance,2064 - Domestic Appliance Repairs,14/06/2011,2084937-1,20,2100700 - Ian Barker Domestic Appliances,St Marys Court
Tendring DC,http://statistics.data.gov.uk/id/local-authority-district/22UN,Housing Services,5480 - Repair & Maintenance,2064 - Domestic Appliance Repairs,14/06/2011,2084938-1,88.85,2100700 - Ian Barker Domestic Appliances,Crooked Elms
Tendring DC,http://statistics.data.gov.uk/id/local-authority-district/22UN,Housing Services,5480 - Repair & Maintenance,2064 - Domestic Appliance Repairs,14/06/2011,2084939-1,20,2100700 - Ian Barker Domestic Appliances,Greenfields
Tendring DC,http://statistics.data.gov.uk/id/local-authority-district/22UN,Housing Services,5480 - Repair & Maintenance,2064 - Domestic Appliance Repairs,14/06/2011,2084940-1,66,2100700 - Ian Barker Domestic Appliances,Greenfields
Tendring DC,http://statistics.data.gov.uk/id/local-authority-district/22UN,Housing Services,5480 - Repair & Maintenance,2064 - Domestic Appliance Repairs,14/06/2011,2084941-1,50,2100700 - Ian Barker Domestic Appliances,Belmans Court
Tendring DC,http://statistics.data.gov.uk/id/local-authority-district/22UN,Housing Services,5480 - Repair & Maintenance,2018 - Other  Responsive Repairs,07/06/2011,2084798-1,50,2100707 - JMC Fabrications,Nayland Drive
Tendring DC,http://statistics.data.gov.uk/id/local-authority-district/22UN,Housing Services,5480 - Repair & Maintenance,2018 - Other  Responsive Repairs,07/06/2011,2084799-1,70,2100707 - JMC Fabrications,Groom House
Tendring DC,http://statistics.data.gov.uk/id/local-authority-district/22UN,Housing Services,5480 - Repair & Maintenance,2018 - Other  Responsive Repairs,07/06/2011,2084800-1,150,2100707 - JMC Fabrications,Groom House
Tendring DC,http://statistics.data.gov.uk/id/local-authority-district/22UN,Housing Services,5480 - Repair & Maintenance,2018 - Other  Responsive Repairs,21/06/2011,2085239-1,495,REDACTED COMMERCIAL CONFIDENTIALITY,REDACTED COMMERCIAL CONFIDENTIALITY
Tendring DC,http://statistics.data.gov.uk/id/local-authority-district/22UN,Housing Services,5140 - Homelessness,4683 - Other Homelessness Expenses,28/06/2011,2085606-1,224.43,REDACTED PERSONAL DATA,REDACTED PERSONAL DATA
Tendring DC,http://statistics.data.gov.uk/id/local-authority-district/22UN,Housing Services,1240 - Housing Services,4300 - Printing & Stationery,07/06/2011,1044119-1,32.15,2110099 - Lyreco UK Ltd,STATIONERY MAY
Tendring DC,http://statistics.data.gov.uk/id/local-authority-district/22UN,Housing Services,1240 - Housing Services,4300 - Printing & Stationery,21/06/2011,2085484-1,18.6,2110099 - Lyreco UK Ltd,Stationery Order
Tendring DC,http://statistics.data.gov.uk/id/local-authority-district/22UN,Housing Services,5140 - Homelessness,4680 - Bed & Breakfast Accommodation,28/06/2011,1044437-1,140,2100819 - Marine View,6/6/11-12/6/11
Tendring DC,http://statistics.data.gov.uk/id/local-authority-district/22UN,Housing Services,5140 - Homelessness,9032 - Homelessness Accommodation Charges,28/06/2011,1044437-2,-14.18,2100819 - Marine View,6/6/11-12/6/11
Tendring DC,http://statistics.data.gov.uk/id/local-authority-district/22UN,Housing Services,5140 - Homelessness,4680 - Bed & Breakfast Accommodation,28/06/2011,1044438-1,140,2100819 - Marine View,6/6/11-12/6/11
Tendring DC,http://statistics.data.gov.uk/id/local-authority-district/22UN,Housing Services,5140 - Homelessness,9032 - Homelessness Accommodation Charges,28/06/2011,1044438-2,-14.18,2100819 - Marine View,6/6/11-12/6/11
Tendring DC,http://statistics.data.gov.uk/id/local-authority-district/22UN,Housing Services,5140 - Homelessness,4680 - Bed & Breakfast Accommodation,28/06/2011,1044439-1,140,REDACTED PERSONAL DATA,REDACTED PERSONAL DATA
Tendring DC,http://statistics.data.gov.uk/id/local-authority-district/22UN,Housing Services,5140 - Homelessness,9032 - Homelessness Accommodation Charges,28/06/2011,1044439-2,-14.18,REDACTED PERSONAL DATA,REDACTED PERSONAL DATA
Tendring DC,http://statistics.data.gov.uk/id/local-authority-district/22UN,Housing Services,5140 - Homelessness,4680 - Bed & Breakfast Accommodation,28/06/2011,1044440-1,140,REDACTED PERSONAL DATA,REDACTED PERSONAL DATA
Tendring DC,http://statistics.data.gov.uk/id/local-authority-district/22UN,Housing Services,5140 - Homelessness,9032 - Homelessness Accommodation Charges,28/06/2011,1044440-2,-14.18,REDACTED PERSONAL DATA,REDACTED PERSONAL DATA
Tendring DC,http://statistics.data.gov.uk/id/local-authority-district/22UN,Housing Services,5140 - Homelessness,4680 - Bed & Breakfast Accommodation,28/06/2011,1044441-1,140,REDACTED PERSONAL DATA,REDACTED PERSONAL DATA
Tendring DC,http://statistics.data.gov.uk/id/local-authority-district/22UN,Housing Services,5140 - Homelessness,9032 - Homelessness Accommodation Charges,28/06/2011,1044441-2,-14.18,REDACTED PERSONAL DATA,REDACTED PERSONAL DATA
Tendring DC,http://statistics.data.gov.uk/id/local-authority-district/22UN,Housing Services,5140 - Homelessness,4680 - Bed & Breakfast Accommodation,07/06/2011,2084804-1,560,2100819 - Marine View,REDACTED PERSONAL DATA
Tendring DC,http://statistics.data.gov.uk/id/local-authority-district/22UN,Housing Services,5140 - Homelessness,9032 - Homelessness Accommodation Charges,07/06/2011,2084804-2,-14.18,2100819 - Marine View,REDACTED PERSONAL DATA
Tendring DC,http://statistics.data.gov.uk/id/local-authority-district/22UN,Housing Services,5140 - Homelessness,4680 - Bed & Breakfast Accommodation,07/06/2011,2084805-1,120,2100819 - Marine View,REDACTED PERSONAL DATA
Tendring DC,http://statistics.data.gov.uk/id/local-authority-district/22UN,Housing Services,5140 - Homelessness,9032 - Homelessness Accommodation Charges,07/06/2011,2084805-2,-12.18,2100819 - Marine View,REDACTED PERSONAL DATA
Tendring DC,http://statistics.data.gov.uk/id/local-authority-district/22UN,Housing Services,5140 - Homelessness,4680 - Bed & Breakfast Accommodation,07/06/2011,2084806-1,140,2100819 - Marine View,REDACTED PERSONAL DATA
Tendring DC,http://statistics.data.gov.uk/id/local-authority-district/22UN,Housing Services,5140 - Homelessness,9032 - Homelessness Accommodation Charges,07/06/2011,2084806-2,-14.18,2100819 - Marine View,REDACTED PERSONAL DATA
Tendring DC,http://statistics.data.gov.uk/id/local-authority-district/22UN,Housing Services,5140 - Homelessness,4680 - Bed & Breakfast Accommodation,07/06/2011,2084807-1,60,2100819 - Marine View,REDACTED PERSONAL DATA
Tendring DC,http://statistics.data.gov.uk/id/local-authority-district/22UN,Housing Services,5140 - Homelessness,9032 - Homelessness Accommodation Charges,07/06/2011,2084807-2,-6.09,2100819 - Marine View,REDACTED PERSONAL DATA
Tendring DC,http://statistics.data.gov.uk/id/local-authority-district/22UN,Housing Services,5140 - Homelessness,4680 - Bed & Breakfast Accommodation,14/06/2011,2085118-1,560,2100819 - Marine View,REDACTED PERSONAL DATA
Tendring DC,http://statistics.data.gov.uk/id/local-authority-district/22UN,Housing Services,5140 - Homelessness,9032 - Homelessness Accommodation Charges,14/06/2011,2085118-2,-14.18,2100819 - Marine View,REDACTED PERSONAL DATA
Tendring DC,http://statistics.data.gov.uk/id/local-authority-district/22UN,Housing Services,5140 - Homelessness,4680 - Bed & Breakfast Accommodation,14/06/2011,2085119-1,140,2100819 - Marine View,REDACTED PERSONAL DATA
Tendring DC,http://statistics.data.gov.uk/id/local-authority-district/22UN,Housing Services,5140 - Homelessness,9032 - Homelessness Accommodation Charges,14/06/2011,2085119-2,-14.18,2100819 - Marine View,REDACTED PERSONAL DATA
Tendring DC,http://statistics.data.gov.uk/id/local-authority-district/22UN,Housing Services,5140 - Homelessness,4680 - Bed & Breakfast Accommodation,21/06/2011,2085240-1,120,2100819 - Marine View,24/5/11 - 29/5/11
Tendring DC,http://statistics.data.gov.uk/id/local-authority-district/22UN,Housing Services,5140 - Homelessness,9032 - Homelessness Accommodation Charges,21/06/2011,2085240-2,-12.18,2100819 - Marine View,24/5/11 - 29/5/11
Tendring DC,http://statistics.data.gov.uk/id/local-authority-district/22UN,Housing Services,5140 - Homelessness,4680 - Bed & Breakfast Accommodation,21/06/2011,2085241-1,140,2100819 - Marine View,30/5/11 - 5/6/11
Tendring DC,http://statistics.data.gov.uk/id/local-authority-district/22UN,Housing Services,5140 - Homelessness,9032 - Homelessness Accommodation Charges,21/06/2011,2085241-2,-14.18,2100819 - Marine View,30/5/11 - 5/6/11
Tendring DC,http://statistics.data.gov.uk/id/local-authority-district/22UN,Housing Services,5140 - Homelessness,4680 - Bed & Breakfast Accommodation,21/06/2011,2085242-1,140,2100819 - Marine View,23/5/11 - 29/5/11
Tendring DC,http://statistics.data.gov.uk/id/local-authority-district/22UN,Housing Services,5140 - Homelessness,9032 - Homelessness Accommodation Charges,21/06/2011,2085242-2,-14.18,2100819 - Marine View,23/5/11 - 29/5/11
Tendring DC,http://statistics.data.gov.uk/id/local-authority-district/22UN,Housing Services,5140 - Homelessness,4680 - Bed & Breakfast Accommodation,21/06/2011,2085243-1,140,2100819 - Marine View,30/5/11 - 5/6/11
Tendring DC,http://statistics.data.gov.uk/id/local-authority-district/22UN,Housing Services,5140 - Homelessness,9032 - Homelessness Accommodation Charges,21/06/2011,2085243-2,-14.18,2100819 - Marine View,30/5/11 - 5/6/11
Tendring DC,http://statistics.data.gov.uk/id/local-authority-district/22UN,Housing Services,5140 - Homelessness,4683 - Other Homelessness Expenses,28/06/2011,2085610-1,550,REDACTED PERSONAL DATA,REDACTED PERSONAL DATA
Tendring DC,http://statistics.data.gov.uk/id/local-authority-district/22UN,Housing Services,9920 - HRA Balance Sheet,B860 - Housing Rents - Cash,28/06/2011,2085683-1,146.67,REDACTED PERSONAL DATA,Rent Refund
Tendring DC,http://statistics.data.gov.uk/id/local-authority-district/22UN,Housing Services,9920 - HRA Balance Sheet,B860 - Housing Rents - Cash,14/06/2011,2085111-1,82.35,REDACTED PERSONAL DATA,Rent Refund
Tendring DC,http://statistics.data.gov.uk/id/local-authority-district/22UN,Housing Services,9920 - HRA Balance Sheet,B860 - Housing Rents - Cash,14/06/2011,2085117-1,232.44,REDACTED PERSONAL DATA,rent Refund
Tendring DC,http://statistics.data.gov.uk/id/local-authority-district/22UN,Housing Services,9920 - HRA Balance Sheet,B860 - Housing Rents - Cash,14/06/2011,2085107-1,8.75,REDACTED PERSONAL DATA,Rent Refund
Tendring DC,http://statistics.data.gov.uk/id/local-authority-district/22UN,Housing Services,5480 - Repair & Maintenance,2075 - Gas Service Contract Servicing/Testing (Domestic I,21/06/2011,1044415-1,4308.89,2111370 - Morrison Facilities Services,GAS SERVICE & REPAIR-SOUTH AREA 11/12
Tendring DC,http://statistics.data.gov.uk/id/local-authority-district/22UN,Housing Services,5480 - Repair & Maintenance,2076 - Gas Service Contract Other Refurbishment/Repairs (,21/06/2011,1044415-2,4206.91,2111370 - Morrison Facilities Services,GAS SERVICE & REPAIR-SOUTH AREA 11/12
Tendring DC,http://statistics.data.gov.uk/id/local-authority-district/22UN,Housing Services,5480 - Repair & Maintenance,2073 - Smoke Alarm Service/Testing,21/06/2011,1044415-3,1399.38,2111370 - Morrison Facilities Services,GAS SERVICE & REPAIR-SOUTH AREA 11/12
Tendring DC,http://statistics.data.gov.uk/id/local-authority-district/22UN,Housing Services,9920 - HRA Balance Sheet,B860 - Housing Rents - Cash,28/06/2011,2085688-1,145.07,REDACTED PERSONAL DATA,Rent Refund
Tendring DC,http://statistics.data.gov.uk/id/local-authority-district/22UN,Housing Services,9920 - HRA Balance Sheet,B860 - Housing Rents - Cash,14/06/2011,2085110-1,83.62,REDACTED PERSONAL DATA,Rent Refund
Tendring DC,http://statistics.data.gov.uk/id/local-authority-district/22UN,Housing Services,9920 - HRA Balance Sheet,B860 - Housing Rents - Cash,28/06/2011,2085694-1,528.25,REDACTED PERSONAL DATA,Rent Refund
Tendring DC,http://statistics.data.gov.uk/id/local-authority-district/22UN,Housing Services,9920 - HRA Balance Sheet,B860 - Housing Rents - Cash,14/06/2011,2085114-1,70.26,REDACTED PERSONAL DATA,rent Refund
Tendring DC,http://statistics.data.gov.uk/id/local-authority-district/22UN,Housing Services,9920 - HRA Balance Sheet,B860 - Housing Rents - Cash,28/06/2011,2085693-1,35.48,REDACTED PERSONAL DATA,Rent Refund
Tendring DC,http://statistics.data.gov.uk/id/local-authority-district/22UN,Housing Services,9920 - HRA Balance Sheet,B860 - Housing Rents - Cash,21/06/2011,2085473-1,115.54,REDACTED PERSONAL DATA,Rent Refund
Tendring DC,http://statistics.data.gov.uk/id/local-authority-district/22UN,Housing Services,9920 - HRA Balance Sheet,B860 - Housing Rents - Cash,14/06/2011,2085113-1,25.21,REDACTED PERSONAL DATA,Rent Refund
Tendring DC,http://statistics.data.gov.uk/id/local-authority-district/22UN,Housing Services,9920 - HRA Balance Sheet,B860 - Housing Rents - Cash,21/06/2011,2085475-1,56.04,REDACTED PERSONAL DATA,Rent Refund
Tendring DC,http://statistics.data.gov.uk/id/local-authority-district/22UN,Housing Services,9920 - HRA Balance Sheet,B860 - Housing Rents - Cash,07/06/2011,1044194-1,37.36,REDACTED PERSONAL DATA,RENT REFUND
Tendring DC,http://statistics.data.gov.uk/id/local-authority-district/22UN,Housing Services,9920 - HRA Balance Sheet,B860 - Housing Rents - Cash,14/06/2011,2085106-1,147.22,REDACTED PERSONAL DATA,Rent Refund
Tendring DC,http://statistics.data.gov.uk/id/local-authority-district/22UN,Housing Services,9920 - HRA Balance Sheet,B860 - Housing Rents - Cash,28/06/2011,2085691-1,25.44,REDACTED PERSONAL DATA,Rent Refund
Tendring DC,http://statistics.data.gov.uk/id/local-authority-district/22UN,Housing Services,9920 - HRA Balance Sheet,B860 - Housing Rents - Cash,28/06/2011,2085684-1,86.93,REDACTED PERSONAL DATA,Rent Refund
Tendring DC,http://statistics.data.gov.uk/id/local-authority-district/22UN,Housing Services,9920 - HRA Balance Sheet,B860 - Housing Rents - Cash,21/06/2011,2085474-1,98.4,REDACTED PERSONAL DATA,Rent Refund
Tendring DC,http://statistics.data.gov.uk/id/local-authority-district/22UN,Housing Services,5140 - Homelessness,4683 - Other Homelessness Expenses,28/06/2011,2085600-1,695,REDACTED PERSONAL DATA,REDACTED PERSONAL DATA
Tendring DC,http://statistics.data.gov.uk/id/local-authority-district/22UN,Housing Services,9920 - HRA Balance Sheet,B860 - Housing Rents - Cash,14/06/2011,2085109-1,69.12,REDACTED PERSONAL DATA,Rent Refund
Tendring DC,http://statistics.data.gov.uk/id/local-authority-district/22UN,Housing Services,9920 - HRA Balance Sheet,B860 - Housing Rents - Cash,14/06/2011,2085105-1,73.98,REDACTED PERSONAL DATA,Renf Refund
Tendring DC,http://statistics.data.gov.uk/id/local-authority-district/22UN,Housing Services,9920 - HRA Balance Sheet,B860 - Housing Rents - Cash,21/06/2011,2085476-1,44.35,REDACTED PERSONAL DATA,Rent Refund
Tendring DC,http://statistics.data.gov.uk/id/local-authority-district/22UN,Housing Services,9920 - HRA Balance Sheet,B860 - Housing Rents - Cash,14/06/2011,2085108-1,217.5,REDACTED PERSONAL DATA,Rent Refund
Tendring DC,http://statistics.data.gov.uk/id/local-authority-district/22UN,Housing Services,9920 - HRA Balance Sheet,B860 - Housing Rents - Cash,28/06/2011,2085689-1,77.66,REDACTED PERSONAL DATA,Rent Refund
Tendring DC,http://statistics.data.gov.uk/id/local-authority-district/22UN,Housing Services,5240 - Managing Tenancies,6625 - Tenants Compensation Scheme,28/06/2011,2085542-1,1245.42,REDACTED PERSONAL DATA,REDACTED PERSONAL DATA
Tendring DC,http://statistics.data.gov.uk/id/local-authority-district/22UN,Housing Services,5240 - Managing Tenancies,5242 - Tenant Relations,28/06/2011,2085544-1,10,REDACTED PERSONAL DATA,REDACTED PERSONAL DATA
Tendring DC,http://statistics.data.gov.uk/id/local-authority-district/22UN,Housing Services,9920 - HRA Balance Sheet,B860 - Housing Rents - Cash,28/06/2011,2085682-1,94.73,REDACTED COMMERCIAL CONFIDENTIALITY,REDACTED COMMERCIAL CONFIDENTIALITY
Tendring DC,http://statistics.data.gov.uk/id/local-authority-district/22UN,Housing Services,5140 - Homelessness,4683 - Other Homelessness Expenses,21/06/2011,2085417-1,450,REDACTED PERSONAL DATA,REDACTED PERSONAL DATA
Tendring DC,http://statistics.data.gov.uk/id/local-authority-district/22UN,Housing Services,9920 - HRA Balance Sheet,B860 - Housing Rents - Cash,28/06/2011,2085690-1,50.27,REDACTED PERSONAL DATA,Rent Refund
Tendring DC,http://statistics.data.gov.uk/id/local-authority-district/22UN,Housing Services,9920 - HRA Balance Sheet,B860 - Housing Rents - Cash,28/06/2011,2085695-1,121.65,REDACTED PERSONAL DATA,Rent Refund
Tendring DC,http://statistics.data.gov.uk/id/local-authority-district/22UN,Housing Services,9920 - HRA Balance Sheet,B860 - Housing Rents - Cash,14/06/2011,2085115-1,477.67,REDACTED PERSONAL DATA,rent Refund
Tendring DC,http://statistics.data.gov.uk/id/local-authority-district/22UN,Housing Services,5140 - Homelessness,4683 - Other Homelessness Expenses,28/06/2011,2085608-1,385.42,REDACTED PERSONAL DATA,REDACTED PERSONAL DATA
Tendring DC,http://statistics.data.gov.uk/id/local-authority-district/22UN,Housing Services,9920 - HRA Balance Sheet,B860 - Housing Rents - Cash,21/06/2011,2085464-1,399.85,REDACTED PERSONAL DATA,Rent Refund
Tendring DC,http://statistics.data.gov.uk/id/local-authority-district/22UN,Housing Services,9920 - HRA Balance Sheet,B860 - Housing Rents - Cash,14/06/2011,2085116-1,19970.78,REDACTED PERSONAL DATA,rent Refund
Tendring DC,http://statistics.data.gov.uk/id/local-authority-district/22UN,Housing Services,9920 - HRA Balance Sheet,B860 - Housing Rents - Cash,14/06/2011,2085112-1,6.48,REDACTED PERSONAL DATA,Rent Refund
Tendring DC,http://statistics.data.gov.uk/id/local-authority-district/22UN,Housing Services,9920 - HRA Balance Sheet,B860 - Housing Rents - Cash,28/06/2011,2085687-1,157.18,REDACTED PERSONAL DATA,Rent Refund
Tendring DC,http://statistics.data.gov.uk/id/local-authority-district/22UN,Housing Services,9920 - HRA Balance Sheet,B860 - Housing Rents - Cash,28/06/2011,2085686-1,40.42,REDACTED PERSONAL DATA,Rent Refund
Tendring DC,http://statistics.data.gov.uk/id/local-authority-district/22UN,Housing Services,9920 - HRA Balance Sheet,B860 - Housing Rents - Cash,07/06/2011,2084823-1,8.87,REDACTED PERSONAL DATA,Rent Refund
Tendring DC,http://statistics.data.gov.uk/id/local-authority-district/22UN,Housing Services,9920 - HRA Balance Sheet,B860 - Housing Rents - Cash,28/06/2011,2085685-1,80.1,REDACTED PERSONAL DATA,Rent Refund
Tendring DC,http://statistics.data.gov.uk/id/local-authority-district/22UN,Housing Services,9920 - HRA Balance Sheet,B860 - Housing Rents - Cash,28/06/2011,2085692-1,35.48,REDACTED PERSONAL DATA,Rent Refund
Tendring DC,http://statistics.data.gov.uk/id/local-authority-district/22UN,Housing Services,5240 - Managing Tenancies,5242 - Tenant Relations,28/06/2011,2085547-1,10,REDACTED PERSONAL DATA,ASB Sub Group Meeting on 7 June 11
Tendring DC,http://statistics.data.gov.uk/id/local-authority-district/22UN,Housing Services,9920 - HRA Balance Sheet,B860 - Housing Rents - Cash,14/06/2011,2085104-1,718.48,REDACTED PERSONAL DATA,Rent Refund
Tendring DC,http://statistics.data.gov.uk/id/local-authority-district/22UN,Housing Services,9920 - HRA Balance Sheet,B860 - Housing Rents - Cash,21/06/2011,2085463-1,13.72,REDACTED PERSONAL DATA,Rent Refund
Tendring DC,http://statistics.data.gov.uk/id/local-authority-district/22UN,Housing Services,5140 - Homelessness,4680 - Bed & Breakfast Accommodation,28/06/2011,2085607-1,300,REDACTED PERSONAL DATA,REDACTED PERSONAL DATA
Tendring DC,http://statistics.data.gov.uk/id/local-authority-district/22UN,Housing Services,5480 - Repair & Maintenance,4044 - Building & Safety Equipment,28/06/2011,2085543-1,38.95,REDACTED PERSONAL DATA,REDACTED PERSONAL DATA
Tendring DC,http://statistics.data.gov.uk/id/local-authority-district/22UN,Housing Services,5480 - Repair & Maintenance,4044 - Building & Safety Equipment,28/06/2011,2085598-1,38.95,2111356 - National Housing Federation,Appraisal Guide for Sheltered Housing
Tendring DC,http://statistics.data.gov.uk/id/local-authority-district/22UN,Housing Services,5140 - Homelessness,4683 - Other Homelessness Expenses,21/06/2011,2085422-1,425,REDACTED PERSONAL DATA,REDACTED PERSONAL DATA
Tendring DC,http://statistics.data.gov.uk/id/local-authority-district/22UN,Housing Services,5140 - Homelessness,4683 - Other Homelessness Expenses,14/06/2011,2085022-1,15,2111342 - North East Essex Provider Svs,Med Report TM Emis
Tendring DC,http://statistics.data.gov.uk/id/local-authority-district/22UN,Housing Services,5220 - Policy & Management,5930 - Business Planning Expenses,07/06/2011,1044114-1,1156.69,2101204 - Northgate Information Solutions UK Ltd,BUSINESS OBJECTS PROFESSIONAL
Tendring DC,http://statistics.data.gov.uk/id/local-authority-district/22UN,Housing Services,5140 - Homelessness,4683 - Other Homelessness Expenses,14/06/2011,2084974-1,105,REDACTED COMMERCIAL CONFIDENTIALITY,REDACTED COMMERCIAL CONFIDENTIALITY
Tendring DC,http://statistics.data.gov.uk/id/local-authority-district/22UN,Housing Services,5140 - Homelessness,4683 - Other Homelessness Expenses,21/06/2011,2085411-1,260,REDACTED PERSONAL DATA,REDACTED PERSONAL DATA
Tendring DC,http://statistics.data.gov.uk/id/local-authority-district/22UN,Housing Services,5140 - Homelessness,4683 - Other Homelessness Expenses,21/06/2011,2085423-1,240,REDACTED PERSONAL DATA,REDACTED PERSONAL DATA
Tendring DC,http://statistics.data.gov.uk/id/local-authority-district/22UN,Housing Services,5480 - Repair & Maintenance,2017 - Mechanical Equipment /Extract Fans,14/06/2011,1044205-1,514,REDACTED COMMERCIAL CONFIDENTIALITY,REDACTED COMMERCIAL CONFIDENTIALITY
Tendring DC,http://statistics.data.gov.uk/id/local-authority-district/22UN,Housing Services,5480 - Repair & Maintenance,2017 - Mechanical Equipment /Extract Fans,14/06/2011,1044205-2,515,REDACTED COMMERCIAL CONFIDENTIALITY,REDACTED COMMERCIAL CONFIDENTIALITY
Tendring DC,http://statistics.data.gov.uk/id/local-authority-district/22UN,Housing Services,5480 - Repair & Maintenance,2017 - Mechanical Equipment /Extract Fans,14/06/2011,1044206-1,62,REDACTED PERSONAL DATA,WEST STREET
Tendring DC,http://statistics.data.gov.uk/id/local-authority-district/22UN,Housing Services,5480 - Repair & Maintenance,2017 - Mechanical Equipment /Extract Fans,14/06/2011,1044206-2,12,REDACTED PERSONAL DATA,WEST STREET
Tendring DC,http://statistics.data.gov.uk/id/local-authority-district/22UN,Housing Services,5480 - Repair & Maintenance,2017 - Mechanical Equipment /Extract Fans,07/06/2011,2084757-1,179,REDACTED PERSONAL DATA,REDACTED PERSONAL DATA
Tendring DC,http://statistics.data.gov.uk/id/local-authority-district/22UN,Housing Services,5480 - Repair & Maintenance,2017 - Mechanical Equipment /Extract Fans,07/06/2011,2084757-2,95,REDACTED PERSONAL DATA,REDACTED PERSONAL DATA
Tendring DC,http://statistics.data.gov.uk/id/local-authority-district/22UN,Housing Services,5140 - Homelessness,4683 - Other Homelessness Expenses,28/06/2011,2085609-1,100,REDACTED PERSONAL DATA,REDACTED PERSONAL DATA
Tendring DC,http://statistics.data.gov.uk/id/local-authority-district/22UN,Housing Services,H710 - Selected Improvements,C200 - Main Contractor,21/06/2011,1044413-1,13905,2101837 - Phelan Construction Ltd,STAIR TOWERS-VALUATION 2
Tendring DC,http://statistics.data.gov.uk/id/local-authority-district/22UN,Housing Services,5420 - Communal Cleaning,2706 - Communal Areas Cleaning Expenses,07/06/2011,1044117-1,3521.58,2107884 - Pinnacle Essex,MONTHLY CLEANING SERVICES FEE MAY 2011
Tendring DC,http://statistics.data.gov.uk/id/local-authority-district/22UN,Housing Services,5420 - Communal Cleaning,2706 - Communal Areas Cleaning Expenses,28/06/2011,2085535-1,3521.58,REDACTED COMMERCIAL CONFIDENTIALITY,REDACTED COMMERCIAL CONFIDENTIALITY
Tendring DC,http://statistics.data.gov.uk/id/local-authority-district/22UN,Housing Services,5140 - Homelessness,4683 - Other Homelessness Expenses,28/06/2011,1044512-1,635,REDACTED PERSONAL DATA,REDACTED PERSONAL DATA
Tendring DC,http://statistics.data.gov.uk/id/local-authority-district/22UN,Housing Services,5140 - Homelessness,4683 - Other Homelessness Expenses,21/06/2011,2085416-1,500,REDACTED PERSONAL DATA,REDACTED PERSONAL DATA
Tendring DC,http://statistics.data.gov.uk/id/local-authority-district/22UN,Housing Services,5480 - Repair & Maintenance,2000 - Responsive Maintenance - Miscellaneous,21/06/2011,1044412-1,1568.02,2101187 - Roalco Limited,ROALCO
Tendring DC,http://statistics.data.gov.uk/id/local-authority-district/22UN,Housing Services,5480 - Repair & Maintenance,2000 - Responsive Maintenance - Miscellaneous,21/06/2011,1044412-2,131746.26,2101187 - Roalco Limited,ROALCO
Tendring DC,http://statistics.data.gov.uk/id/local-authority-district/22UN,Housing Services,5240 - Managing Tenancies,5248 - Estate Management Expenses,07/06/2011,2084737-1,36.6,2101187 - Roalco Limited,Porter Way
Tendring DC,http://statistics.data.gov.uk/id/local-authority-district/22UN,Housing Services,H800 - Structural Repairs,C200 - Main Contractor,28/06/2011,1044547-1,12825,2101893 - Rose Builders Ltd,43-45 HARCOURT AVE UNDERPINNING WORKS
Tendring DC,http://statistics.data.gov.uk/id/local-authority-district/22UN,Housing Services,5240 - Managing Tenancies,5242 - Tenant Relations,28/06/2011,2085545-1,10,2101198 - Roswitha Payne,ASB Sub Group Meeting on 7 June 11
Tendring DC,http://statistics.data.gov.uk/id/local-authority-district/22UN,Housing Services,5240 - Managing Tenancies,5242 - Tenant Relations,14/06/2011,2084971-1,1310.14,2101139 - Royal Mail,1st & 2nd Class Mail
Tendring DC,http://statistics.data.gov.uk/id/local-authority-district/22UN,Housing Services,5240 - Managing Tenancies,5242 - Tenant Relations,14/06/2011,2084972-1,70,2101139 - Royal Mail,Large Response Mail
Tendring DC,http://statistics.data.gov.uk/id/local-authority-district/22UN,Housing Services,5240 - Managing Tenancies,5242 - Tenant Relations,21/06/2011,2085485-1,44.8,2101139 - Royal Mail,Royal Mail Large Post Inland
Tendring DC,http://statistics.data.gov.uk/id/local-authority-district/22UN,Housing Services,5480 - Repair & Maintenance,2304 - Energy Costs - Electricity,07/06/2011,1044115-1,5.95,2101262 - Scottish Power,28 CHURCHILL CT
Tendring DC,http://statistics.data.gov.uk/id/local-authority-district/22UN,Housing Services,5480 - Repair & Maintenance,2062 - Communal TV Aerials Repairs,07/06/2011,1044118-1,84,2101237 - Sound & Vision,VYNTONER HOUSE
Tendring DC,http://statistics.data.gov.uk/id/local-authority-district/22UN,Housing Services,5480 - Repair & Maintenance,2019 - Repair & Maintenance - Keys,14/06/2011,2084968-1,154.25,2101248 - Spectrum Security Services,Various
Tendring DC,http://statistics.data.gov.uk/id/local-authority-district/22UN,Housing Services,5480 - Repair & Maintenance,2019 - Repair & Maintenance - Keys,21/06/2011,2085408-1,125.84,2101248 - Spectrum Security Services,Various
Tendring DC,http://statistics.data.gov.uk/id/local-authority-district/22UN,Housing Services,5480 - Repair & Maintenance,2019 - Repair & Maintenance - Keys,28/06/2011,2085537-1,52.75,2101248 - Spectrum Security Services,St Austins Lane
Tendring DC,http://statistics.data.gov.uk/id/local-authority-district/22UN,Housing Services,5240 - Managing Tenancies,5242 - Tenant Relations,21/06/2011,2085246-1,32,REDACTED COMMERCIAL CONFIDENTIALITY,REDACTED COMMERCIAL CONFIDENTIALITY
Tendring DC,http://statistics.data.gov.uk/id/local-authority-district/22UN,Housing Services,5480 - Repair & Maintenance,4044 - Building & Safety Equipment,28/06/2011,2085541-1,494.1,REDACTED COMMERCIAL CONFIDENTIALITY,REDACTED COMMERCIAL CONFIDENTIALITY
Tendring DC,http://statistics.data.gov.uk/id/local-authority-district/22UN,Housing Services,5140 - Homelessness,4683 - Other Homelessness Expenses,21/06/2011,2085410-1,625,REDACTED PERSONAL DATA,REDACTED PERSONAL DATA
Tendring DC,http://statistics.data.gov.uk/id/local-authority-district/22UN,Housing Services,5140 - Homelessness,4683 - Other Homelessness Expenses,14/06/2011,2085412-1,450,REDACTED PERSONAL DATA,REDACTED PERSONAL DATA
Tendring DC,http://statistics.data.gov.uk/id/local-authority-district/22UN,Housing Services,5140 - Homelessness,4683 - Other Homelessness Expenses,21/06/2011,2085418-1,306.02,REDACTED PERSONAL DATA,REDACTED PERSONAL DATA
Tendring DC,http://statistics.data.gov.uk/id/local-authority-district/22UN,Housing Services,5140 - Homelessness,4683 - Other Homelessness Expenses,21/06/2011,2085419-1,550,REDACTED PERSONAL DATA,REDACTED PERSONAL DATA
Tendring DC,http://statistics.data.gov.uk/id/local-authority-district/22UN,Housing Services,5140 - Homelessness,4683 - Other Homelessness Expenses,21/06/2011,2085413-1,343.2,REDACTED PERSONAL DATA,REDACTED PERSONAL DATA
Tendring DC,http://statistics.data.gov.uk/id/local-authority-district/22UN,Housing Services,5140 - Homelessness,4683 - Other Homelessness Expenses,21/06/2011,2085498-1,450,2102530 - The Letting Shop,Deposit Guarantee
Tendring DC,http://statistics.data.gov.uk/id/local-authority-district/22UN,Housing Services,5480 - Repair & Maintenance,2016 - PVCu Window And Door Repairs,14/06/2011,1044218-1,94.77,2101444 - Thermoshield Windows Ltd,GUYWRIGHT HOUSE
Tendring DC,http://statistics.data.gov.uk/id/local-authority-district/22UN,Housing Services,5480 - Repair & Maintenance,2016 - PVCu Window And Door Repairs,14/06/2011,1044219-1,1042.16,REDACTED COMMERCIAL CONFIDENTIALITY,REDACTED COMMERCIAL CONFIDENTIALITY
Tendring DC,http://statistics.data.gov.uk/id/local-authority-district/22UN,Housing Services,5480 - Repair & Maintenance,2016 - PVCu Window And Door Repairs,14/06/2011,1044220-1,357.45,2101444 - Thermoshield Windows Ltd,NAYLAND DRIVE
Tendring DC,http://statistics.data.gov.uk/id/local-authority-district/22UN,Housing Services,5480 - Repair & Maintenance,2016 - PVCu Window And Door Repairs,14/06/2011,1044221-1,173.64,2101444 - Thermoshield Windows Ltd,NAYLAND DRIVE
Tendring DC,http://statistics.data.gov.uk/id/local-authority-district/22UN,Housing Services,5480 - Repair & Maintenance,2016 - PVCu Window And Door Repairs,28/06/2011,1044464-1,300.52,REDACTED COMMERCIAL CONFIDENTIALITY,REDACTED COMMERCIAL CONFIDENTIALITY
Tendring DC,http://statistics.data.gov.uk/id/local-authority-district/22UN,Housing Services,5480 - Repair & Maintenance,2016 - PVCu Window And Door Repairs,28/06/2011,1044465-1,24.93,2101444 - Thermoshield Windows Ltd,NAYLAND DRIVE
Tendring DC,http://statistics.data.gov.uk/id/local-authority-district/22UN,Housing Services,5480 - Repair & Maintenance,2016 - PVCu Window And Door Repairs,28/06/2011,1044466-1,49.82,2101444 - Thermoshield Windows Ltd,LANGHAM DRIVE
Tendring DC,http://statistics.data.gov.uk/id/local-authority-district/22UN,Housing Services,5480 - Repair & Maintenance,2016 - PVCu Window And Door Repairs,28/06/2011,1044467-1,105.46,2101444 - Thermoshield Windows Ltd,BAYVIEW CRESCENT
Tendring DC,http://statistics.data.gov.uk/id/local-authority-district/22UN,Housing Services,5480 - Repair & Maintenance,2016 - PVCu Window And Door Repairs,28/06/2011,1044468-1,23.22,2101444 - Thermoshield Windows Ltd,LAKEWALK
Tendring DC,http://statistics.data.gov.uk/id/local-authority-district/22UN,Housing Services,5480 - Repair & Maintenance,2016 - PVCu Window And Door Repairs,28/06/2011,1044469-1,49.82,2101444 - Thermoshield Windows Ltd,WALDEGRAVE WAY
Tendring DC,http://statistics.data.gov.uk/id/local-authority-district/22UN,Housing Services,5480 - Repair & Maintenance,2016 - PVCu Window And Door Repairs,28/06/2011,1044470-1,60.95,2101444 - Thermoshield Windows Ltd,HARWICH ROAD
Tendring DC,http://statistics.data.gov.uk/id/local-authority-district/22UN,Housing Services,5480 - Repair & Maintenance,2016 - PVCu Window And Door Repairs,28/06/2011,1044471-1,73.04,2101444 - Thermoshield Windows Ltd,CHAPEL ROAD
Tendring DC,http://statistics.data.gov.uk/id/local-authority-district/22UN,Housing Services,5480 - Repair & Maintenance,2016 - PVCu Window And Door Repairs,28/06/2011,1044472-1,68.17,2101444 - Thermoshield Windows Ltd,FERNLEA ROAD
Tendring DC,http://statistics.data.gov.uk/id/local-authority-district/22UN,Housing Services,5480 - Repair & Maintenance,2016 - PVCu Window And Door Repairs,28/06/2011,1044473-1,41.42,2101444 - Thermoshield Windows Ltd,POLSTEAD WAY
Tendring DC,http://statistics.data.gov.uk/id/local-authority-district/22UN,Housing Services,5480 - Repair & Maintenance,2016 - PVCu Window And Door Repairs,28/06/2011,1044474-1,68.17,2101444 - Thermoshield Windows Ltd,CHURCH STREET
Tendring DC,http://statistics.data.gov.uk/id/local-authority-district/22UN,Housing Services,5480 - Repair & Maintenance,2016 - PVCu Window And Door Repairs,28/06/2011,1044475-1,82.63,2101444 - Thermoshield Windows Ltd,ST AUSTINS LANE
Tendring DC,http://statistics.data.gov.uk/id/local-authority-district/22UN,Housing Services,5480 - Repair & Maintenance,2016 - PVCu Window And Door Repairs,28/06/2011,1044476-1,116.48,2101444 - Thermoshield Windows Ltd,KATE DANIELS HSE
Tendring DC,http://statistics.data.gov.uk/id/local-authority-district/22UN,Housing Services,5480 - Repair & Maintenance,2016 - PVCu Window And Door Repairs,28/06/2011,1044477-1,23.22,2101444 - Thermoshield Windows Ltd,SAYERS HOUSE
Tendring DC,http://statistics.data.gov.uk/id/local-authority-district/22UN,Housing Services,5480 - Repair & Maintenance,2016 - PVCu Window And Door Repairs,28/06/2011,1044478-1,17.05,2101444 - Thermoshield Windows Ltd,POLSTEAD WAY
Tendring DC,http://statistics.data.gov.uk/id/local-authority-district/22UN,Housing Services,5480 - Repair & Maintenance,2016 - PVCu Window And Door Repairs,28/06/2011,1044479-1,147.77,2101444 - Thermoshield Windows Ltd,BURSTALL CLOSE
Tendring DC,http://statistics.data.gov.uk/id/local-authority-district/22UN,Housing Services,5480 - Repair & Maintenance,2016 - PVCu Window And Door Repairs,28/06/2011,1044480-1,69.11,2101444 - Thermoshield Windows Ltd,ABDY AVENUE
Tendring DC,http://statistics.data.gov.uk/id/local-authority-district/22UN,Housing Services,5480 - Repair & Maintenance,2016 - PVCu Window And Door Repairs,28/06/2011,1044481-1,22.29,2101444 - Thermoshield Windows Ltd,RIVERS HOUSE
Tendring DC,http://statistics.data.gov.uk/id/local-authority-district/22UN,Housing Services,5480 - Repair & Maintenance,2016 - PVCu Window And Door Repairs,28/06/2011,1044482-1,49.59,2101444 - Thermoshield Windows Ltd,NAYLAND DRIVE
Tendring DC,http://statistics.data.gov.uk/id/local-authority-district/22UN,Housing Services,5480 - Repair & Maintenance,2016 - PVCu Window And Door Repairs,28/06/2011,1044483-1,17.05,2101444 - Thermoshield Windows Ltd,CLOES LANE
Tendring DC,http://statistics.data.gov.uk/id/local-authority-district/22UN,Housing Services,5480 - Repair & Maintenance,2016 - PVCu Window And Door Repairs,28/06/2011,1044484-1,49.82,2101444 - Thermoshield Windows Ltd,WEST STREET
Tendring DC,http://statistics.data.gov.uk/id/local-authority-district/22UN,Housing Services,5480 - Repair & Maintenance,2016 - PVCu Window And Door Repairs,28/06/2011,1044485-1,62.23,2101444 - Thermoshield Windows Ltd,MERIVALE CLOSE
Tendring DC,http://statistics.data.gov.uk/id/local-authority-district/22UN,Housing Services,5480 - Repair & Maintenance,2016 - PVCu Window And Door Repairs,28/06/2011,1044486-1,44.95,2101444 - Thermoshield Windows Ltd,CHURCHILL COURT
Tendring DC,http://statistics.data.gov.uk/id/local-authority-district/22UN,Housing Services,5480 - Repair & Maintenance,2016 - PVCu Window And Door Repairs,28/06/2011,1044487-1,65.82,2101444 - Thermoshield Windows Ltd,SEAVIEW AVE
Tendring DC,http://statistics.data.gov.uk/id/local-authority-district/22UN,Housing Services,5480 - Repair & Maintenance,2016 - PVCu Window And Door Repairs,28/06/2011,1044488-1,34.68,2101444 - Thermoshield Windows Ltd,TANNER CLOSE
Tendring DC,http://statistics.data.gov.uk/id/local-authority-district/22UN,Housing Services,5480 - Repair & Maintenance,2016 - PVCu Window And Door Repairs,28/06/2011,1044489-1,16.33,2101444 - Thermoshield Windows Ltd,WEST STREET
Tendring DC,http://statistics.data.gov.uk/id/local-authority-district/22UN,Housing Services,5480 - Repair & Maintenance,2016 - PVCu Window And Door Repairs,07/06/2011,2084740-1,30.09,REDACTED PERSONAL DATA,REDACTED PERSONAL DATA
Tendring DC,http://statistics.data.gov.uk/id/local-authority-district/22UN,Housing Services,5480 - Repair & Maintenance,2016 - PVCu Window And Door Repairs,07/06/2011,2084741-1,49.82,REDACTED PERSONAL DATA,REDACTED PERSONAL DATA
Tendring DC,http://statistics.data.gov.uk/id/local-authority-district/22UN,Housing Services,5480 - Repair & Maintenance,2016 - PVCu Window And Door Repairs,07/06/2011,2084742-1,40.41,2101444 - Thermoshield Windows Ltd,Link Road
Tendring DC,http://statistics.data.gov.uk/id/local-authority-district/22UN,Housing Services,5480 - Repair & Maintenance,2016 - PVCu Window And Door Repairs,07/06/2011,2084743-1,118.32,2101444 - Thermoshield Windows Ltd,Beriffe Place
Tendring DC,http://statistics.data.gov.uk/id/local-authority-district/22UN,Housing Services,5480 - Repair & Maintenance,2016 - PVCu Window And Door Repairs,07/06/2011,2084744-1,62.23,2101444 - Thermoshield Windows Ltd,Tanner Close
Tendring DC,http://statistics.data.gov.uk/id/local-authority-district/22UN,Housing Services,5480 - Repair & Maintenance,2016 - PVCu Window And Door Repairs,07/06/2011,2084745-1,32.66,2101444 - Thermoshield Windows Ltd,Salisbury Road
Tendring DC,http://statistics.data.gov.uk/id/local-authority-district/22UN,Housing Services,5480 - Repair & Maintenance,2016 - PVCu Window And Door Repairs,07/06/2011,2084746-1,90.41,2101444 - Thermoshield Windows Ltd,Johnson Drive
Tendring DC,http://statistics.data.gov.uk/id/local-authority-district/22UN,Housing Services,5480 - Repair & Maintenance,2016 - PVCu Window And Door Repairs,07/06/2011,2084747-1,286.09,2101444 - Thermoshield Windows Ltd,Tewkesbury Road
Tendring DC,http://statistics.data.gov.uk/id/local-authority-district/22UN,Housing Services,5480 - Repair & Maintenance,2016 - PVCu Window And Door Repairs,07/06/2011,2084748-1,32.58,2101444 - Thermoshield Windows Ltd,Regent Road
Tendring DC,http://statistics.data.gov.uk/id/local-authority-district/22UN,Housing Services,5480 - Repair & Maintenance,2016 - PVCu Window And Door Repairs,07/06/2011,2084749-1,8.95,2101444 - Thermoshield Windows Ltd,Nayland Dr
Tendring DC,http://statistics.data.gov.uk/id/local-authority-district/22UN,Housing Services,5480 - Repair & Maintenance,2016 - PVCu Window And Door Repairs,07/06/2011,2084750-1,13.71,2101444 - Thermoshield Windows Ltd,Polstead Way
Tendring DC,http://statistics.data.gov.uk/id/local-authority-district/22UN,Housing Services,5480 - Repair & Maintenance,2016 - PVCu Window And Door Repairs,21/06/2011,2085425-1,12.46,2101444 - Thermoshield Windows Ltd,Mead House
Tendring DC,http://statistics.data.gov.uk/id/local-authority-district/22UN,Housing Services,5480 - Repair & Maintenance,2016 - PVCu Window And Door Repairs,21/06/2011,2085426-1,79.73,2101444 - Thermoshield Windows Ltd,Bedford Road
Tendring DC,http://statistics.data.gov.uk/id/local-authority-district/22UN,Housing Services,5480 - Repair & Maintenance,2016 - PVCu Window And Door Repairs,21/06/2011,2085427-1,116.48,2101444 - Thermoshield Windows Ltd,Kate Daniels Hse
Tendring DC,http://statistics.data.gov.uk/id/local-authority-district/22UN,Housing Services,5480 - Repair & Maintenance,2016 - PVCu Window And Door Repairs,21/06/2011,2085428-1,34.35,2101444 - Thermoshield Windows Ltd,Honeycraft
Tendring DC,http://statistics.data.gov.uk/id/local-authority-district/22UN,Housing Services,5480 - Repair & Maintenance,2016 - PVCu Window And Door Repairs,21/06/2011,2085429-1,41.57,2101444 - Thermoshield Windows Ltd,Langham Drive
Tendring DC,http://statistics.data.gov.uk/id/local-authority-district/22UN,Housing Services,5480 - Repair & Maintenance,2016 - PVCu Window And Door Repairs,21/06/2011,2085430-1,20.87,2101444 - Thermoshield Windows Ltd,Second Ave
Tendring DC,http://statistics.data.gov.uk/id/local-authority-district/22UN,Housing Services,5480 - Repair & Maintenance,2016 - PVCu Window And Door Repairs,21/06/2011,2085431-1,8.95,2101444 - Thermoshield Windows Ltd,Nayland Dr
Tendring DC,http://statistics.data.gov.uk/id/local-authority-district/22UN,Housing Services,5480 - Repair & Maintenance,2005 - Responsive Maintenance - Carpentry And Joinery,21/06/2011,2085432-1,68.18,2101444 - Thermoshield Windows Ltd,Groom Park
Tendring DC,http://statistics.data.gov.uk/id/local-authority-district/22UN,Housing Services,5480 - Repair & Maintenance,2016 - PVCu Window And Door Repairs,21/06/2011,2085433-1,22.29,2101444 - Thermoshield Windows Ltd,Flatford Drive
Tendring DC,http://statistics.data.gov.uk/id/local-authority-district/22UN,Housing Services,5480 - Repair & Maintenance,2016 - PVCu Window And Door Repairs,21/06/2011,2085434-1,25.22,2101444 - Thermoshield Windows Ltd,Clacton Road
Tendring DC,http://statistics.data.gov.uk/id/local-authority-district/22UN,Housing Services,5480 - Repair & Maintenance,2016 - PVCu Window And Door Repairs,21/06/2011,2085435-1,12.18,2101444 - Thermoshield Windows Ltd,Rochford Hse
Tendring DC,http://statistics.data.gov.uk/id/local-authority-district/22UN,Housing Services,5480 - Repair & Maintenance,2016 - PVCu Window And Door Repairs,21/06/2011,2085436-1,12.46,2101444 - Thermoshield Windows Ltd,Elm Grove
Tendring DC,http://statistics.data.gov.uk/id/local-authority-district/22UN,Housing Services,5480 - Repair & Maintenance,2016 - PVCu Window And Door Repairs,21/06/2011,2085437-1,25.49,2101444 - Thermoshield Windows Ltd,Nayland Dr
Tendring DC,http://statistics.data.gov.uk/id/local-authority-district/22UN,Housing Services,5480 - Repair & Maintenance,2016 - PVCu Window And Door Repairs,21/06/2011,2085438-1,20.87,2101444 - Thermoshield Windows Ltd,Waldegrave Way
Tendring DC,http://statistics.data.gov.uk/id/local-authority-district/22UN,Housing Services,5480 - Repair & Maintenance,2016 - PVCu Window And Door Repairs,21/06/2011,2085439-1,40.06,2101444 - Thermoshield Windows Ltd,groom park
Tendring DC,http://statistics.data.gov.uk/id/local-authority-district/22UN,Housing Services,5480 - Repair & Maintenance,2016 - PVCu Window And Door Repairs,21/06/2011,2085440-1,56.8,2101444 - Thermoshield Windows Ltd,Bellfield Close
Tendring DC,http://statistics.data.gov.uk/id/local-authority-district/22UN,Housing Services,5480 - Repair & Maintenance,2016 - PVCu Window And Door Repairs,21/06/2011,2085441-1,17.05,2101444 - Thermoshield Windows Ltd,Sayers House
Tendring DC,http://statistics.data.gov.uk/id/local-authority-district/22UN,Housing Services,5480 - Repair & Maintenance,2016 - PVCu Window And Door Repairs,21/06/2011,2085442-1,18.35,2101444 - Thermoshield Windows Ltd,Honeycroft
Tendring DC,http://statistics.data.gov.uk/id/local-authority-district/22UN,Housing Services,5480 - Repair & Maintenance,2016 - PVCu Window And Door Repairs,21/06/2011,2085443-1,13.82,2101444 - Thermoshield Windows Ltd,Mead House
Tendring DC,http://statistics.data.gov.uk/id/local-authority-district/22UN,Housing Services,5480 - Repair & Maintenance,2016 - PVCu Window And Door Repairs,21/06/2011,2085444-1,22.29,2101444 - Thermoshield Windows Ltd,Groom Park
Tendring DC,http://statistics.data.gov.uk/id/local-authority-district/22UN,Housing Services,5480 - Repair & Maintenance,2016 - PVCu Window And Door Repairs,21/06/2011,2085445-1,16.54,2101444 - Thermoshield Windows Ltd,Mead House
Tendring DC,http://statistics.data.gov.uk/id/local-authority-district/22UN,Housing Services,5140 - Homelessness,4683 - Other Homelessness Expenses,21/06/2011,2085420-1,450,REDACTED PERSONAL DATA,REDACTED PERSONAL DATA
Tendring DC,http://statistics.data.gov.uk/id/local-authority-district/22UN,Housing Services,5140 - Homelessness,4683 - Other Homelessness Expenses,21/06/2011,2085421-1,200,REDACTED PERSONAL DATA,REDACTED PERSONAL DATA
Tendring DC,http://statistics.data.gov.uk/id/local-authority-district/22UN,Housing Services,5240 - Managing Tenancies,5242 - Tenant Relations,14/06/2011,2084935-1,111,2101523 - Walton Taxis,REDACTED PERSONAL DATA
Tendring DC,http://statistics.data.gov.uk/id/local-authority-district/22UN,Housing Services,5480 - Repair & Maintenance,2056 - Electric Heating Repairs,07/06/2011,2084788-1,287.8,2101593 - Weaver & Anderson,Vansitart Street
Tendring DC,http://statistics.data.gov.uk/id/local-authority-district/22UN,Housing Services,5480 - Repair & Maintenance,2056 - Electric Heating Repairs,07/06/2011,2084789-1,37.5,2101593 - Weaver & Anderson,Manthorpe House
Tendring DC,http://statistics.data.gov.uk/id/local-authority-district/22UN,Housing Services,5480 - Repair & Maintenance,2056 - Electric Heating Repairs,07/06/2011,2084790-1,37.5,2101593 - Weaver & Anderson,De Vere Estate
Tendring DC,http://statistics.data.gov.uk/id/local-authority-district/22UN,Housing Services,5480 - Repair & Maintenance,2056 - Electric Heating Repairs,07/06/2011,2084791-1,38.9,2101593 - Weaver & Anderson,Sparrows Corner
Tendring DC,http://statistics.data.gov.uk/id/local-authority-district/22UN,Housing Services,5480 - Repair & Maintenance,2056 - Electric Heating Repairs,07/06/2011,2084792-1,45,2101593 - Weaver & Anderson,Nayland Dr
Tendring DC,http://statistics.data.gov.uk/id/local-authority-district/22UN,Housing Services,5480 - Repair & Maintenance,2056 - Electric Heating Repairs,07/06/2011,2084793-1,62.5,2101593 - Weaver & Anderson,Rigby Ave
Tendring DC,http://statistics.data.gov.uk/id/local-authority-district/22UN,Housing Services,5480 - Repair & Maintenance,2056 - Electric Heating Repairs,07/06/2011,2084794-1,25,2101593 - Weaver & Anderson,Rigby Ave
Tendring DC,http://statistics.data.gov.uk/id/local-authority-district/22UN,Housing Services,5480 - Repair & Maintenance,2056 - Electric Heating Repairs,07/06/2011,2084795-1,40.25,2101593 - Weaver & Anderson,Vansitart Street
Tendring DC,http://statistics.data.gov.uk/id/local-authority-district/22UN,Housing Services,5480 - Repair & Maintenance,2056 - Electric Heating Repairs,07/06/2011,2084796-1,27.75,2101593 - Weaver & Anderson,Lt Clacton Road
Tendring DC,http://statistics.data.gov.uk/id/local-authority-district/22UN,Housing Services,5480 - Repair & Maintenance,2056 - Electric Heating Repairs,07/06/2011,2084797-1,45,2101593 - Weaver & Anderson,Maple Close
Tendring DC,http://statistics.data.gov.uk/id/local-authority-district/22UN,Housing Services,5240 - Managing Tenancies,5242 - Tenant Relations,14/06/2011,2084965-1,22,2100887 - Weston's Taxis,REDACTED PERSONAL DATA
Tendring DC,http://statistics.data.gov.uk/id/local-authority-district/22UN,Housing Services,1240 - Housing Services,4300 - Printing & Stationery,14/06/2011,2084945-1,152.58,2107546 - XMA Limited,Cartridges
Tendring DC,http://statistics.data.gov.uk/id/local-authority-district/22UN,Human Resources and Customer Services,1880 - Office Accommodation Expenses,2100 - Building Repairs,28/06/2011,2085559-1,250,2100061 - A R & J Pardoe,A R & J Pardoe
Tendring DC,http://statistics.data.gov.uk/id/local-authority-district/22UN,Human Resources and Customer Services,1880 - Office Accommodation Expenses,2100 - Building Repairs,28/06/2011,2085559-2,120,2100061 - A R & J Pardoe,A R & J Pardoe
Tendring DC,http://statistics.data.gov.uk/id/local-authority-district/22UN,Human Resources and Customer Services,1880 - Office Accommodation Expenses,2100 - Building Repairs,28/06/2011,2085560-1,500,2100061 - A R & J Pardoe,
Tendring DC,http://statistics.data.gov.uk/id/local-authority-district/22UN,Human Resources and Customer Services,1880 - Office Accommodation Expenses,2100 - Building Repairs,28/06/2011,2085560-2,190,2100061 - A R & J Pardoe,
Tendring DC,http://statistics.data.gov.uk/id/local-authority-district/22UN,Human Resources and Customer Services,1880 - Office Accommodation Expenses,2100 - Building Repairs,07/06/2011,2084765-1,2858,REDACTED PERSONAL DATA,REDACTED PERSONAL DATA
Tendring DC,http://statistics.data.gov.uk/id/local-authority-district/22UN,Human Resources and Customer Services,1880 - Office Accommodation Expenses,2100 - Building Repairs,07/06/2011,2084766-1,824,REDACTED PERSONAL DATA,REDACTED PERSONAL DATA
Tendring DC,http://statistics.data.gov.uk/id/local-authority-district/22UN,Human Resources and Customer Services,1880 - Office Accommodation Expenses,2100 - Building Repairs,07/06/2011,2084767-1,650,REDACTED PERSONAL DATA,REDACTED PERSONAL DATA
Tendring DC,http://statistics.data.gov.uk/id/local-authority-district/22UN,Human Resources and Customer Services,1880 - Office Accommodation Expenses,2100 - Building Repairs,07/06/2011,2084768-1,650,REDACTED PERSONAL DATA,REDACTED PERSONAL DATA
Tendring DC,http://statistics.data.gov.uk/id/local-authority-district/22UN,Human Resources and Customer Services,1880 - Office Accommodation Expenses,2100 - Building Repairs,07/06/2011,2084861-1,82,2101609 - Adcock Refrigeration & Air Conditioning Ltd,Adcock - Weeley
Tendring DC,http://statistics.data.gov.uk/id/local-authority-district/22UN,Human Resources and Customer Services,1880 - Office Accommodation Expenses,2100 - Building Repairs,14/06/2011,2084986-1,1987,REDACTED COMMERCIAL CONFIDENTIALITY,REDACTED COMMERCIAL CONFIDENTIALITY
Tendring DC,http://statistics.data.gov.uk/id/local-authority-district/22UN,Human Resources and Customer Services,1880 - Office Accommodation Expenses,2100 - Building Repairs,28/06/2011,2085510-1,120,REDACTED PERSONAL DATA,REDACTED PERSONAL DATA
Tendring DC,http://statistics.data.gov.uk/id/local-authority-district/22UN,Human Resources and Customer Services,1420 - Human Resources & Customer Services,4300 - Printing & Stationery,28/06/2011,1044446-1,204.24,2100111 - Banner Business Supplies Ltd,BANNER
Tendring DC,http://statistics.data.gov.uk/id/local-authority-district/22UN,Human Resources and Customer Services,1810 - Manpower Planning Summary,4460 - Legal & Professional Expenses,14/06/2011,2084983-1,813,2110695 - Beachcroft LLP,Beachcroft
Tendring DC,http://statistics.data.gov.uk/id/local-authority-district/22UN,Human Resources and Customer Services,1880 - Office Accommodation Expenses,2100 - Building Repairs,21/06/2011,1044366-1,462,2100117 - Brian Birt Carpets Ltd,BRIAN BIRT CARPETS
Tendring DC,http://statistics.data.gov.uk/id/local-authority-district/22UN,Human Resources and Customer Services,1880 - Office Accommodation Expenses,2304 - Energy Costs - Electricity,21/06/2011,2085251-1,38.97,REDACTED COMMERCIAL CONFIDENTIALITY,REDACTED COMMERCIAL CONFIDENTIALITY
Tendring DC,http://statistics.data.gov.uk/id/local-authority-district/22UN,Human Resources and Customer Services,1880 - Office Accommodation Expenses,2304 - Energy Costs - Electricity,21/06/2011,2085251-2,187.61,REDACTED COMMERCIAL CONFIDENTIALITY,REDACTED COMMERCIAL CONFIDENTIALITY
Tendring DC,http://statistics.data.gov.uk/id/local-authority-district/22UN,Human Resources and Customer Services,1880 - Office Accommodation Expenses,2304 - Energy Costs - Electricity,21/06/2011,2085251-3,892.35,REDACTED COMMERCIAL CONFIDENTIALITY,REDACTED COMMERCIAL CONFIDENTIALITY
Tendring DC,http://statistics.data.gov.uk/id/local-authority-district/22UN,Human Resources and Customer Services,1880 - Office Accommodation Expenses,2304 - Energy Costs - Electricity,21/06/2011,2085251-4,78.91,REDACTED COMMERCIAL CONFIDENTIALITY,REDACTED COMMERCIAL CONFIDENTIALITY
Tendring DC,http://statistics.data.gov.uk/id/local-authority-district/22UN,Human Resources and Customer Services,1880 - Office Accommodation Expenses,2304 - Energy Costs - Electricity,21/06/2011,2085251-5,88.1,REDACTED COMMERCIAL CONFIDENTIALITY,REDACTED COMMERCIAL CONFIDENTIALITY
Tendring DC,http://statistics.data.gov.uk/id/local-authority-district/22UN,Human Resources and Customer Services,1880 - Office Accommodation Expenses,2304 - Energy Costs - Electricity,21/06/2011,2085251-6,1047.3,REDACTED COMMERCIAL CONFIDENTIALITY,REDACTED COMMERCIAL CONFIDENTIALITY
Tendring DC,http://statistics.data.gov.uk/id/local-authority-district/22UN,Human Resources and Customer Services,1880 - Office Accommodation Expenses,2304 - Energy Costs - Electricity,21/06/2011,2085251-7,499.99,REDACTED COMMERCIAL CONFIDENTIALITY,REDACTED COMMERCIAL CONFIDENTIALITY
Tendring DC,http://statistics.data.gov.uk/id/local-authority-district/22UN,Human Resources and Customer Services,1880 - Office Accommodation Expenses,2304 - Energy Costs - Electricity,21/06/2011,2085251-8,68.35,REDACTED COMMERCIAL CONFIDENTIALITY,REDACTED COMMERCIAL CONFIDENTIALITY
Tendring DC,http://statistics.data.gov.uk/id/local-authority-district/22UN,Human Resources and Customer Services,1840 - Central Telephone Service,4710 - Telephones - Charges,21/06/2011,1044367-1,1430.23,2100168 - British Telecommunications plc,BT-833435
Tendring DC,http://statistics.data.gov.uk/id/local-authority-district/22UN,Human Resources and Customer Services,1840 - Central Telephone Service,4710 - Telephones - Charges,14/06/2011,2084982-1,1145.62,2100168 - British Telecommunications plc,BT - 253100
Tendring DC,http://statistics.data.gov.uk/id/local-authority-district/22UN,Human Resources and Customer Services,8150 - Office Cleaning,4080 - Materials & Consumables,07/06/2011,2084771-1,37.5,2101624 - Bunzl,Bunzl
Tendring DC,http://statistics.data.gov.uk/id/local-authority-district/22UN,Human Resources and Customer Services,8150 - Office Cleaning,4080 - Materials & Consumables,07/06/2011,2084772-1,361.68,2101624 - Bunzl,
Tendring DC,http://statistics.data.gov.uk/id/local-authority-district/22UN,Human Resources and Customer Services,8150 - Office Cleaning,4080 - Materials & Consumables,07/06/2011,2084773-1,130.68,2101624 - Bunzl,Bunzl
Tendring DC,http://statistics.data.gov.uk/id/local-authority-district/22UN,Human Resources and Customer Services,8150 - Office Cleaning,4080 - Materials & Consumables,28/06/2011,2085504-1,28.56,2101624 - Bunzl,Bunzl
Tendring DC,http://statistics.data.gov.uk/id/local-authority-district/22UN,Human Resources and Customer Services,8150 - Office Cleaning,4080 - Materials & Consumables,28/06/2011,2085505-1,73.37,2101624 - Bunzl,Bunzl
Tendring DC,http://statistics.data.gov.uk/id/local-authority-district/22UN,Human Resources and Customer Services,1880 - Office Accommodation Expenses,2100 - Building Repairs,07/06/2011,2084775-1,17.85,2100205 - Chelmsford Safety Supplies,250511
Tendring DC,http://statistics.data.gov.uk/id/local-authority-district/22UN,Human Resources and Customer Services,1880 - Office Accommodation Expenses,4080 - Materials & Consumables,14/06/2011,2084985-1,49.25,2100267 - City Electrical Factors Ltd Anglia Division,CEF
Tendring DC,http://statistics.data.gov.uk/id/local-authority-district/22UN,Human Resources and Customer Services,8125 - Horticultural Services,5500 - Miscellaneous Expenses,07/06/2011,2084778-1,225,2107768 - Colchester Hospital University NHS FT,
Tendring DC,http://statistics.data.gov.uk/id/local-authority-district/22UN,Human Resources and Customer Services,8125 - Horticultural Services,5500 - Miscellaneous Expenses,07/06/2011,2084779-1,525,2107768 - Colchester Hospital University NHS FT,
Tendring DC,http://statistics.data.gov.uk/id/local-authority-district/22UN,Human Resources and Customer Services,1808 - Medical Fees,1600 - Medical Expenses,07/06/2011,2084779-2,188.95,2107768 - Colchester Hospital University NHS FT,
Tendring DC,http://statistics.data.gov.uk/id/local-authority-district/22UN,Human Resources and Customer Services,1807 - Recruitment & Relocation,1500 - Advertising - Recruitment,08/06/2011,2084927-1,153.67,2100304 - CO-OP Bank,Visa Co-op
Tendring DC,http://statistics.data.gov.uk/id/local-authority-district/22UN,Human Resources and Customer Services,1804 - Long Service Scheme,5400 - Awards & Gifts,08/06/2011,2084927-2,1660.24,2100304 - CO-OP Bank,Visa Co-op
Tendring DC,http://statistics.data.gov.uk/id/local-authority-district/22UN,Human Resources and Customer Services,6620 - Corporate Management - General,5190 - Bank Commission Charges,08/06/2011,2084927-3,2,2100304 - CO-OP Bank,Visa Co-op
Tendring DC,http://statistics.data.gov.uk/id/local-authority-district/22UN,Human Resources and Customer Services,1880 - Office Accommodation Expenses,2100 - Building Repairs,07/06/2011,2084752-1,231,2100314 - Cooper & Brome (Plumbing & Heating) Ltd,Cooper & Brome
Tendring DC,http://statistics.data.gov.uk/id/local-authority-district/22UN,Human Resources and Customer Services,1880 - Office Accommodation Expenses,2308 - Energy Costs - Gas (Including LPG),21/06/2011,1044357-1,25.04,2104620 - Corona Energy Retail 4 Limited,CORONA ENERGY-BH
Tendring DC,http://statistics.data.gov.uk/id/local-authority-district/22UN,Human Resources and Customer Services,1880 - Office Accommodation Expenses,2308 - Energy Costs - Gas (Including LPG),21/06/2011,1044358-1,40.59,2104620 - Corona Energy Retail 4 Limited,CORONA ENERGY-CH
Tendring DC,http://statistics.data.gov.uk/id/local-authority-district/22UN,Human Resources and Customer Services,1880 - Office Accommodation Expenses,2308 - Energy Costs - Gas (Including LPG),21/06/2011,1044359-1,52.73,2104620 - Corona Energy Retail 4 Limited,CORONA ENERGY-PU
Tendring DC,http://statistics.data.gov.uk/id/local-authority-district/22UN,Human Resources and Customer Services,6160 - Princes Theatre,2308 - Energy Costs - Gas (Including LPG),21/06/2011,1044360-1,19.02,2104620 - Corona Energy Retail 4 Limited,CORONA ENERGY-MAY 11
Tendring DC,http://statistics.data.gov.uk/id/local-authority-district/22UN,Human Resources and Customer Services,1880 - Office Accommodation Expenses,2308 - Energy Costs - Gas (Including LPG),21/06/2011,1044360-2,171.2,2104620 - Corona Energy Retail 4 Limited,CORONA ENERGY-MAY 11
Tendring DC,http://statistics.data.gov.uk/id/local-authority-district/22UN,Human Resources and Customer Services,6460 - Career Track,4688 - Career Track Exam Fees,21/06/2011,1044356-1,25,2103095 - Council for Administration,CFA
Tendring DC,http://statistics.data.gov.uk/id/local-authority-district/22UN,Human Resources and Customer Services,6460 - Career Track,4688 - Career Track Exam Fees,07/06/2011,2084769-1,25,REDACTED PERSONAL DATA,REDACTED PERSONAL DATA
Tendring DC,http://statistics.data.gov.uk/id/local-authority-district/22UN,Human Resources and Customer Services,1802 - Member Training,4500 - Consultancy Fees,21/06/2011,1044353-1,300,2102038 - Crispins Sandwich Bar Ltd,CRISPINS
Tendring DC,http://statistics.data.gov.uk/id/local-authority-district/22UN,Human Resources and Customer Services,1807 - Recruitment & Relocation,1500 - Advertising - Recruitment,28/06/2011,2085518-1,60,2102038 - Crispins Sandwich Bar Ltd,Crispins
Tendring DC,http://statistics.data.gov.uk/id/local-authority-district/22UN,Human Resources and Customer Services,1840 - Central Telephone Service,4710 - Telephones - Charges,14/06/2011,2084980-1,483.39,2109315 - Data Track Technology plc,Data Track - E3001243
Tendring DC,http://statistics.data.gov.uk/id/local-authority-district/22UN,Human Resources and Customer Services,1880 - Office Accommodation Expenses,2100 - Building Repairs,21/06/2011,1044350-1,120.98,2108384 - DC Drains & Plumbing Services,DC DRAINS
Tendring DC,http://statistics.data.gov.uk/id/local-authority-district/22UN,Human Resources and Customer Services,1880 - Office Accommodation Expenses,2100 - Building Repairs,21/06/2011,1044351-1,87.33,2108384 - DC Drains & Plumbing Services,DC DRAINAGE
Tendring DC,http://statistics.data.gov.uk/id/local-authority-district/22UN,Human Resources and Customer Services,1880 - Office Accommodation Expenses,2100 - Building Repairs,07/06/2011,2084862-1,60,2108384 - DC Drains & Plumbing Services,D C Drainage
Tendring DC,http://statistics.data.gov.uk/id/local-authority-district/22UN,Human Resources and Customer Services,1880 - Office Accommodation Expenses,2100 - Building Repairs,07/06/2011,2084863-1,102.48,2108384 - DC Drains & Plumbing Services,D C Drainage
Tendring DC,http://statistics.data.gov.uk/id/local-authority-district/22UN,Human Resources and Customer Services,1880 - Office Accommodation Expenses,2100 - Building Repairs,07/06/2011,2084864-1,78,2108384 - DC Drains & Plumbing Services,D C Drainage
Tendring DC,http://statistics.data.gov.uk/id/local-authority-district/22UN,Human Resources and Customer Services,1880 - Office Accommodation Expenses,2304 - Energy Costs - Electricity,14/06/2011,2084981-1,3787.16,2105146 - EDF Energy 1 Ltd,EDF TH - May 11
Tendring DC,http://statistics.data.gov.uk/id/local-authority-district/22UN,Human Resources and Customer Services,6160 - Princes Theatre,2304 - Energy Costs - Electricity,14/06/2011,2084981-2,420.8,2105146 - EDF Energy 1 Ltd,EDF TH - May 11
Tendring DC,http://statistics.data.gov.uk/id/local-authority-district/22UN,Human Resources and Customer Services,6460 - Career Track,4688 - Career Track Exam Fees,21/06/2011,1044354-1,86,2100425 - EDI,EDI
Tendring DC,http://statistics.data.gov.uk/id/local-authority-district/22UN,Human Resources and Customer Services,6460 - Career Track,4688 - Career Track Exam Fees,21/06/2011,1044355-1,43,2100425 - EDI,EDI
Tendring DC,http://statistics.data.gov.uk/id/local-authority-district/22UN,Human Resources and Customer Services,6460 - Career Track,4688 - Career Track Exam Fees,07/06/2011,2084770-1,48,2100425 - EDI,
Tendring DC,http://statistics.data.gov.uk/id/local-authority-district/22UN,Human Resources and Customer Services,1807 - Recruitment & Relocation,1500 - Advertising - Recruitment,28/06/2011,2085511-1,3000,2100498 - Essex County Council,ECC
Tendring DC,http://statistics.data.gov.uk/id/local-authority-district/22UN,Human Resources and Customer Services,1420 - Human Resources & Customer Services,4880 - Subscriptions Paid,14/06/2011,2084984-1,157,2100581 - Expolink Europe Ltd,Expolink - Jan 11
Tendring DC,http://statistics.data.gov.uk/id/local-authority-district/22UN,Human Resources and Customer Services,1420 - Human Resources & Customer Services,4880 - Subscriptions Paid,28/06/2011,2085513-1,157,2100581 - Expolink Europe Ltd,Expolink
Tendring DC,http://statistics.data.gov.uk/id/local-authority-district/22UN,Human Resources and Customer Services,4360 - Development Control - Chargeable Account,9004 - Planning Fees,01/06/2011,2085103-1,150,2100544 - Frating Parish Council,Refund of Planning Fee
Tendring DC,http://statistics.data.gov.uk/id/local-authority-district/22UN,Human Resources and Customer Services,4360 - Development Control - Chargeable Account,9004 - Planning Fees,14/06/2011,2085237-1,150,2111303 - Frating with Thorrington Parochial Church Council,Refund of Planning Fee
Tendring DC,http://statistics.data.gov.uk/id/local-authority-district/22UN,Human Resources and Customer Services,1420 - Human Resources & Customer Services,4000 - Furniture,07/06/2011,2084868-1,95,2108293 - GB Office Group Ltd,GB Winstonmead
Tendring DC,http://statistics.data.gov.uk/id/local-authority-district/22UN,Human Resources and Customer Services,1860 - Depots General,2100 - Building Repairs,07/06/2011,2084764-1,170,REDACTED PERSONAL DATA,REDACTED PERSONAL DATA
Tendring DC,http://statistics.data.gov.uk/id/local-authority-district/22UN,Human Resources and Customer Services,1880 - Office Accommodation Expenses,4632 - Security,14/06/2011,2084976-1,70,2100546 - GCS Alarms,GCS
Tendring DC,http://statistics.data.gov.uk/id/local-authority-district/22UN,Human Resources and Customer Services,1880 - Office Accommodation Expenses,2100 - Building Repairs,14/06/2011,2084977-1,201,2100546 - GCS Alarms,GCS
Tendring DC,http://statistics.data.gov.uk/id/local-authority-district/22UN,Human Resources and Customer Services,1880 - Office Accommodation Expenses,2100 - Building Repairs,14/06/2011,2084978-1,395,2100546 - GCS Alarms,GCS
Tendring DC,http://statistics.data.gov.uk/id/local-authority-district/22UN,Human Resources and Customer Services,1880 - Office Accommodation Expenses,4632 - Security,14/06/2011,2084997-1,75,2100546 - GCS Alarms,
Tendring DC,http://statistics.data.gov.uk/id/local-authority-district/22UN,Human Resources and Customer Services,1860 - Depots General,4632 - Security,14/06/2011,2084998-1,180,2100546 - GCS Alarms,GCS
Tendring DC,http://statistics.data.gov.uk/id/local-authority-district/22UN,Human Resources and Customer Services,1880 - Office Accommodation Expenses,2100 - Building Repairs,28/06/2011,2085515-1,50,2100546 - GCS Alarms,GCS Fire Ext Brackets
Tendring DC,http://statistics.data.gov.uk/id/local-authority-district/22UN,Human Resources and Customer Services,1860 - Depots General,2100 - Building Repairs,28/06/2011,2085516-1,50,2100546 - GCS Alarms,GCS
Tendring DC,http://statistics.data.gov.uk/id/local-authority-district/22UN,Human Resources and Customer Services,8150 - Office Cleaning,4040 - Equipment & Tools,21/06/2011,2085244-1,83.32,2100588 - Grantleys,Grantleys
Tendring DC,http://statistics.data.gov.uk/id/local-authority-district/22UN,Human Resources and Customer Services,1880 - Office Accommodation Expenses,2100 - Building Repairs,14/06/2011,1044266-1,110,2106272 - Greenleaf Pest Control Services,GPCS PEST CONTROL
Tendring DC,http://statistics.data.gov.uk/id/local-authority-district/22UN,Human Resources and Customer Services,1880 - Office Accommodation Expenses,2100 - Building Repairs,07/06/2011,2084774-1,90,2106272 - Greenleaf Pest Control Services,GPCS Pest Control
Tendring DC,http://statistics.data.gov.uk/id/local-authority-district/22UN,Human Resources and Customer Services,1880 - Office Accommodation Expenses,2100 - Building Repairs,07/06/2011,2084777-1,404.5,2100750 - ID Management Systems,ID Management
Tendring DC,http://statistics.data.gov.uk/id/local-authority-district/22UN,Human Resources and Customer Services,1880 - Office Accommodation Expenses,4446 - Bulk Bin Collection,21/06/2011,1044363-1,22.22,2104976 - Initial Washroom Solutions,INITIAL-SANITACT(J-JUL)
Tendring DC,http://statistics.data.gov.uk/id/local-authority-district/22UN,Human Resources and Customer Services,1880 - Office Accommodation Expenses,4446 - Bulk Bin Collection,21/06/2011,1044363-2,11.11,2104976 - Initial Washroom Solutions,INITIAL-SANITACT(J-JUL)
Tendring DC,http://statistics.data.gov.uk/id/local-authority-district/22UN,Human Resources and Customer Services,1880 - Office Accommodation Expenses,4446 - Bulk Bin Collection,21/06/2011,1044363-3,22.22,2104976 - Initial Washroom Solutions,INITIAL-SANITACT(J-JUL)
Tendring DC,http://statistics.data.gov.uk/id/local-authority-district/22UN,Human Resources and Customer Services,1880 - Office Accommodation Expenses,4446 - Bulk Bin Collection,21/06/2011,1044363-4,11.11,2104976 - Initial Washroom Solutions,INITIAL-SANITACT(J-JUL)
Tendring DC,http://statistics.data.gov.uk/id/local-authority-district/22UN,Human Resources and Customer Services,1880 - Office Accommodation Expenses,4446 - Bulk Bin Collection,21/06/2011,1044363-5,93.13,2104976 - Initial Washroom Solutions,INITIAL-SANITACT(J-JUL)
Tendring DC,http://statistics.data.gov.uk/id/local-authority-district/22UN,Human Resources and Customer Services,4820 - Public Conveniences,4080 - Materials & Consumables,21/06/2011,1044363-6,33.33,2104976 - Initial Washroom Solutions,INITIAL-SANITACT(J-JUL)
Tendring DC,http://statistics.data.gov.uk/id/local-authority-district/22UN,Human Resources and Customer Services,1880 - Office Accommodation Expenses,4446 - Bulk Bin Collection,21/06/2011,1044363-7,11.11,2104976 - Initial Washroom Solutions,INITIAL-SANITACT(J-JUL)
Tendring DC,http://statistics.data.gov.uk/id/local-authority-district/22UN,Human Resources and Customer Services,1880 - Office Accommodation Expenses,4446 - Bulk Bin Collection,21/06/2011,1044363-8,5.55,2104976 - Initial Washroom Solutions,INITIAL-SANITACT(J-JUL)
Tendring DC,http://statistics.data.gov.uk/id/local-authority-district/22UN,Human Resources and Customer Services,1880 - Office Accommodation Expenses,4448 - Confidential Waste,07/06/2011,2084867-1,68.15,2110936 - IPPlus (UK) Ltd,Ancora
Tendring DC,http://statistics.data.gov.uk/id/local-authority-district/22UN,Human Resources and Customer Services,1340 - Legal Services - Management & Admin,5500 - Miscellaneous Expenses,07/06/2011,2084867-2,35.25,2110936 - IPPlus (UK) Ltd,Ancora
Tendring DC,http://statistics.data.gov.uk/id/local-authority-district/22UN,Human Resources and Customer Services,7220 - Election Expenses,4486 - Election Expenses,07/06/2011,2084867-3,39.95,2110936 - IPPlus (UK) Ltd,Ancora
Tendring DC,http://statistics.data.gov.uk/id/local-authority-district/22UN,Human Resources and Customer Services,1200 - Exchequer,4448 - Confidential Waste,07/06/2011,2084867-4,49.35,2110936 - IPPlus (UK) Ltd,Ancora
Tendring DC,http://statistics.data.gov.uk/id/local-authority-district/22UN,Human Resources and Customer Services,1420 - Human Resources & Customer Services,4300 - Printing & Stationery,28/06/2011,2085512-1,47.69,2110099 - Lyreco UK Ltd,Lyreco
Tendring DC,http://statistics.data.gov.uk/id/local-authority-district/22UN,Human Resources and Customer Services,1807 - Recruitment & Relocation,1500 - Advertising - Recruitment,28/06/2011,2085512-2,49.61,2110099 - Lyreco UK Ltd,Lyreco
Tendring DC,http://statistics.data.gov.uk/id/local-authority-district/22UN,Human Resources and Customer Services,4480 - Building Regulations-Chargeable Account,9000 - Building Regulation Fees,14/06/2011,2085020-1,42.56,REDACTED PERSONAL DATA,Works not all being done
Tendring DC,http://statistics.data.gov.uk/id/local-authority-district/22UN,Human Resources and Customer Services,1880 - Office Accommodation Expenses,2100 - Building Repairs,21/06/2011,2085330-1,1128.04,2101578 - Micraft,Micraft
Tendring DC,http://statistics.data.gov.uk/id/local-authority-district/22UN,Human Resources and Customer Services,4480 - Building Regulations-Chargeable Account,9000 - Building Regulation Fees,28/06/2011,2085603-1,86.19,REDACTED PERSONAL DATA,REDACTED PERSONAL DATA
Tendring DC,http://statistics.data.gov.uk/id/local-authority-district/22UN,Human Resources and Customer Services,4480 - Building Regulations-Chargeable Account,9000 - Building Regulation Fees,07/06/2011,2084903-1,308.33,REDACTED PERSONAL DATA,REDACTED PERSONAL DATA
Tendring DC,http://statistics.data.gov.uk/id/local-authority-district/22UN,Human Resources and Customer Services,1880 - Office Accommodation Expenses,2100 - Building Repairs,28/06/2011,2085503-1,721.5,2100967 - N Rudelhoff,N R Electrical
Tendring DC,http://statistics.data.gov.uk/id/local-authority-district/22UN,Human Resources and Customer Services,6460 - Career Track,4688 - Career Track Exam Fees,07/06/2011,2084860-1,117.9,2101071 - OCR,REDACTED PERSONAL DATA
Tendring DC,http://statistics.data.gov.uk/id/local-authority-district/22UN,Human Resources and Customer Services,6460 - Career Track,4688 - Career Track Exam Fees,14/06/2011,2084987-1,73.6,2101071 - OCR,OCR
Tendring DC,http://statistics.data.gov.uk/id/local-authority-district/22UN,Human Resources and Customer Services,6460 - Career Track,4688 - Career Track Exam Fees,14/06/2011,2084988-1,73.6,2101071 - OCR,OCR
Tendring DC,http://statistics.data.gov.uk/id/local-authority-district/22UN,Human Resources and Customer Services,6460 - Career Track,4688 - Career Track Exam Fees,14/06/2011,2084989-1,11.5,2101071 - OCR,OCR
Tendring DC,http://statistics.data.gov.uk/id/local-authority-district/22UN,Human Resources and Customer Services,6460 - Career Track,4688 - Career Track Exam Fees,14/06/2011,2084990-1,11.5,2101071 - OCR,OCR
Tendring DC,http://statistics.data.gov.uk/id/local-authority-district/22UN,Human Resources and Customer Services,6460 - Career Track,4688 - Career Track Exam Fees,14/06/2011,2084991-1,73.6,2101071 - OCR,OCR
Tendring DC,http://statistics.data.gov.uk/id/local-authority-district/22UN,Human Resources and Customer Services,6460 - Career Track,4688 - Career Track Exam Fees,14/06/2011,2084992-1,23,2101071 - OCR,OCR
Tendring DC,http://statistics.data.gov.uk/id/local-authority-district/22UN,Human Resources and Customer Services,1880 - Office Accommodation Expenses,2100 - Building Repairs,28/06/2011,2085514-1,23.53,2101014 - Otis Limited,Otis
Tendring DC,http://statistics.data.gov.uk/id/local-authority-district/22UN,Human Resources and Customer Services,6460 - Career Track,4753 - Computer - Application Software,28/06/2011,2085517-1,1680,2103006 - Pellcomp Software Ltd,Pellcomp
Tendring DC,http://statistics.data.gov.uk/id/local-authority-district/22UN,Human Resources and Customer Services,4660 - Public Health,5500 - Miscellaneous Expenses,21/06/2011,1044352-1,220,2105829 - Prettys Solicitors,PRETTYS
Tendring DC,http://statistics.data.gov.uk/id/local-authority-district/22UN,Human Resources and Customer Services,1807 - Recruitment & Relocation,1500 - Advertising - Recruitment,07/06/2011,2084776-1,546,REDACTED COMMERCIAL CONFIDENTIALITY,REDACTED COMMERCIAL CONFIDENTIALITY
Tendring DC,http://statistics.data.gov.uk/id/local-authority-district/22UN,Human Resources and Customer Services,1807 - Recruitment & Relocation,1500 - Advertising - Recruitment,07/06/2011,2084776-2,70,REDACTED COMMERCIAL CONFIDENTIALITY,REDACTED COMMERCIAL CONFIDENTIALITY
Tendring DC,http://statistics.data.gov.uk/id/local-authority-district/22UN,Human Resources and Customer Services,1880 - Office Accommodation Expenses,2100 - Building Repairs,14/06/2011,2084995-1,317.74,2100032 - Signs Made Easy,Signs Made Easy
Tendring DC,http://statistics.data.gov.uk/id/local-authority-district/22UN,Human Resources and Customer Services,1880 - Office Accommodation Expenses,2100 - Building Repairs,14/06/2011,2084996-1,237,2100032 - Signs Made Easy,Signs Made Easy
Tendring DC,http://statistics.data.gov.uk/id/local-authority-district/22UN,Human Resources and Customer Services,1880 - Office Accommodation Expenses,2100 - Building Repairs,28/06/2011,2085506-1,66.49,2100032 - Signs Made Easy,Signs Made Easy
Tendring DC,http://statistics.data.gov.uk/id/local-authority-district/22UN,Human Resources and Customer Services,1880 - Office Accommodation Expenses,2100 - Building Repairs,28/06/2011,2085507-1,150.8,2100032 - Signs Made Easy,Signs Made Easy
Tendring DC,http://statistics.data.gov.uk/id/local-authority-district/22UN,Human Resources and Customer Services,1880 - Office Accommodation Expenses,2100 - Building Repairs,28/06/2011,2085508-1,80,2100032 - Signs Made Easy,Signs Made Easy
Tendring DC,http://statistics.data.gov.uk/id/local-authority-district/22UN,Human Resources and Customer Services,1880 - Office Accommodation Expenses,2100 - Building Repairs,28/06/2011,2085509-1,88.5,2100032 - Signs Made Easy,Signs Made Easy
Tendring DC,http://statistics.data.gov.uk/id/local-authority-district/22UN,Human Resources and Customer Services,1880 - Office Accommodation Expenses,2100 - Building Repairs,14/06/2011,2084993-1,10.83,2101360 - Stannah Lift Services Limited,Stannah
Tendring DC,http://statistics.data.gov.uk/id/local-authority-district/22UN,Human Resources and Customer Services,1880 - Office Accommodation Expenses,2100 - Building Repairs,14/06/2011,2084993-2,10.83,2101360 - Stannah Lift Services Limited,Stannah
Tendring DC,http://statistics.data.gov.uk/id/local-authority-district/22UN,Human Resources and Customer Services,1880 - Office Accommodation Expenses,2100 - Building Repairs,14/06/2011,2084994-1,65,2101370 - Stannah Lift Services Ltd,Stannah Lift 06-08
Tendring DC,http://statistics.data.gov.uk/id/local-authority-district/22UN,Human Resources and Customer Services,1807 - Recruitment & Relocation,1500 - Advertising - Recruitment,07/06/2011,2084829-1,3.24,2101356 - Tendring District Council,Petty Cash
Tendring DC,http://statistics.data.gov.uk/id/local-authority-district/22UN,Human Resources and Customer Services,1807 - Recruitment & Relocation,1500 - Advertising - Recruitment,07/06/2011,2084829-10,1.23,2101356 - Tendring District Council,Petty Cash
Tendring DC,http://statistics.data.gov.uk/id/local-authority-district/22UN,Human Resources and Customer Services,1807 - Recruitment & Relocation,1500 - Advertising - Recruitment,07/06/2011,2084829-11,5.52,2101356 - Tendring District Council,Petty Cash
Tendring DC,http://statistics.data.gov.uk/id/local-authority-district/22UN,Human Resources and Customer Services,1802 - Member Training,4500 - Consultancy Fees,07/06/2011,2084829-12,2.79,2101356 - Tendring District Council,Petty Cash
Tendring DC,http://statistics.data.gov.uk/id/local-authority-district/22UN,Human Resources and Customer Services,1880 - Office Accommodation Expenses,2100 - Building Repairs,07/06/2011,2084829-13,1.75,2101356 - Tendring District Council,Petty Cash
Tendring DC,http://statistics.data.gov.uk/id/local-authority-district/22UN,Human Resources and Customer Services,1807 - Recruitment & Relocation,1500 - Advertising - Recruitment,07/06/2011,2084829-14,4.25,2101356 - Tendring District Council,Petty Cash
Tendring DC,http://statistics.data.gov.uk/id/local-authority-district/22UN,Human Resources and Customer Services,1807 - Recruitment & Relocation,1500 - Advertising - Recruitment,07/06/2011,2084829-15,2.34,2101356 - Tendring District Council,Petty Cash
Tendring DC,http://statistics.data.gov.uk/id/local-authority-district/22UN,Human Resources and Customer Services,1807 - Recruitment & Relocation,1500 - Advertising - Recruitment,07/06/2011,2084829-16,0.91,2101356 - Tendring District Council,Petty Cash
Tendring DC,http://statistics.data.gov.uk/id/local-authority-district/22UN,Human Resources and Customer Services,1804 - Long Service Scheme,5400 - Awards & Gifts,07/06/2011,2084829-17,3.3,2101356 - Tendring District Council,Petty Cash
Tendring DC,http://statistics.data.gov.uk/id/local-authority-district/22UN,Human Resources and Customer Services,1802 - Member Training,4500 - Consultancy Fees,07/06/2011,2084829-18,3.5,2101356 - Tendring District Council,Petty Cash
Tendring DC,http://statistics.data.gov.uk/id/local-authority-district/22UN,Human Resources and Customer Services,6460 - Career Track,4800 - Hospitality,07/06/2011,2084829-19,3.8,2101356 - Tendring District Council,Petty Cash
Tendring DC,http://statistics.data.gov.uk/id/local-authority-district/22UN,Human Resources and Customer Services,1804 - Long Service Scheme,5400 - Awards & Gifts,07/06/2011,2084829-2,3.32,2101356 - Tendring District Council,Petty Cash
Tendring DC,http://statistics.data.gov.uk/id/local-authority-district/22UN,Human Resources and Customer Services,1880 - Office Accommodation Expenses,4080 - Materials & Consumables,07/06/2011,2084829-20,9.83,2101356 - Tendring District Council,Petty Cash
Tendring DC,http://statistics.data.gov.uk/id/local-authority-district/22UN,Human Resources and Customer Services,8150 - Office Cleaning,4080 - Materials & Consumables,07/06/2011,2084829-21,13.89,2101356 - Tendring District Council,Petty Cash
Tendring DC,http://statistics.data.gov.uk/id/local-authority-district/22UN,Human Resources and Customer Services,6460 - Career Track,4800 - Hospitality,07/06/2011,2084829-22,11.74,2101356 - Tendring District Council,Petty Cash
Tendring DC,http://statistics.data.gov.uk/id/local-authority-district/22UN,Human Resources and Customer Services,6460 - Career Track,4800 - Hospitality,07/06/2011,2084829-23,8.33,2101356 - Tendring District Council,Petty Cash
Tendring DC,http://statistics.data.gov.uk/id/local-authority-district/22UN,Human Resources and Customer Services,1807 - Recruitment & Relocation,1500 - Advertising - Recruitment,07/06/2011,2084829-24,6.54,2101356 - Tendring District Council,Petty Cash
Tendring DC,http://statistics.data.gov.uk/id/local-authority-district/22UN,Human Resources and Customer Services,6460 - Career Track,4800 - Hospitality,07/06/2011,2084829-25,6.76,2101356 - Tendring District Council,Petty Cash
Tendring DC,http://statistics.data.gov.uk/id/local-authority-district/22UN,Human Resources and Customer Services,6460 - Career Track,4800 - Hospitality,07/06/2011,2084829-26,7.13,2101356 - Tendring District Council,Petty Cash
Tendring DC,http://statistics.data.gov.uk/id/local-authority-district/22UN,Human Resources and Customer Services,4800 - Slum Clearance,4355 - Books & Periodicals,07/06/2011,2084829-27,4.97,2101356 - Tendring District Council,Petty Cash
Tendring DC,http://statistics.data.gov.uk/id/local-authority-district/22UN,Human Resources and Customer Services,6460 - Career Track,4800 - Hospitality,07/06/2011,2084829-28,8.33,2101356 - Tendring District Council,Petty Cash
Tendring DC,http://statistics.data.gov.uk/id/local-authority-district/22UN,Human Resources and Customer Services,1807 - Recruitment & Relocation,1500 - Advertising - Recruitment,07/06/2011,2084829-29,0.41,2101356 - Tendring District Council,Petty Cash
Tendring DC,http://statistics.data.gov.uk/id/local-authority-district/22UN,Human Resources and Customer Services,1807 - Recruitment & Relocation,1500 - Advertising - Recruitment,07/06/2011,2084829-3,4.09,2101356 - Tendring District Council,Petty Cash
Tendring DC,http://statistics.data.gov.uk/id/local-authority-district/22UN,Human Resources and Customer Services,1880 - Office Accommodation Expenses,2100 - Building Repairs,07/06/2011,2084829-30,14.15,2101356 - Tendring District Council,Petty Cash
Tendring DC,http://statistics.data.gov.uk/id/local-authority-district/22UN,Human Resources and Customer Services,1880 - Office Accommodation Expenses,2100 - Building Repairs,07/06/2011,2084829-31,13.96,2101356 - Tendring District Council,Petty Cash
Tendring DC,http://statistics.data.gov.uk/id/local-authority-district/22UN,Human Resources and Customer Services,1804 - Long Service Scheme,5400 - Awards & Gifts,07/06/2011,2084829-32,2.91,2101356 - Tendring District Council,Petty Cash
Tendring DC,http://statistics.data.gov.uk/id/local-authority-district/22UN,Human Resources and Customer Services,1807 - Recruitment & Relocation,1500 - Advertising - Recruitment,07/06/2011,2084829-33,3.5,2101356 - Tendring District Council,Petty Cash
Tendring DC,http://statistics.data.gov.uk/id/local-authority-district/22UN,Human Resources and Customer Services,1807 - Recruitment & Relocation,1500 - Advertising - Recruitment,07/06/2011,2084829-34,4.77,2101356 - Tendring District Council,Petty Cash
Tendring DC,http://statistics.data.gov.uk/id/local-authority-district/22UN,Human Resources and Customer Services,1800 - Qualification Training,1705 - Training - Other Approved Exps,07/06/2011,2084829-35,6,2101356 - Tendring District Council,Petty Cash
Tendring DC,http://statistics.data.gov.uk/id/local-authority-district/22UN,Human Resources and Customer Services,1807 - Recruitment & Relocation,1500 - Advertising - Recruitment,07/06/2011,2084829-36,3.5,2101356 - Tendring District Council,Petty Cash
Tendring DC,http://statistics.data.gov.uk/id/local-authority-district/22UN,Human Resources and Customer Services,1802 - Member Training,4500 - Consultancy Fees,07/06/2011,2084829-37,9.37,2101356 - Tendring District Council,Petty Cash
Tendring DC,http://statistics.data.gov.uk/id/local-authority-district/22UN,Human Resources and Customer Services,6460 - Career Track,4800 - Hospitality,07/06/2011,2084829-4,4.58,2101356 - Tendring District Council,Petty Cash
Tendring DC,http://statistics.data.gov.uk/id/local-authority-district/22UN,Human Resources and Customer Services,1810 - Manpower Planning Summary,4460 - Legal & Professional Expenses,07/06/2011,2084829-5,21.65,2101356 - Tendring District Council,Petty Cash
Tendring DC,http://statistics.data.gov.uk/id/local-authority-district/22UN,Human Resources and Customer Services,8150 - Office Cleaning,4080 - Materials & Consumables,07/06/2011,2084829-6,14.08,2101356 - Tendring District Council,Petty Cash
Tendring DC,http://statistics.data.gov.uk/id/local-authority-district/22UN,Human Resources and Customer Services,1804 - Long Service Scheme,5400 - Awards & Gifts,07/06/2011,2084829-7,0.83,2101356 - Tendring District Council,Petty Cash
Tendring DC,http://statistics.data.gov.uk/id/local-authority-district/22UN,Human Resources and Customer Services,6460 - Career Track,1704 - Training - Travelling,07/06/2011,2084829-8,25,2101356 - Tendring District Council,Petty Cash
Tendring DC,http://statistics.data.gov.uk/id/local-authority-district/22UN,Human Resources and Customer Services,1807 - Recruitment & Relocation,1500 - Advertising - Recruitment,07/06/2011,2084829-9,1.23,2101356 - Tendring District Council,Petty Cash
Tendring DC,http://statistics.data.gov.uk/id/local-authority-district/22UN,Human Resources and Customer Services,4480 - Building Regulations-Chargeable Account,9000 - Building Regulation Fees,28/06/2011,2085599-1,16.67,2101401 - The Guinness Trust,Overpayment of Application fee for BR
Tendring DC,http://statistics.data.gov.uk/id/local-authority-district/22UN,Human Resources and Customer Services,1860 - Depots General,4632 - Security,07/06/2011,2084865-1,106.4,2101437 - Tower Security (Tendring) Ltd,Tower Security - NB
Tendring DC,http://statistics.data.gov.uk/id/local-authority-district/22UN,Human Resources and Customer Services,1880 - Office Accommodation Expenses,2100 - Building Repairs,07/06/2011,2084866-1,106.4,2101437 - Tower Security (Tendring) Ltd,Tower Security
Tendring DC,http://statistics.data.gov.uk/id/local-authority-district/22UN,Human Resources and Customer Services,1880 - Office Accommodation Expenses,2100 - Building Repairs,21/06/2011,1044364-1,108.58,2101457 - Town Council of Frinton and Walton,TOWN COUNCIL FW-MAY 11
Tendring DC,http://statistics.data.gov.uk/id/local-authority-district/22UN,Human Resources and Customer Services,1880 - Office Accommodation Expenses,2100 - Building Repairs,21/06/2011,1044365-1,100.06,2101457 - Town Council of Frinton and Walton,TOWN COUNCIL FW-APR 11
Tendring DC,http://statistics.data.gov.uk/id/local-authority-district/22UN,Human Resources and Customer Services,1880 - Office Accommodation Expenses,4446 - Bulk Bin Collection,21/06/2011,1044368-1,109.6,2101092 - Veolia ES (UK) Limited,VEOLIA WASTE-CH
Tendring DC,http://statistics.data.gov.uk/id/local-authority-district/22UN,Human Resources and Customer Services,1880 - Office Accommodation Expenses,4446 - Bulk Bin Collection,21/06/2011,1044369-1,235.32,2101092 - Veolia ES (UK) Limited,VEOLIA WASTE-WLY
Tendring DC,http://statistics.data.gov.uk/id/local-authority-district/22UN,Human Resources and Customer Services,1880 - Office Accommodation Expenses,4446 - Bulk Bin Collection,21/06/2011,1044370-1,93.03,2101092 - Veolia ES (UK) Limited,VEOLIA WASTE-WEST
Tendring DC,http://statistics.data.gov.uk/id/local-authority-district/22UN,Human Resources and Customer Services,1880 - Office Accommodation Expenses,2100 - Building Repairs,21/06/2011,1044371-1,607.72,2101092 - Veolia ES (UK) Limited,VEOLIA WASTE-TH
Tendring DC,http://statistics.data.gov.uk/id/local-authority-district/22UN,Human Resources and Customer Services,1880 - Office Accommodation Expenses,4446 - Bulk Bin Collection,21/06/2011,1044372-1,344.88,2101092 - Veolia ES (UK) Limited,VEOLIA WASTE-CTAX
Tendring DC,http://statistics.data.gov.uk/id/local-authority-district/22UN,Human Resources and Customer Services,1860 - Depots General,2500 - Water Services - Metered,21/06/2011,1044373-1,166.29,2101318 - Veolia Water East Ltd,VEOLIA WATER-ML
Tendring DC,http://statistics.data.gov.uk/id/local-authority-district/22UN,Human Resources and Customer Services,1860 - Depots General,2520 - Sewerage & Environmental Charges,21/06/2011,1044373-2,187.42,2101318 - Veolia Water East Ltd,VEOLIA WATER-ML
Tendring DC,http://statistics.data.gov.uk/id/local-authority-district/22UN,Human Resources and Customer Services,1880 - Office Accommodation Expenses,2500 - Water Services - Metered,21/06/2011,1044374-1,25,2101318 - Veolia Water East Ltd,VEOLIA WATER-TSC
Tendring DC,http://statistics.data.gov.uk/id/local-authority-district/22UN,Human Resources and Customer Services,1880 - Office Accommodation Expenses,2520 - Sewerage & Environmental Charges,21/06/2011,1044374-2,73.41,2101318 - Veolia Water East Ltd,VEOLIA WATER-TSC
Tendring DC,http://statistics.data.gov.uk/id/local-authority-district/22UN,Human Resources and Customer Services,1880 - Office Accommodation Expenses,2500 - Water Services - Metered,14/06/2011,2084979-1,154.16,2101318 - Veolia Water East Ltd,Veolia Water
Tendring DC,http://statistics.data.gov.uk/id/local-authority-district/22UN,Human Resources and Customer Services,1880 - Office Accommodation Expenses,2520 - Sewerage & Environmental Charges,14/06/2011,2084979-2,174.31,2101318 - Veolia Water East Ltd,Veolia Water
Tendring DC,http://statistics.data.gov.uk/id/local-authority-district/22UN,Legal Services,1950 - Transport,3062 - Running Costs - Petrol,14/06/2011,2085124-1,180.01,2101825 - ARVAL PHH,Courier petrol
Tendring DC,http://statistics.data.gov.uk/id/local-authority-district/22UN,Legal Services,1340 - Legal Services - Management & Admin,4880 - Subscriptions Paid,07/06/2011,1044120-1,250,2102775 - Association of Council Secretaries and Solicitors,ACSES EASTERN MEMBERSHIP
Tendring DC,http://statistics.data.gov.uk/id/local-authority-district/22UN,Legal Services,1320 - Print Unit,4080 - Materials & Consumables,21/06/2011,1044320-1,33.79,2100111 - Banner Business Supplies Ltd,PAPER
Tendring DC,http://statistics.data.gov.uk/id/local-authority-district/22UN,Legal Services,1340 - Legal Services - Management & Admin,4300 - Printing & Stationery,07/06/2011,2084810-1,57.18,2100111 - Banner Business Supplies Ltd,Trodat Printy Stamps
Tendring DC,http://statistics.data.gov.uk/id/local-authority-district/22UN,Legal Services,1340 - Legal Services - Management & Admin,4355 - Books & Periodicals,21/06/2011,2085407-1,97,2100153 - Benedict Books Ltd,Licensing review
Tendring DC,http://statistics.data.gov.uk/id/local-authority-district/22UN,Legal Services,8025 - Car Parks - Off St,2304 - Energy Costs - Electricity,07/06/2011,2084822-1,12.41,2100197 - British Gas Trading Ltd,BGas metered
Tendring DC,http://statistics.data.gov.uk/id/local-authority-district/22UN,Legal Services,8025 - Car Parks - Off St,2304 - Energy Costs - Electricity,07/06/2011,2084822-2,45.42,2100197 - British Gas Trading Ltd,BGas metered
Tendring DC,http://statistics.data.gov.uk/id/local-authority-district/22UN,Legal Services,8025 - Car Parks - Off St,2304 - Energy Costs - Electricity,07/06/2011,2084822-3,64.21,2100197 - British Gas Trading Ltd,BGas metered
Tendring DC,http://statistics.data.gov.uk/id/local-authority-district/22UN,Legal Services,8025 - Car Parks - Off St,2304 - Energy Costs - Electricity,14/06/2011,2085029-1,12.82,2100197 - British Gas Trading Ltd,Electric Metered
Tendring DC,http://statistics.data.gov.uk/id/local-authority-district/22UN,Legal Services,8025 - Car Parks - Off St,2304 - Energy Costs - Electricity,14/06/2011,2085029-2,65.9,2100197 - British Gas Trading Ltd,Electric Metered
Tendring DC,http://statistics.data.gov.uk/id/local-authority-district/22UN,Legal Services,8025 - Car Parks - Off St,2304 - Energy Costs - Electricity,14/06/2011,2085029-3,45.29,2100197 - British Gas Trading Ltd,Electric Metered
Tendring DC,http://statistics.data.gov.uk/id/local-authority-district/22UN,Legal Services,8025 - Car Parks - Off St,4710 - Telephones - Charges,28/06/2011,1044416-1,88.59,2100168 - British Telecommunications plc,PHONE IPSWICH RD
Tendring DC,http://statistics.data.gov.uk/id/local-authority-district/22UN,Legal Services,8025 - Car Parks - Off St,4710 - Telephones - Charges,28/06/2011,1044417-1,88.56,2100168 - British Telecommunications plc,PHONE ELM GROVE
Tendring DC,http://statistics.data.gov.uk/id/local-authority-district/22UN,Legal Services,8025 - Car Parks - Off St,4710 - Telephones - Charges,28/06/2011,2085521-1,89.23,2100168 - British Telecommunications plc,Agate Rd
Tendring DC,http://statistics.data.gov.uk/id/local-authority-district/22UN,Legal Services,8025 - Car Parks - Off St,4406 - Repair & Maintenance of Machines - Car Parks,14/06/2011,2085025-1,225.45,2100241 - Cale Briparc Ltd,Vandalised Machines
Tendring DC,http://statistics.data.gov.uk/id/local-authority-district/22UN,Legal Services,8025 - Car Parks - Off St,4406 - Repair & Maintenance of Machines - Car Parks,14/06/2011,2085025-2,225.45,2100241 - Cale Briparc Ltd,Vandalised Machines
Tendring DC,http://statistics.data.gov.uk/id/local-authority-district/22UN,Legal Services,8025 - Car Parks - Off St,4406 - Repair & Maintenance of Machines - Car Parks,14/06/2011,2085026-1,740.2,2100241 - Cale Briparc Ltd,Repair Printers
Tendring DC,http://statistics.data.gov.uk/id/local-authority-district/22UN,Legal Services,1340 - Legal Services - Management & Admin,1700 - Training - Courses,28/06/2011,2085552-1,200,REDACTED COMMERCIAL CONFIDENTIALITY,REDACTED COMMERCIAL CONFIDENTIALITY
Tendring DC,http://statistics.data.gov.uk/id/local-authority-district/22UN,Legal Services,1320 - Print Unit,4400 - Maintenance Under Service Agreements,21/06/2011,1044317-1,195,2100353 - Consensus Guillotine Engineering Ltd,GUILLOTINE SERVICE
Tendring DC,http://statistics.data.gov.uk/id/local-authority-district/22UN,Legal Services,1320 - Print Unit,4080 - Materials & Consumables,07/06/2011,2084830-1,26,2108316 - Design & Print Integration Limited,Job 091
